{"text_format":"1","workbook":"xlsx","n_sheets":4,"sheets":["PPA_2016_2019","Planilha1","Não rela!","Testes"],"not_rendered":{"charts":0,"images":0,"macros":0,"external_links":0,"defined_names":2,"comments":0,"pivot_tables":4},"unopened":[],"bounds":{"document_bytes":16777216,"sheet_cells":100000,"rows_first":2000,"rows_last":500,"rows_between":2000,"halvings":0,"cell_chars":16384,"cell_head_chars":4096},"cells_cut":0,"cells_raw":0,"read":"whole","date_system":"1900"}

{"sheet":"PPA_2016_2019","index":0,"n_rows":17,"n_cols":9,"rows_kept":17,"cut":false,"hidden":false,"merged":[]}
["PROGRAMA","Ministério responsável pelo objetivo","OBJETIVO","META","UNIDADE DE MEDIDA","ODS","ODS-descritas","METAS","Metas ODS DESCRITAS"]
["2040 - Gestão de Riscos e de Desastres","Ministério da Ciência, Tecnologia, Inovações e Comunicações","0173 - Aumentar a capacidade de emitir alertas","04C2 - Implantar 6 novos sistemas de alerta hidrológicos","Sistema implantado (unidade)","1-2-6-9-11-12-13","Objetivo 1. Acabar com a pobreza em todas as suas formas, em todos os lugares  Objetivo 2. Acabar com a fome, alcançar a segurança alimentar e melhoria da nutrição e promover a agricultura sustentável Objetivo 6. Assegurar a disponibilidade e gestão sustentável da água e saneamento para todos Objetivo 9. Construir infraestruturas resilientes, promover a industrialização inclusiva e sustentável e fomentar a inovação Objetivo 11. Tornar as cidades e os assentamentos humanos inclusivos, seguros, resilientes e sustentáveis Objetivo 12. Assegurar padrões de produção e de consumo sustentáveis Objetivo 13. Tomar medidas urgentes para combater a mudança do clima e seus impactos ","1.5    2.4    6.6    6b    9.1    9.5    11.1    11.3    11.5    11.B    12.2    13.3    13.1    13.b  ","1.5 Até 2030, construir a resiliência dos pobres e daqueles em situação de vulnerabilidade, e reduzir a exposição e vulnerabilidade destes a eventos extremos relacionados com o clima e outros choques e desastres econômicos, sociais e ambientais  2.4 Até 2030, garantir sistemas sustentáveis de produção de alimentos e implementar práticas agrícolas robustas, que aumentem a produtividade e a produção, que ajudem a manter os ecossistemas, que fortaleçam a capacidade de adaptação às mudança do clima, às condições meteorológicas extremas, secas, inundações e outros desastres, e que melhorem progressivamente a qualidade da terra e do solo. 6.6 Até 2020, proteger e restaurar ecossistemas relacionados com a água, incluindo montanhas, florestas, zonas úmidas, rios, aquíferos e lagos. 6.b Apoiar e fortalecer a participação das comunidades locais, para melhorar a gestão da água e do saneamento. 9.1 Desenvolver infraestrutura de qualidade, confiável, sustentável e robusta, incluindo infraestrutura regional e transfronteiriça, para apoiar o desenvolvimento econômico e o bem-estar humano, com foco no acesso equitativo e a preços acessíveis para todos. 9.5 Fortalecer a pesquisa científica, melhorar as capacidades tecnológicas de setores industriais em todos os países, particularmente nos países em desenvolvimento, inclusive, até 2030, incentivando a inovação e aumentando substancialmente o número de trabalhadores de pesquisa e desenvolvimento por milhão de pessoas e os gastos público e privado em pesquisa e desenvolvimento. 11.1 Até 2030, garantir o acesso de todos a habitação segura, adequada e a preço acessível, e aos serviços básicos e urbanizar as favelas. 11.3 Até 2030, aumentar a urbanização inclusiva e sustentável, e a capacidade para o planejamento e a gestão participativa, integrada e sustentável dos assentamentos humanos, em todos os países. 11.5 Até 2030, reduzir significativamente o número de mortes e o número de pessoas afetadas por catástrofes e diminuir substancialmente as perdas econômicas diretas causadas por elas em relação ao produto interno bruto global, incluindo os desastres relacionados à água, com o foco em proteger os pobres e as pessoas em situação de vulnerabilidade. 11.b Até 2020, aumentar substancialmente o número de cidades e assentamentos humanos adotando e implementando políticas e planos integrados para a inclusão, a eficiência dos recursos, mitigação e adaptação à mudança do clima, a resiliência a desastres; e desenvolver e implementar, de acordo com o Marco de Sendai para a Redução do Risco de Desastres 2015-2030, o gerenciamento holístico do risco de desastres em todos os níveis. 12.2 Até 2030, alcançar gestão sustentável e uso eficiente dos recursos naturais. 13.3 Melhorar a educação, aumentar a conscientização e a capacidade humana e institucional sobre mitigação global do clima, adaptação, redução de impacto, e alerta precoce à mudança do clima 13.1 Reforçar a resiliência e a capacidade de adaptação a riscos relacionados ao clima e às catástrofes naturais em todos os países.13.b Promover mecanismos para a criação de capacidades para o planejamento relacionado à mudança do clima e à gestão eficaz, nos países menos desenvolvidos, inclusive com foco em mulheres, jovens, comunidades locais e marginalizadas"]
["2040 - Gestão de Riscos e de Desastres","Ministério de Minas e Energia","0602 - Identificar riscos de desastres naturais","0437 - Elaborar mapeamentos de identificação de setores de risco de inundações e deslizamentos em 350 municípios","Mapa divulgado (unidade)","1-2-6-9-11-12-13","Objetivo 1. Acabar com a pobreza em todas as suas formas, em todos os lugares  Objetivo 2. Acabar com a fome, alcançar a segurança alimentar e melhoria da nutrição e promover a agricultura sustentável Objetivo 6. Assegurar a disponibilidade e gestão sustentável da água e saneamento para todos Objetivo 9. Construir infraestruturas resilientes, promover a industrialização inclusiva e sustentável e fomentar a inovação Objetivo 11. Tornar as cidades e os assentamentos humanos inclusivos, seguros, resilientes e sustentáveis Objetivo 12. Assegurar padrões de produção e de consumo sustentáveis Objetivo 13. Tomar medidas urgentes para combater a mudança do clima e seus impactos ","1.5    2.4    6.6    6b    9.1    9.5    11.1    11.3    11.5    11.B    12.2    13.3    13.1    13.b  ","1.5 Até 2030, construir a resiliência dos pobres e daqueles em situação de vulnerabilidade, e reduzir a exposição e vulnerabilidade destes a eventos extremos relacionados com o clima e outros choques e desastres econômicos, sociais e ambientais  2.4 Até 2030, garantir sistemas sustentáveis de produção de alimentos e implementar práticas agrícolas robustas, que aumentem a produtividade e a produção, que ajudem a manter os ecossistemas, que fortaleçam a capacidade de adaptação às mudança do clima, às condições meteorológicas extremas, secas, inundações e outros desastres, e que melhorem progressivamente a qualidade da terra e do solo. 6.6 Até 2020, proteger e restaurar ecossistemas relacionados com a água, incluindo montanhas, florestas, zonas úmidas, rios, aquíferos e lagos. 6.b Apoiar e fortalecer a participação das comunidades locais, para melhorar a gestão da água e do saneamento. 9.1 Desenvolver infraestrutura de qualidade, confiável, sustentável e robusta, incluindo infraestrutura regional e transfronteiriça, para apoiar o desenvolvimento econômico e o bem-estar humano, com foco no acesso equitativo e a preços acessíveis para todos. 9.5 Fortalecer a pesquisa científica, melhorar as capacidades tecnológicas de setores industriais em todos os países, particularmente nos países em desenvolvimento, inclusive, até 2030, incentivando a inovação e aumentando substancialmente o número de trabalhadores de pesquisa e desenvolvimento por milhão de pessoas e os gastos público e privado em pesquisa e desenvolvimento. 11.1 Até 2030, garantir o acesso de todos a habitação segura, adequada e a preço acessível, e aos serviços básicos e urbanizar as favelas. 11.3 Até 2030, aumentar a urbanização inclusiva e sustentável, e a capacidade para o planejamento e a gestão participativa, integrada e sustentável dos assentamentos humanos, em todos os países. 11.5 Até 2030, reduzir significativamente o número de mortes e o número de pessoas afetadas por catástrofes e diminuir substancialmente as perdas econômicas diretas causadas por elas em relação ao produto interno bruto global, incluindo os desastres relacionados à água, com o foco em proteger os pobres e as pessoas em situação de vulnerabilidade. 11.b Até 2020, aumentar substancialmente o número de cidades e assentamentos humanos adotando e implementando políticas e planos integrados para a inclusão, a eficiência dos recursos, mitigação e adaptação à mudança do clima, a resiliência a desastres; e desenvolver e implementar, de acordo com o Marco de Sendai para a Redução do Risco de Desastres 2015-2030, o gerenciamento holístico do risco de desastres em todos os níveis. 12.2 Até 2030, alcançar gestão sustentável e uso eficiente dos recursos naturais. 13.3 Melhorar a educação, aumentar a conscientização e a capacidade humana e institucional sobre mitigação global do clima, adaptação, redução de impacto, e alerta precoce à mudança do clima 13.1 Reforçar a resiliência e a capacidade de adaptação a riscos relacionados ao clima e às catástrofes naturais em todos os países.13.b Promover mecanismos para a criação de capacidades para o planejamento relacionado à mudança do clima e à gestão eficaz, nos países menos desenvolvidos, inclusive com foco em mulheres, jovens, comunidades locais e marginalizadas"]
["2040 - Gestão de Riscos e de Desastres","Ministério de Minas e Energia","0602 - Identificar riscos de desastres naturais","0438 - Elaborar mapeamentos de suscetibilidade a inundações e deslizamentos em 309 municípios","Mapa divulgado (unidade)","1-2-6-9-11-12-13","Objetivo 1. Acabar com a pobreza em todas as suas formas, em todos os lugares  Objetivo 2. Acabar com a fome, alcançar a segurança alimentar e melhoria da nutrição e promover a agricultura sustentável Objetivo 6. Assegurar a disponibilidade e gestão sustentável da água e saneamento para todos Objetivo 9. Construir infraestruturas resilientes, promover a industrialização inclusiva e sustentável e fomentar a inovação Objetivo 11. Tornar as cidades e os assentamentos humanos inclusivos, seguros, resilientes e sustentáveis Objetivo 12. Assegurar padrões de produção e de consumo sustentáveis Objetivo 13. Tomar medidas urgentes para combater a mudança do clima e seus impactos ","1.5    2.4    6.6    6b    9.1    9.5    11.1    11.3    11.5    11.B    12.2    13.3    13.1    13.b  ","1.5 Até 2030, construir a resiliência dos pobres e daqueles em situação de vulnerabilidade, e reduzir a exposição e vulnerabilidade destes a eventos extremos relacionados com o clima e outros choques e desastres econômicos, sociais e ambientais  2.4 Até 2030, garantir sistemas sustentáveis de produção de alimentos e implementar práticas agrícolas robustas, que aumentem a produtividade e a produção, que ajudem a manter os ecossistemas, que fortaleçam a capacidade de adaptação às mudança do clima, às condições meteorológicas extremas, secas, inundações e outros desastres, e que melhorem progressivamente a qualidade da terra e do solo. 6.6 Até 2020, proteger e restaurar ecossistemas relacionados com a água, incluindo montanhas, florestas, zonas úmidas, rios, aquíferos e lagos. 6.b Apoiar e fortalecer a participação das comunidades locais, para melhorar a gestão da água e do saneamento. 9.1 Desenvolver infraestrutura de qualidade, confiável, sustentável e robusta, incluindo infraestrutura regional e transfronteiriça, para apoiar o desenvolvimento econômico e o bem-estar humano, com foco no acesso equitativo e a preços acessíveis para todos. 9.5 Fortalecer a pesquisa científica, melhorar as capacidades tecnológicas de setores industriais em todos os países, particularmente nos países em desenvolvimento, inclusive, até 2030, incentivando a inovação e aumentando substancialmente o número de trabalhadores de pesquisa e desenvolvimento por milhão de pessoas e os gastos público e privado em pesquisa e desenvolvimento. 11.1 Até 2030, garantir o acesso de todos a habitação segura, adequada e a preço acessível, e aos serviços básicos e urbanizar as favelas. 11.3 Até 2030, aumentar a urbanização inclusiva e sustentável, e a capacidade para o planejamento e a gestão participativa, integrada e sustentável dos assentamentos humanos, em todos os países. 11.5 Até 2030, reduzir significativamente o número de mortes e o número de pessoas afetadas por catástrofes e diminuir substancialmente as perdas econômicas diretas causadas por elas em relação ao produto interno bruto global, incluindo os desastres relacionados à água, com o foco em proteger os pobres e as pessoas em situação de vulnerabilidade. 11.b Até 2020, aumentar substancialmente o número de cidades e assentamentos humanos adotando e implementando políticas e planos integrados para a inclusão, a eficiência dos recursos, mitigação e adaptação à mudança do clima, a resiliência a desastres; e desenvolver e implementar, de acordo com o Marco de Sendai para a Redução do Risco de Desastres 2015-2030, o gerenciamento holístico do risco de desastres em todos os níveis. 12.2 Até 2030, alcançar gestão sustentável e uso eficiente dos recursos naturais. 13.3 Melhorar a educação, aumentar a conscientização e a capacidade humana e institucional sobre mitigação global do clima, adaptação, redução de impacto, e alerta precoce à mudança do clima 13.1 Reforçar a resiliência e a capacidade de adaptação a riscos relacionados ao clima e às catástrofes naturais em todos os países.13.b Promover mecanismos para a criação de capacidades para o planejamento relacionado à mudança do clima e à gestão eficaz, nos países menos desenvolvidos, inclusive com foco em mulheres, jovens, comunidades locais e marginalizadas"]
["2041 - Geologia, Mineração e transformação Mineral","Ministério de Minas e Energia","0038 - Ampliar as oportunidades de exploração mineral","043A - Detalhar o potencial exploratório de 20 áreas de relevante interesse mineral por meio de levantamentos metalogenéticos nas Províncias Minerais Brasileiras","Área detalhada (unidade)","8  9  12","Objetivo 8. Promover o crescimento econômico sustentado, inclusivo e sustentável, emprego pleno e produtivo e trabalho decente para todos Objetivo 9. Construir infraestruturas resilientes, promover a industrialização inclusiva e sustentável e fomentar a inovação Objetivo 12. Assegurar padrões de produção e de consumo sustentáveis","8.1    8.3    8.4    9.1    9.2    9.5    12.2    "," 8.1 Sustentar o crescimento econômico per capita, de acordo com as circunstâncias nacionais e, em particular, pelo menos um crescimento anual de 7% do produto interno bruto nos países de menor desenvolvimento relativo. 8.3 Promover políticas orientadas para o desenvolvimento, que apoiem as atividades produtivas, geração de emprego decente, empreendedorismo, criatividade e inovação, e incentivar a formalização e o crescimento das micro, pequenas e médias empresas, inclusive por meio do acesso a serviços financeiros. 8.4 Melhorar progressivamente, até 2030, a eficiência dos recursos globais no consumo e na produção, e empenhar-se para dissociar o crescimento econômico da degradação ambiental, de acordo com o \"Plano Decenal de Programas Sobre Produção e Consumo Sustentáveis”, com os países desenvolvidos assumindo a liderança. 9.1 Desenvolver infraestrutura de qualidade, confiável, sustentável e robusta, incluindo infraestrutura regional e transfronteiriça, para apoiar o desenvolvimento econômico e o bem-estar humano, com foco no acesso equitativo e a preços acessíveis para todos. 9.2 Promover a industrialização inclusiva e sustentável e, até 2030, aumentar significativamente a participação da indústria no emprego e no produto interno bruto, de acordo com as circunstâncias nacionais, e dobrar sua participação nos países de menor desenvolvimento relativo. 9.5 Fortalecer a pesquisa científica, melhorar as capacidades tecnológicas de setores industriais em todos os países, particularmente nos países em desenvolvimento, inclusive, até 2030, incentivando a inovação e aumentando substancialmente o número de trabalhadores de pesquisa e desenvolvimento por milhão de pessoas e os gastos público e privado em pesquisa e desenvolvimento.  12.2 Até 2030, alcançar gestão sustentável e uso eficiente dos recursos naturais. "]
["2041 - Geologia, Mineração e transformação Mineral","Ministério de Minas e Energia","0038 - Ampliar as oportunidades de exploração mineral","043B - Identificar e ampliar o conhecimento de 9 áreas com potencial para minerais estratégicos","Área detalhada (unidade)","2-8-9-11-12","Objetivo 2. Acabar com a fome, alcançar a segurança alimentar e melhoria da nutrição e promover a agricultura sustentável  Objetivo 8. Promover o crescimento econômico sustentado, inclusivo e sustentável, emprego pleno e produtivo e trabalho decente para todos Objetivo 9. Construir infraestruturas resilientes, promover a industrialização inclusiva e sustentável e fomentar a inovação Objetivo 11. Tornar as cidades e os assentamentos humanos inclusivos, seguros, resilientes e sustentáveis Objetivo 12. Assegurar padrões de produção e de consumo sustentáveis","2.4    8.1    8.3    8.4    9.1    9.2   9.5   11.1   11.3   12.2"," 2.4 Até 2030, garantir sistemas sustentáveis de produção de alimentos e implementar práticas agrícolas robustas, que aumentem a produtividade e a produção, que ajudem a manter os ecossistemas, que fortaleçam a capacidade de adaptação às mudança do clima, às condições meteorológicas extremas, secas, inundações e outros desastres, e que melhorem progressivamente a qualidade da terra e do solo. 8.1 Sustentar o crescimento econômico per capita, de acordo com as circunstâncias nacionais e, em particular, pelo menos um crescimento anual de 7% do produto interno bruto nos países de menor desenvolvimento relativo. 8.3 Promover políticas orientadas para o desenvolvimento, que apoiem as atividades produtivas, geração de emprego decente, empreendedorismo, criatividade e inovação, e incentivar a formalização e o crescimento das micro, pequenas e médias empresas, inclusive por meio do acesso a serviços financeiros.  8.4 Melhorar progressivamente, até 2030, a eficiência dos recursos globais no consumo e na produção, e empenhar-se para dissociar o crescimento econômico da degradação ambiental, de acordo com o \"Plano Decenal de Programas Sobre Produção e Consumo Sustentáveis”, com os países desenvolvidos assumindo a liderança.  9.1 Desenvolver infraestrutura de qualidade, confiável, sustentável e robusta, incluindo infraestrutura regional e transfronteiriça, para apoiar o desenvolvimento econômico e o bem-estar humano, com foco no acesso equitativo e a preços acessíveis para todos. 9.2 Promover a industrialização inclusiva e sustentável e, até 2030, aumentar significativamente a participação da indústria no emprego e no produto interno bruto, de acordo com as circunstâncias nacionais, e dobrar sua participação nos países de menor desenvolvimento relativo. 9.5 Fortalecer a pesquisa científica, melhorar as capacidades tecnológicas de setores industriais em todos os países, particularmente nos países em desenvolvimento, inclusive, até 2030, incentivando a inovação e aumentando substancialmente o número de trabalhadores de pesquisa e desenvolvimento por milhão de pessoas e os gastos público e privado em pesquisa e desenvolvimento.11.1 Até 2030, garantir o acesso de todos a habitação segura, adequada e a preço acessível, e aos serviços básicos e urbanizar as favelas.11.3 Até 2030, aumentar a urbanização inclusiva e sustentável, e a capacidade para o planejamento e a gestão participativa, integrada e sustentável dos assentamentos humanos, em todos os países.  12.2 Até 2030, alcançar gestão sustentável e uso eficiente dos recursos naturais. "]
["2041 - Geologia, Mineração e transformação Mineral","Ministério de Minas e Energia","0032 - Ampliar o conhecimento geológico","000U - Elaborar 12 mapas de geodiversidade para dar suporte ao planejamento, gestão e ordenamento territorial da União, Estados e Municípios.","Mapa divulgado (unidade)","1-2-3-6-7-8-9-11-12-13-14-15","Objetivo 1. Acabar com a pobreza em todas as suas formas, em todos os lugares  Objetivo 2. Acabar com a fome, alcançar a segurança alimentar e melhoria da nutrição e promover a agricultura sustentável Objetivo 3. Assegurar uma vida saudável e promover o bem-estar para todos, em todas as idades Objetivo 6. Assegurar a disponibilidade e gestão sustentável da água e saneamento para todos Objetivo 7. Assegurar o acesso confiável, sustentável, moderno e a preço acessível à energia para todos Objetivo 8. Promover o crescimento econômico sustentado, inclusivo e sustentável, emprego pleno e produtivo e trabalho decente para todos Objetivo 9. Construir infraestruturas resilientes, promover a industrialização inclusiva e sustentável e fomentar a inovação Objetivo 11. Tornar as cidades e os assentamentos humanos inclusivos, seguros, resilientes e sustentáveis Objetivo 12. Assegurar padrões de produção e de consumo sustentáveis Objetivo 13. Tomar medidas urgentes para combater a mudança do clima e seus impactos Objetivo 14. Conservação e uso sustentável dos oceanos, dos mares e dos recursos marinhos para o desenvolvimento sustentável Objetivo 15. Proteger, recuperar e promover o uso sustentável dos ecossistemas terrestres, gerir de forma sustentável as florestas, combater a desertificação, deter e reverter a degradação da terra e deter a perda de biodiversidade ","1.5    2.4    3.9   6.4    6.5     6.6    6b    7.2    8.4    9.1    9.2    9.5    11.1    11.3  11.4      11.5    11.7   11.B    12.2   12.4    12.8   12.b     13.3    14.1    14.2   15.1     ","1.5 Até 2030, construir a resiliência dos pobres e daqueles em situação de vulnerabilidade, e reduzir a exposição e vulnerabilidade destes a eventos extremos relacionados com o clima e outros choques e desastres econômicos, sociais e ambientais  2.4 Até 2030, garantir sistemas sustentáveis de produção de alimentos e implementar práticas agrícolas robustas, que aumentem a produtividade e a produção, que ajudem a manter os ecossistemas, que fortaleçam a capacidade de adaptação às mudança do clima, às condições meteorológicas extremas, secas, inundações e outros desastres, e que melhorem progressivamente a qualidade da terra e do solo. 3.9 Até 2030, reduzir substancialmente o número de mortes e doenças por produtos químicos perigosos e por contaminação e poluição do ar, da água e do solo. 6.4 Até 2030, aumentar substancialmente a eficiência do uso da água em todos os setores e assegurar retiradas sustentáveis e o abastecimento de água doce para enfrentar a escassez de água, e reduzir substancialmente o número de pessoas que sofrem com a escassez de água. 6.5 Até 2030, implementar a gestão integrada dos recursos hídricos em todos os níveis, inclusive via cooperação transfronteiriça, conforme apropriado.   6.6 Até 2020, proteger e restaurar ecossistemas relacionados com a água, incluindo montanhas, florestas, zonas úmidas, rios, aquíferos e lagos. 6.b Apoiar e fortalecer a participação das comunidades locais, para melhorar a gestão da água e do saneamento.   7.2 Até 2030, aumentar substancialmente a participação de energias renováveis na matriz energética global . 8.4 Melhorar progressivamente, até 2030, a eficiência dos recursos globais no consumo e na produção, e empenhar-se para dissociar o crescimento econômico da degradação ambiental, de acordo com o \"Plano Decenal de Programas Sobre Produção e Consumo Sustentáveis”, com os países desenvolvidos assumindo a liderança.  9.1 Desenvolver infraestrutura de qualidade, confiável, sustentável e robusta, incluindo infraestrutura regional e transfronteiriça, para apoiar o desenvolvimento econômico e o bem-estar humano, com foco no acesso equitativo e a preços acessíveis para todos. 9.2 Promover a industrialização inclusiva e sustentável e, até 2030, aumentar significativamente a participação da indústria no emprego e no produto interno bruto, de acordo com as circunstâncias nacionais, e dobrar sua participação nos países de menor desenvolvimento relativo. 9.5 Fortalecer a pesquisa científica, melhorar as capacidades tecnológicas de setores industriais em todos os países, particularmente nos países em desenvolvimento, inclusive, até 2030, incentivando a inovação e aumentando substancialmente o número de trabalhadores de pesquisa e desenvolvimento por milhão de pessoas e os gastos público e privado em pesquisa e desenvolvimento. 11.1 Até 2030, garantir o acesso de todos a habitação segura, adequada e a preço acessível, e aos serviços básicos e urbanizar as favelas. 11.3 Até 2030, aumentar a urbanização inclusiva e sustentável, e a capacidade para o planejamento e a gestão participativa, integrada e sustentável dos assentamentos humanos, em todos os países. 11.4 Fortalecer esforços para proteger e salvaguardar o patrimônio cultural e natural do mundo.   11.5 Até 2030, reduzir significativamente o número de mortes e o número de pessoas afetadas por catástrofes e diminuir substancialmente as perdas econômicas diretas causadas por elas em relação ao produto interno bruto global, incluindo os desastres relacionados à água, com o foco em proteger os pobres e as pessoas em situação de vulnerabilidade.  11.7 Até 2030, proporcionar o acesso universal a espaços públicos seguros, inclusivos, acessíveis e verdes, em particular para as mulheres e crianças, pessoas idosas e pessoas com deficiência.  11.b Até 2020, aumentar substancialmente o número de cidades e assentamentos humanos adotando e implementando políticas e planos integrados para a inclusão, a eficiência dos recursos, mitigação e adaptação à mudança do clima, a resiliência a desastres; e desenvolver e implementar, de acordo com o Marco de Sendai para a Redução do Risco de Desastres 2015-2030, o gerenciamento holístico do risco de desastres em todos os níveis. 12.2 Até 2030, alcançar gestão sustentável e uso eficiente dos recursos naturais. 12.4 Até 2020, alcançar o manejo ambientalmente adequado dos produtos químicos e de todos os resíduos, ao longo de todo o ciclo de vida destes, de acordo com os marcos internacionalmente acordados, e reduzir significativamente a liberação destes para o ar, água e solo, para minimizar seus impactos negativos sobre a saúde humana e o meio ambiente. 12.8 Até 2030, garantir que as pessoas, em todos os lugares, tenham informação relevante e conscientização sobre o desenvolvimento sustentável e estilos de vida em harmonia com a natureza. 12.b Desenvolver e implementar ferramentas para monitorar os impactos do desenvolvimento sustentável para o turismo sustentável que gera empregos, promove a cultura e os produtos locais .    13.3 Melhorar a educação, aumentar a conscientização e a capacidade humana e institucional sobre mitigação global do clima, adaptação, redução de impacto, e alerta precoce à mudança do clima. 14.1 Até 2025, prevenir e reduzir significativamente a poluição marinha de todos os tipos, especialmente a advinda de atividades terrestres, incluindo detritos marinhos e a poluição por nutrientes. 14.2 Até 2020, gerir de forma sustentável e proteger os ecossistemas marinhos e costeiros para evitar impactos adversos significativos, inclusive por meio do reforço da sua capacidade de resiliência, e tomar medidas para a sua restauração, a fim de assegurar oceanos saudáveis e produtivos. 15.1 Até 2020, assegurar a conservação, recuperação e uso sustentável de ecossistemas terrestres e de água doce interiores e seus serviços, em especial, florestas, zonas úmidas, montanhas e terras áridas, em conformidade com as obrigações decorrentes dos acordos internacionais"]
["2041 - Geologia, Mineração e transformação Mineral","Ministério de Minas e Energia","0032 - Ampliar o conhecimento geológico","0016 - Realizar levantamentos aerogeofísicos em 134 mil km2 de áreas territoriais brasileiras emersas.","Área levantada (mil km2)","8  9  12","Objetivo 8. Promover o crescimento econômico sustentado, inclusivo e sustentável, emprego pleno e produtivo e trabalho decente para todos Objetivo 9. Construir infraestruturas resilientes, promover a industrialização inclusiva e sustentável e fomentar a inovação Objetivo 12. Assegurar padrões de produção e de consumo sustentáveis ","8.1    8.3    8.4    9.1    9.2    9.5    12.2    "," 8.1 Sustentar o crescimento econômico per capita, de acordo com as circunstâncias nacionais e, em particular, pelo menos um crescimento anual de 7% do produto interno bruto nos países de menor desenvolvimento relativo. 8.3 Promover políticas orientadas para o desenvolvimento, que apoiem as atividades produtivas, geração de emprego decente, empreendedorismo, criatividade e inovação, e incentivar a formalização e o crescimento das micro, pequenas e médias empresas, inclusive por meio do acesso a serviços financeiros. 8.4 Melhorar progressivamente, até 2030, a eficiência dos recursos globais no consumo e na produção, e empenhar-se para dissociar o crescimento econômico da degradação ambiental, de acordo com o \"Plano Decenal de Programas Sobre Produção e Consumo Sustentáveis”, com os países desenvolvidos assumindo a liderança. 9.1 Desenvolver infraestrutura de qualidade, confiável, sustentável e robusta, incluindo infraestrutura regional e transfronteiriça, para apoiar o desenvolvimento econômico e o bem-estar humano, com foco no acesso equitativo e a preços acessíveis para todos. 9.2 Promover a industrialização inclusiva e sustentável e, até 2030, aumentar significativamente a participação da indústria no emprego e no produto interno bruto, de acordo com as circunstâncias nacionais, e dobrar sua participação nos países de menor desenvolvimento relativo. 9.5 Fortalecer a pesquisa científica, melhorar as capacidades tecnológicas de setores industriais em todos os países, particularmente nos países em desenvolvimento, inclusive, até 2030, incentivando a inovação e aumentando substancialmente o número de trabalhadores de pesquisa e desenvolvimento por milhão de pessoas e os gastos público e privado em pesquisa e desenvolvimento.  12.2 Até 2030, alcançar gestão sustentável e uso eficiente dos recursos naturais. "]
["2041 - Geologia, Mineração e transformação Mineral","Ministério de Minas e Energia","0032 - Ampliar o conhecimento geológico","0439 - Realizar levantamentos geológicos em 300 mil km2 de áreas territoriais brasileiras emersas.","Área levantada (mil km2)","1-2-3-6-7-8-9-11-12-13-14-15","Objetivo 1. Acabar com a pobreza em todas as suas formas, em todos os lugares  Objetivo 2. Acabar com a fome, alcançar a segurança alimentar e melhoria da nutrição e promover a agricultura sustentável Objetivo 3. Assegurar uma vida saudável e promover o bem-estar para todos, em todas as idades Objetivo 6. Assegurar a disponibilidade e gestão sustentável da água e saneamento para todos Objetivo 7. Assegurar o acesso confiável, sustentável, moderno e a preço acessível à energia para todos Objetivo 8. Promover o crescimento econômico sustentado, inclusivo e sustentável, emprego pleno e produtivo e trabalho decente para todos Objetivo 9. Construir infraestruturas resilientes, promover a industrialização inclusiva e sustentável e fomentar a inovação Objetivo 11. Tornar as cidades e os assentamentos humanos inclusivos, seguros, resilientes e sustentáveis Objetivo 12. Assegurar padrões de produção e de consumo sustentáveis Objetivo 13. Tomar medidas urgentes para combater a mudança do clima e seus impactos Objetivo 14. Conservação e uso sustentável dos oceanos, dos mares e dos recursos marinhos para o desenvolvimento sustentável Objetivo 15. Proteger, recuperar e promover o uso sustentável dos ecossistemas terrestres, gerir de forma sustentável as florestas, combater a desertificação, deter e reverter a degradação da terra e deter a perda de biodiversidade ","1.5    2.4    3.9   6.1    6.3    6.4    6.5     6.6    6b    7.2    8.1    8.3    8.4   8.9     9.1    9.2    9.5    11.1    11.3  11.4      11.5    11.7      12.2    12.8   12.b     13.3    14.1     15.1     ","1.5 Até 2030, construir a resiliência dos pobres e daqueles em situação de vulnerabilidade, e reduzir a exposição e vulnerabilidade destes a eventos extremos relacionados com o clima e outros choques e desastres econômicos, sociais e ambientais  2.4 Até 2030, garantir sistemas sustentáveis de produção de alimentos e implementar práticas agrícolas robustas, que aumentem a produtividade e a produção, que ajudem a manter os ecossistemas, que fortaleçam a capacidade de adaptação às mudança do clima, às condições meteorológicas extremas, secas, inundações e outros desastres, e que melhorem progressivamente a qualidade da terra e do solo. 3.9 Até 2030, reduzir substancialmente o número de mortes e doenças por produtos químicos perigosos e por contaminação e poluição do ar, da água e do solo.   6.1 Até 2030, alcançar o acesso universal e equitativo à água potável, segura e acessível para todos. 6.3 Até 2030, melhorar a qualidade da água, reduzindo a poluição, eliminando despejo e minimizando a liberação de produtos químicos e materiais perigosos, reduzindo à metade a proporção de águas residuais não tratadas, e aumentando substancialmente a reciclagem e reutilização segura globalmente. 6.4 Até 2030, aumentar substancialmente a eficiência do uso da água em todos os setores e assegurar retiradas sustentáveis e o abastecimento de água doce para enfrentar a escassez de água, e reduzir substancialmente o número de pessoas que sofrem com a escassez de água. 6.5 Até 2030, implementar a gestão integrada dos recursos hídricos em todos os níveis, inclusive via cooperação transfronteiriça, conforme apropriado.   6.6 Até 2020, proteger e restaurar ecossistemas relacionados com a água, incluindo montanhas, florestas, zonas úmidas, rios, aquíferos e lagos. 6.b Apoiar e fortalecer a participação das comunidades locais, para melhorar a gestão da água e do saneamento.   7.2 Até 2030, aumentar substancialmente a participação de energias renováveis na matriz energética global.    8.1 Sustentar o crescimento econômico per capita, de acordo com as circunstâncias nacionais e, em particular, pelo menos um crescimento anual de 7% do produto interno bruto nos países de menor desenvolvimento relativo.   8.3 Promover políticas orientadas para o desenvolvimento, que apoiem as atividades produtivas, geração de emprego decente, empreendedorismo, criatividade e inovação, e incentivar a formalização e o crescimento das micro, pequenas e médias empresas, inclusive por meio do acesso a serviços financeiros. 8.4 Melhorar progressivamente, até 2030, a eficiência dos recursos globais no consumo e na produção, e empenhar-se para dissociar o crescimento econômico da degradação ambiental, de acordo com o \"Plano Decenal de Programas Sobre Produção e Consumo Sustentáveis”, com os países desenvolvidos assumindo a liderança. 8.9 Até 2030, conceber e implementar políticas para promover o turismo sustentável, que gera empregos, promove a cultura e os produtos locais 9.1 Desenvolver infraestrutura de qualidade, confiável, sustentável e robusta, incluindo infraestrutura regional e transfronteiriça, para apoiar o desenvolvimento econômico e o bem-estar humano, com foco no acesso equitativo e a preços acessíveis para todos. 9.2 Promover a industrialização inclusiva e sustentável e, até 2030, aumentar significativamente a participação da indústria no emprego e no produto interno bruto, de acordo com as circunstâncias nacionais, e dobrar sua participação nos países de menor desenvolvimento relativo. 9.5 Fortalecer a pesquisa científica, melhorar as capacidades tecnológicas de setores industriais em todos os países, particularmente nos países em desenvolvimento, inclusive, até 2030, incentivando a inovação e aumentando substancialmente o número de trabalhadores de pesquisa e desenvolvimento por milhão de pessoas e os gastos público e privado em pesquisa e desenvolvimento. 11.1 Até 2030, garantir o acesso de todos a habitação segura, adequada e a preço acessível, e aos serviços básicos e urbanizar as favelas. 11.3 Até 2030, aumentar a urbanização inclusiva e sustentável, e a capacidade para o planejamento e a gestão participativa, integrada e sustentável dos assentamentos humanos, em todos os países. 11.4 Fortalecer esforços para proteger e salvaguardar o patrimônio cultural e natural do mundo.   11.5 Até 2030, reduzir significativamente o número de mortes e o número de pessoas afetadas por catástrofes e diminuir substancialmente as perdas econômicas diretas causadas por elas em relação ao produto interno bruto global, incluindo os desastres relacionados à água, com o foco em proteger os pobres e as pessoas em situação de vulnerabilidade.  11.7 Até 2030, proporcionar o acesso universal a espaços públicos seguros, inclusivos, acessíveis e verdes, em particular para as mulheres e crianças, pessoas idosas e pessoas com deficiência.   12.2 Até 2030, alcançar gestão sustentável e uso eficiente dos recursos naturais. 12.8 Até 2030, garantir que as pessoas, em todos os lugares, tenham informação relevante e conscientização sobre o desenvolvimento sustentável e estilos de vida em harmonia com a natureza. 12.b Desenvolver e implementar ferramentas para monitorar os impactos do desenvolvimento sustentável para o turismo sustentável que gera empregos, promove a cultura e os produtos locais .    13.3 Melhorar a educação, aumentar a conscientização e a capacidade humana e institucional sobre mitigação global do clima, adaptação, redução de impacto, e alerta precoce à mudança do clima. 14.1 Até 2025, prevenir e reduzir significativamente a poluição marinha de todos os tipos, especialmente a advinda de atividades terrestres, incluindo detritos marinhos e a poluição por nutrientes. 15.1 Até 2020, assegurar a conservação, recuperação e uso sustentável de ecossistemas terrestres e de água doce interiores e seus serviços, em especial, florestas, zonas úmidas, montanhas e terras áridas, em conformidade com as obrigações decorrentes dos acordos internacionais"]
["2041 - Geologia, Mineração e transformação Mineral","Ministério de Minas e Energia","0032 - Ampliar o conhecimento geológico","0017 - Realizar levantamentos geoquímicos em 728 mil km2 como suporte na avaliação do meio físico e da água.","Área levantada (mil km2)","1-2-3-6-8-9-11-12-15","Objetivo 1. Acabar com a pobreza em todas as suas formas, em todos os lugares  Objetivo 2. Acabar com a fome, alcançar a segurança alimentar e melhoria da nutrição e promover a agricultura sustentável Objetivo 3. Assegurar uma vida saudável e promover o bem-estar para todos, em todas as idades Objetivo 6. Assegurar a disponibilidade e gestão sustentável da água e saneamento para todos Objetivo 8. Promover o crescimento econômico sustentado, inclusivo e sustentável, emprego pleno e produtivo e trabalho decente para todos Objetivo 9. Construir infraestruturas resilientes, promover a industrialização inclusiva e sustentável e fomentar a inovação Objetivo 11. Tornar as cidades e os assentamentos humanos inclusivos, seguros, resilientes e sustentáveis Objetivo 12. Assegurar padrões de produção e de consumo sustentáveis  Objetivo 15. Proteger, recuperar e promover o uso sustentável dos ecossistemas terrestres, gerir de forma sustentável as florestas, combater a desertificação, deter e reverter a degradação da terra e deter a perda de biodiversidade ","1.5    2.4    3.9   6.1    6.3    6.4    6.5     6.6    6b     8.1    8.3    8.4     9.1    9.2    9.5    11.1    11.3   11.5    12.2    12.4    15.1     ","1.5 Até 2030, construir a resiliência dos pobres e daqueles em situação de vulnerabilidade, e reduzir a exposição e vulnerabilidade destes a eventos extremos relacionados com o clima e outros choques e desastres econômicos, sociais e ambientais  2.4 Até 2030, garantir sistemas sustentáveis de produção de alimentos e implementar práticas agrícolas robustas, que aumentem a produtividade e a produção, que ajudem a manter os ecossistemas, que fortaleçam a capacidade de adaptação às mudança do clima, às condições meteorológicas extremas, secas, inundações e outros desastres, e que melhorem progressivamente a qualidade da terra e do solo. 3.9 Até 2030, reduzir substancialmente o número de mortes e doenças por produtos químicos perigosos e por contaminação e poluição do ar, da água e do solo.   6.1 Até 2030, alcançar o acesso universal e equitativo à água potável, segura e acessível para todos. 6.3 Até 2030, melhorar a qualidade da água, reduzindo a poluição, eliminando despejo e minimizando a liberação de produtos químicos e materiais perigosos, reduzindo à metade a proporção de águas residuais não tratadas, e aumentando substancialmente a reciclagem e reutilização segura globalmente. 6.4 Até 2030, aumentar substancialmente a eficiência do uso da água em todos os setores e assegurar retiradas sustentáveis e o abastecimento de água doce para enfrentar a escassez de água, e reduzir substancialmente o número de pessoas que sofrem com a escassez de água. 6.5 Até 2030, implementar a gestão integrada dos recursos hídricos em todos os níveis, inclusive via cooperação transfronteiriça, conforme apropriado.   6.6 Até 2020, proteger e restaurar ecossistemas relacionados com a água, incluindo montanhas, florestas, zonas úmidas, rios, aquíferos e lagos. 6.b Apoiar e fortalecer a participação das comunidades locais, para melhorar a gestão da água e do saneamento.   8.1 Sustentar o crescimento econômico per capita, de acordo com as circunstâncias nacionais e, em particular, pelo menos um crescimento anual de 7% do produto interno bruto nos países de menor desenvolvimento relativo.   8.3 Promover políticas orientadas para o desenvolvimento, que apoiem as atividades produtivas, geração de emprego decente, empreendedorismo, criatividade e inovação, e incentivar a formalização e o crescimento das micro, pequenas e médias empresas, inclusive por meio do acesso a serviços financeiros. 8.4 Melhorar progressivamente, até 2030, a eficiência dos recursos globais no consumo e na produção, e empenhar-se para dissociar o crescimento econômico da degradação ambiental, de acordo com o \"Plano Decenal de Programas Sobre Produção e Consumo Sustentáveis”, com os países desenvolvidos assumindo a liderança. 9.1 Desenvolver infraestrutura de qualidade, confiável, sustentável e robusta, incluindo infraestrutura regional e transfronteiriça, para apoiar o desenvolvimento econômico e o bem-estar humano, com foco no acesso equitativo e a preços acessíveis para todos. 9.2 Promover a industrialização inclusiva e sustentável e, até 2030, aumentar significativamente a participação da indústria no emprego e no produto interno bruto, de acordo com as circunstâncias nacionais, e dobrar sua participação nos países de menor desenvolvimento relativo. 9.3 Aumentar o acesso das pequenas indústrias e outras empresas, particularmente em países em desenvolvimento, aos serviços financeiros, incluindo crédito acessível e sua integração em cadeias de valor e mercados.9.5 Fortalecer a pesquisa científica, melhorar as capacidades tecnológicas de setores industriais em todos os países, particularmente nos países em desenvolvimento, inclusive, até 2030, incentivando a inovação e aumentando substancialmente o número de trabalhadores de pesquisa e desenvolvimento por milhão de pessoas e os gastos público e privado em pesquisa e desenvolvimento. 11.1 Até 2030, garantir o acesso de todos a habitação segura, adequada e a preço acessível, e aos serviços básicos e urbanizar as favelas. 11.3 Até 2030, aumentar a urbanização inclusiva e sustentável, e a capacidade para o planejamento e a gestão participativa, integrada e sustentável dos assentamentos humanos, em todos os países. 12.4 Até 2020, alcançar o manejo ambientalmente adequado dos produtos químicos e de todos os resíduos, ao longo de todo o ciclo de vida destes, de acordo com os marcos internacionalmente acordados, e reduzir significativamente a liberação destes para o ar, água e solo, para minimizar seus impactos negativos sobre a saúde humana e o meio ambiente   11.5 Até 2030, reduzir significativamente o número de mortes e o número de pessoas afetadas por catástrofes e diminuir substancialmente as perdas econômicas diretas causadas por elas em relação ao produto interno bruto global, incluindo os desastres relacionados à água, com o foco em proteger os pobres e as pessoas em situação de vulnerabilidade.    12.2 Até 2030, alcançar gestão sustentável e uso eficiente dos recursos naturais. 15.1 Até 2020, assegurar a conservação, recuperação e uso sustentável de ecossistemas terrestres e de água doce interiores e seus serviços, em especial, florestas, zonas úmidas, montanhas e terras áridas, em conformidade com as obrigações decorrentes dos acordos internacionais"]
["2046 - Oceanos, Zona costeira e Antártica","Ministério de Minas e Energia","0991 - Pesquisar o potencial mineral e biológico","046V - Cumprir 80% da 1ª etapa do Plano de Trabalho de Exploração de Crostas Cobaltíferas na Elevação do Rio Grande.","Percentual executado (%)","8-9-12-14","Objetivo 8. Promover o crescimento econômico sustentado, inclusivo e sustentável, emprego pleno e produtivo e trabalho decente para todos Objetivo 9. Construir infraestruturas resilientes, promover a industrialização inclusiva e sustentável e fomentar a inovação  Objetivo 12. Assegurar padrões de produção e de consumo sustentáveis Objetivo 14. Conservação e uso sustentável dos oceanos, dos mares e dos recursos marinhos para o desenvolvimento sustentável ","8.1    8.3    8.4    9.1    9.2   9.3    9.5   12.2   14.2   14.1  14a","  8.1 Sustentar o crescimento econômico per capita, de acordo com as circunstâncias nacionais e, em particular, pelo menos um crescimento anual de 7% do produto interno bruto nos países de menor desenvolvimento relativo.   8.3 Promover políticas orientadas para o desenvolvimento, que apoiem as atividades produtivas, geração de emprego decente, empreendedorismo, criatividade e inovação, e incentivar a formalização e o crescimento das micro, pequenas e médias empresas, inclusive por meio do acesso a serviços financeiros. 8.4 Melhorar progressivamente, até 2030, a eficiência dos recursos globais no consumo e na produção, e empenhar-se para dissociar o crescimento econômico da degradação ambiental, de acordo com o \"Plano Decenal de Programas Sobre Produção e Consumo Sustentáveis”, com os países desenvolvidos assumindo a liderança. 9.1 Desenvolver infraestrutura de qualidade, confiável, sustentável e robusta, incluindo infraestrutura regional e transfronteiriça, para apoiar o desenvolvimento econômico e o bem-estar humano, com foco no acesso equitativo e a preços acessíveis para todos. 9.2 Promover a industrialização inclusiva e sustentável e, até 2030, aumentar significativamente a participação da indústria no emprego e no produto interno bruto, de acordo com as circunstâncias nacionais, e dobrar sua participação nos países de menor desenvolvimento relativo.   9.3 Aumentar o acesso das pequenas indústrias e outras empresas, particularmente em países em desenvolvimento, aos serviços financeiros, incluindo crédito acessível e sua integração em cadeias de valor e mercados.  9.5 Fortalecer a pesquisa científica, melhorar as capacidades tecnológicas de setores industriais em todos os países, particularmente nos países em desenvolvimento, inclusive, até 2030, incentivando a inovação e aumentando substancialmente o número de trabalhadores de pesquisa e desenvolvimento por milhão de pessoas e os gastos público e privado em pesquisa e desenvolvimento.  12.2 Até 2030, alcançar gestão sustentável e uso eficiente dos recursos naturais.  14.1 Até 2025, prevenir e reduzir significativamente a poluição marinha de todos os tipos, especialmente a advinda de atividades terrestres, incluindo detritos marinhos e a poluição por nutrientes. 14.2 Até 2020, gerir de forma sustentável e proteger os ecossistemas marinhos e costeiros para evitar impactos adversos significativos, inclusive por meio do reforço da sua capacidade de resiliência, e tomar medidas para a sua restauração, a fim de assegurar oceanos saudáveis e produtivos. 14.a Aumentar o conhecimento científico, desenvolver capacidades de pesquisa e transferir tecnologia marinha, tendo em conta os critérios e orientações sobre a Transferência de Tecnologia Marinha da Comissão Oceanográfica Intergovernamental, a fim de melhorar a saúde dos oceanos e aumentar a contribuição da biodiversidade marinha para o desenvolvimento dos países em desenvolvimento, em particular os pequenos Estados insulares em desenvolvimento e os países de menor desenvolvimento relativo"]
["2046 - Oceanos, Zona costeira e Antártica","Ministério de Minas e Energia","0991 - Pesquisar o potencial mineral e biológico","046U - Realizar 6 levantamentos geológicos, geofísicos, biológicos e oceanográficos.","Levantamento realizado (unidade)","8-9-12-14","Objetivo 8. Promover o crescimento econômico sustentado, inclusivo e sustentável, emprego pleno e produtivo e trabalho decente para todos Objetivo 9. Construir infraestruturas resilientes, promover a industrialização inclusiva e sustentável e fomentar a inovação  Objetivo 12. Assegurar padrões de produção e de consumo sustentáveis Objetivo 14. Conservação e uso sustentável dos oceanos, dos mares e dos recursos marinhos para o desenvolvimento sustentável ","8.1    8.3    8.4    9.1    9.2   9.3    9.5   12.2   14.2   14.1  14a  14.5","  8.1 Sustentar o crescimento econômico per capita, de acordo com as circunstâncias nacionais e, em particular, pelo menos um crescimento anual de 7% do produto interno bruto nos países de menor desenvolvimento relativo.   8.3 Promover políticas orientadas para o desenvolvimento, que apoiem as atividades produtivas, geração de emprego decente, empreendedorismo, criatividade e inovação, e incentivar a formalização e o crescimento das micro, pequenas e médias empresas, inclusive por meio do acesso a serviços financeiros. 8.4 Melhorar progressivamente, até 2030, a eficiência dos recursos globais no consumo e na produção, e empenhar-se para dissociar o crescimento econômico da degradação ambiental, de acordo com o \"Plano Decenal de Programas Sobre Produção e Consumo Sustentáveis”, com os países desenvolvidos assumindo a liderança. 9.1 Desenvolver infraestrutura de qualidade, confiável, sustentável e robusta, incluindo infraestrutura regional e transfronteiriça, para apoiar o desenvolvimento econômico e o bem-estar humano, com foco no acesso equitativo e a preços acessíveis para todos. 9.2 Promover a industrialização inclusiva e sustentável e, até 2030, aumentar significativamente a participação da indústria no emprego e no produto interno bruto, de acordo com as circunstâncias nacionais, e dobrar sua participação nos países de menor desenvolvimento relativo.   9.3 Aumentar o acesso das pequenas indústrias e outras empresas, particularmente em países em desenvolvimento, aos serviços financeiros, incluindo crédito acessível e sua integração em cadeias de valor e mercados.  9.5 Fortalecer a pesquisa científica, melhorar as capacidades tecnológicas de setores industriais em todos os países, particularmente nos países em desenvolvimento, inclusive, até 2030, incentivando a inovação e aumentando substancialmente o número de trabalhadores de pesquisa e desenvolvimento por milhão de pessoas e os gastos público e privado em pesquisa e desenvolvimento.  12.2 Até 2030, alcançar gestão sustentável e uso eficiente dos recursos naturais.  14.1 Até 2025, prevenir e reduzir significativamente a poluição marinha de todos os tipos, especialmente a advinda de atividades terrestres, incluindo detritos marinhos e a poluição por nutrientes. 14.2 Até 2020, gerir de forma sustentável e proteger os ecossistemas marinhos e costeiros para evitar impactos adversos significativos, inclusive por meio do reforço da sua capacidade de resiliência, e tomar medidas para a sua restauração, a fim de assegurar oceanos saudáveis e produtivos. "]
["2084 - recursos Hídricos","Ministério de Minas e Energia","1024 - Ampliar e difundir o conhecimento sobre águas subterrâneas ","040Q - Ampliar a base de dados do Sistema de Informações de Águas Subterrâneas (SIAGAS) por meio da inclusão de 44.000 novos poços","Poço de água cadastrado (mil unidades)","1-2-3-6-7-8-9-11-12-15","Objetivo 1. Acabar com a pobreza em todas as suas formas, em todos os lugares  Objetivo 2. Acabar com a fome, alcançar a segurança alimentar e melhoria da nutrição e promover a agricultura sustentável Objetivo 3. Assegurar uma vida saudável e promover o bem-estar para todos, em todas as idades Objetivo 6. Assegurar a disponibilidade e gestão sustentável da água e saneamento para todos Objetivo 7. Assegurar o acesso confiável, sustentável, moderno e a preço acessível à energia para todos Objetivo 8. Promover o crescimento econômico sustentado, inclusivo e sustentável, emprego pleno e produtivo e trabalho decente para todos Objetivo 9. Construir infraestruturas resilientes, promover a industrialização inclusiva e sustentável e fomentar a inovação Objetivo 11. Tornar as cidades e os assentamentos humanos inclusivos, seguros, resilientes e sustentáveis Objetivo 12. Assegurar padrões de produção e de consumo sustentáveis Objetivo 15. Proteger, recuperar e promover o uso sustentável dos ecossistemas terrestres, gerir de forma sustentável as florestas, combater a desertificação, deter e reverter a degradação da terra e deter a perda de biodiversidade ","1.5    2.4    3.9   6.1    6.3    6.4    6.5     6.6    6b    7.2    8.1    8.3    8.4   9.1    9.2    9.5    11.1    11.3  11.5     12.2    15.1     15.3","1.5 Até 2030, construir a resiliência dos pobres e daqueles em situação de vulnerabilidade, e reduzir a exposição e vulnerabilidade destes a eventos extremos relacionados com o clima e outros choques e desastres econômicos, sociais e ambientais  2.4 Até 2030, garantir sistemas sustentáveis de produção de alimentos e implementar práticas agrícolas robustas, que aumentem a produtividade e a produção, que ajudem a manter os ecossistemas, que fortaleçam a capacidade de adaptação às mudança do clima, às condições meteorológicas extremas, secas, inundações e outros desastres, e que melhorem progressivamente a qualidade da terra e do solo. 3.9 Até 2030, reduzir substancialmente o número de mortes e doenças por produtos químicos perigosos e por contaminação e poluição do ar, da água e do solo. 6.1 Até 2030, alcançar o acesso universal e equitativo à água potável, segura e acessível para todos.  6.3 Até 2030, melhorar a qualidade da água, reduzindo a poluição, eliminando despejo e minimizando a liberação de produtos químicos e materiais perigosos, reduzindo à metade a proporção de águas residuais não tratadas, e aumentando substancialmente a reciclagem e reutilização segura globalmente.   6.4 Até 2030, aumentar substancialmente a eficiência do uso da água em todos os setores e assegurar retiradas sustentáveis e o abastecimento de água doce para enfrentar a escassez de água, e reduzir substancialmente o número de pessoas que sofrem com a escassez de água. 6.5 Até 2030, implementar a gestão integrada dos recursos hídricos em todos os níveis, inclusive via cooperação transfronteiriça, conforme apropriado.   6.6 Até 2020, proteger e restaurar ecossistemas relacionados com a água, incluindo montanhas, florestas, zonas úmidas, rios, aquíferos e lagos. 6.b Apoiar e fortalecer a participação das comunidades locais, para melhorar a gestão da água e do saneamento.   7.2 Até 2030, aumentar substancialmente a participação de energias renováveis na matriz energética global. 8.1 Sustentar o crescimento econômico per capita, de acordo com as circunstâncias nacionais e, em particular, pelo menos um crescimento anual de 7% do produto interno bruto nos países de menor desenvolvimento relativo. 8.3 Promover políticas orientadas para o desenvolvimento, que apoiem as atividades produtivas, geração de emprego decente, empreendedorismo, criatividade e inovação, e incentivar a formalização e o crescimento das micro, pequenas e médias empresas, inclusive por meio do acesso a serviços financeiros.   8.4 Melhorar progressivamente, até 2030, a eficiência dos recursos globais no consumo e na produção, e empenhar-se para dissociar o crescimento econômico da degradação ambiental, de acordo com o \"Plano Decenal de Programas Sobre Produção e Consumo Sustentáveis”, com os países desenvolvidos assumindo a liderança.  9.1 Desenvolver infraestrutura de qualidade, confiável, sustentável e robusta, incluindo infraestrutura regional e transfronteiriça, para apoiar o desenvolvimento econômico e o bem-estar humano, com foco no acesso equitativo e a preços acessíveis para todos. 9.2 Promover a industrialização inclusiva e sustentável e, até 2030, aumentar significativamente a participação da indústria no emprego e no produto interno bruto, de acordo com as circunstâncias nacionais, e dobrar sua participação nos países de menor desenvolvimento relativo. 9.5 Fortalecer a pesquisa científica, melhorar as capacidades tecnológicas de setores industriais em todos os países, particularmente nos países em desenvolvimento, inclusive, até 2030, incentivando a inovação e aumentando substancialmente o número de trabalhadores de pesquisa e desenvolvimento por milhão de pessoas e os gastos público e privado em pesquisa e desenvolvimento. 11.1 Até 2030, garantir o acesso de todos a habitação segura, adequada e a preço acessível, e aos serviços básicos e urbanizar as favelas. 11.3 Até 2030, aumentar a urbanização inclusiva e sustentável, e a capacidade para o planejamento e a gestão participativa, integrada e sustentável dos assentamentos humanos, em todos os países. 11.5 Até 2030, reduzir significativamente o número de mortes e o número de pessoas afetadas por catástrofes e diminuir substancialmente as perdas econômicas diretas causadas por elas em relação ao produto interno bruto global, incluindo os desastres relacionados à água, com o foco em proteger os pobres e as pessoas em situação de vulnerabilidade.  12.2 Até 2030, alcançar gestão sustentável e uso eficiente dos recursos naturais.  15.1 Até 2020, assegurar a conservação, recuperação e uso sustentável de ecossistemas terrestres e de água doce interiores e seus serviços, em especial, florestas, zonas úmidas, montanhas e terras áridas, em conformidade com as obrigações decorrentes dos acordos internacionais. 15.3 Até 2030, combater a desertificação, e restaurar a terra e o solo degradado, incluindo terrenos afetados pela desertificação, secas e inundações, e lutar para alcançar um mundo neutro em termos de degradação do solo"]
["2084 - recursos Hídricos","Ministério de Minas e Energia","1024 - Ampliar e difundir o conhecimento sobre águas subterrâneas ","040P - Ampliar a Rede Nacional Integrada de Monitoramento das Águas Subterrâneas (RIMAS) com a inclusão de 280 novos poços","Poço de água monitorado (unidade)","1-2-3-6-7-8-9-11-12-15","Objetivo 1. Acabar com a pobreza em todas as suas formas, em todos os lugares  Objetivo 2. Acabar com a fome, alcançar a segurança alimentar e melhoria da nutrição e promover a agricultura sustentável Objetivo 3. Assegurar uma vida saudável e promover o bem-estar para todos, em todas as idades Objetivo 6. Assegurar a disponibilidade e gestão sustentável da água e saneamento para todos Objetivo 7. Assegurar o acesso confiável, sustentável, moderno e a preço acessível à energia para todos Objetivo 8. Promover o crescimento econômico sustentado, inclusivo e sustentável, emprego pleno e produtivo e trabalho decente para todos Objetivo 9. Construir infraestruturas resilientes, promover a industrialização inclusiva e sustentável e fomentar a inovação Objetivo 11. Tornar as cidades e os assentamentos humanos inclusivos, seguros, resilientes e sustentáveis Objetivo 12. Assegurar padrões de produção e de consumo sustentáveis Objetivo 15. Proteger, recuperar e promover o uso sustentável dos ecossistemas terrestres, gerir de forma sustentável as florestas, combater a desertificação, deter e reverter a degradação da terra e deter a perda de biodiversidade ","1.5    2.4    3.9   6.1    6.3    6.4    6.5     6.6    6b    7.2    8.1    8.3    8.4   9.1    9.2    9.5    11.1    11.3  11.5     12.2    15.1     15.3","1.5 Até 2030, construir a resiliência dos pobres e daqueles em situação de vulnerabilidade, e reduzir a exposição e vulnerabilidade destes a eventos extremos relacionados com o clima e outros choques e desastres econômicos, sociais e ambientais  2.4 Até 2030, garantir sistemas sustentáveis de produção de alimentos e implementar práticas agrícolas robustas, que aumentem a produtividade e a produção, que ajudem a manter os ecossistemas, que fortaleçam a capacidade de adaptação às mudança do clima, às condições meteorológicas extremas, secas, inundações e outros desastres, e que melhorem progressivamente a qualidade da terra e do solo. 3.9 Até 2030, reduzir substancialmente o número de mortes e doenças por produtos químicos perigosos e por contaminação e poluição do ar, da água e do solo. 6.1 Até 2030, alcançar o acesso universal e equitativo à água potável, segura e acessível para todos.  6.3 Até 2030, melhorar a qualidade da água, reduzindo a poluição, eliminando despejo e minimizando a liberação de produtos químicos e materiais perigosos, reduzindo à metade a proporção de águas residuais não tratadas, e aumentando substancialmente a reciclagem e reutilização segura globalmente.   6.4 Até 2030, aumentar substancialmente a eficiência do uso da água em todos os setores e assegurar retiradas sustentáveis e o abastecimento de água doce para enfrentar a escassez de água, e reduzir substancialmente o número de pessoas que sofrem com a escassez de água. 6.5 Até 2030, implementar a gestão integrada dos recursos hídricos em todos os níveis, inclusive via cooperação transfronteiriça, conforme apropriado.   6.6 Até 2020, proteger e restaurar ecossistemas relacionados com a água, incluindo montanhas, florestas, zonas úmidas, rios, aquíferos e lagos. 6.b Apoiar e fortalecer a participação das comunidades locais, para melhorar a gestão da água e do saneamento.   7.2 Até 2030, aumentar substancialmente a participação de energias renováveis na matriz energética global. 8.1 Sustentar o crescimento econômico per capita, de acordo com as circunstâncias nacionais e, em particular, pelo menos um crescimento anual de 7% do produto interno bruto nos países de menor desenvolvimento relativo. 8.3 Promover políticas orientadas para o desenvolvimento, que apoiem as atividades produtivas, geração de emprego decente, empreendedorismo, criatividade e inovação, e incentivar a formalização e o crescimento das micro, pequenas e médias empresas, inclusive por meio do acesso a serviços financeiros.   8.4 Melhorar progressivamente, até 2030, a eficiência dos recursos globais no consumo e na produção, e empenhar-se para dissociar o crescimento econômico da degradação ambiental, de acordo com o \"Plano Decenal de Programas Sobre Produção e Consumo Sustentáveis”, com os países desenvolvidos assumindo a liderança.  9.1 Desenvolver infraestrutura de qualidade, confiável, sustentável e robusta, incluindo infraestrutura regional e transfronteiriça, para apoiar o desenvolvimento econômico e o bem-estar humano, com foco no acesso equitativo e a preços acessíveis para todos. 9.2 Promover a industrialização inclusiva e sustentável e, até 2030, aumentar significativamente a participação da indústria no emprego e no produto interno bruto, de acordo com as circunstâncias nacionais, e dobrar sua participação nos países de menor desenvolvimento relativo. 9.5 Fortalecer a pesquisa científica, melhorar as capacidades tecnológicas de setores industriais em todos os países, particularmente nos países em desenvolvimento, inclusive, até 2030, incentivando a inovação e aumentando substancialmente o número de trabalhadores de pesquisa e desenvolvimento por milhão de pessoas e os gastos público e privado em pesquisa e desenvolvimento. 11.1 Até 2030, garantir o acesso de todos a habitação segura, adequada e a preço acessível, e aos serviços básicos e urbanizar as favelas. 11.3 Até 2030, aumentar a urbanização inclusiva e sustentável, e a capacidade para o planejamento e a gestão participativa, integrada e sustentável dos assentamentos humanos, em todos os países. 11.5 Até 2030, reduzir significativamente o número de mortes e o número de pessoas afetadas por catástrofes e diminuir substancialmente as perdas econômicas diretas causadas por elas em relação ao produto interno bruto global, incluindo os desastres relacionados à água, com o foco em proteger os pobres e as pessoas em situação de vulnerabilidade.  12.2 Até 2030, alcançar gestão sustentável e uso eficiente dos recursos naturais.  15.1 Até 2020, assegurar a conservação, recuperação e uso sustentável de ecossistemas terrestres e de água doce interiores e seus serviços, em especial, florestas, zonas úmidas, montanhas e terras áridas, em conformidade com as obrigações decorrentes dos acordos internacionais. 15.3 Até 2030, combater a desertificação, e restaurar a terra e o solo degradado, incluindo terrenos afetados pela desertificação, secas e inundações, e lutar para alcançar um mundo neutro em termos de degradação do solo"]
["2084 - recursos Hídricos","Ministério de Minas e Energia","1024 - Ampliar e difundir o conhecimento sobre águas subterrâneas ","040R - Elaborar 20 mapas de água subterrânea (diversas escalas) em ambiência regional, nacional e internacional, com base no desenvolvimento de pesquisas e estudos hidrogeológicos","Mapa divulgado (unidade)","1-2-3-6-7-8-9-11-12-15","Objetivo 1. Acabar com a pobreza em todas as suas formas, em todos os lugares  Objetivo 2. Acabar com a fome, alcançar a segurança alimentar e melhoria da nutrição e promover a agricultura sustentável Objetivo 3. Assegurar uma vida saudável e promover o bem-estar para todos, em todas as idades Objetivo 6. Assegurar a disponibilidade e gestão sustentável da água e saneamento para todos Objetivo 7. Assegurar o acesso confiável, sustentável, moderno e a preço acessível à energia para todos Objetivo 8. Promover o crescimento econômico sustentado, inclusivo e sustentável, emprego pleno e produtivo e trabalho decente para todos Objetivo 9. Construir infraestruturas resilientes, promover a industrialização inclusiva e sustentável e fomentar a inovação Objetivo 11. Tornar as cidades e os assentamentos humanos inclusivos, seguros, resilientes e sustentáveis Objetivo 12. Assegurar padrões de produção e de consumo sustentáveis Objetivo 15. Proteger, recuperar e promover o uso sustentável dos ecossistemas terrestres, gerir de forma sustentável as florestas, combater a desertificação, deter e reverter a degradação da terra e deter a perda de biodiversidade ","1.5    2.4    3.9   6.1    6.3    6.4    6.5     6.6    6b    7.2    8.1    8.3    8.4   9.1    9.2    9.5    11.1    11.3  11.5     12.2    15.1     15.3","1.5 Até 2030, construir a resiliência dos pobres e daqueles em situação de vulnerabilidade, e reduzir a exposição e vulnerabilidade destes a eventos extremos relacionados com o clima e outros choques e desastres econômicos, sociais e ambientais  2.4 Até 2030, garantir sistemas sustentáveis de produção de alimentos e implementar práticas agrícolas robustas, que aumentem a produtividade e a produção, que ajudem a manter os ecossistemas, que fortaleçam a capacidade de adaptação às mudança do clima, às condições meteorológicas extremas, secas, inundações e outros desastres, e que melhorem progressivamente a qualidade da terra e do solo. 3.9 Até 2030, reduzir substancialmente o número de mortes e doenças por produtos químicos perigosos e por contaminação e poluição do ar, da água e do solo. 6.1 Até 2030, alcançar o acesso universal e equitativo à água potável, segura e acessível para todos.  6.3 Até 2030, melhorar a qualidade da água, reduzindo a poluição, eliminando despejo e minimizando a liberação de produtos químicos e materiais perigosos, reduzindo à metade a proporção de águas residuais não tratadas, e aumentando substancialmente a reciclagem e reutilização segura globalmente.   6.4 Até 2030, aumentar substancialmente a eficiência do uso da água em todos os setores e assegurar retiradas sustentáveis e o abastecimento de água doce para enfrentar a escassez de água, e reduzir substancialmente o número de pessoas que sofrem com a escassez de água. 6.5 Até 2030, implementar a gestão integrada dos recursos hídricos em todos os níveis, inclusive via cooperação transfronteiriça, conforme apropriado.   6.6 Até 2020, proteger e restaurar ecossistemas relacionados com a água, incluindo montanhas, florestas, zonas úmidas, rios, aquíferos e lagos. 6.b Apoiar e fortalecer a participação das comunidades locais, para melhorar a gestão da água e do saneamento.   7.2 Até 2030, aumentar substancialmente a participação de energias renováveis na matriz energética global. 8.1 Sustentar o crescimento econômico per capita, de acordo com as circunstâncias nacionais e, em particular, pelo menos um crescimento anual de 7% do produto interno bruto nos países de menor desenvolvimento relativo. 8.3 Promover políticas orientadas para o desenvolvimento, que apoiem as atividades produtivas, geração de emprego decente, empreendedorismo, criatividade e inovação, e incentivar a formalização e o crescimento das micro, pequenas e médias empresas, inclusive por meio do acesso a serviços financeiros.   8.4 Melhorar progressivamente, até 2030, a eficiência dos recursos globais no consumo e na produção, e empenhar-se para dissociar o crescimento econômico da degradação ambiental, de acordo com o \"Plano Decenal de Programas Sobre Produção e Consumo Sustentáveis”, com os países desenvolvidos assumindo a liderança.  9.1 Desenvolver infraestrutura de qualidade, confiável, sustentável e robusta, incluindo infraestrutura regional e transfronteiriça, para apoiar o desenvolvimento econômico e o bem-estar humano, com foco no acesso equitativo e a preços acessíveis para todos. 9.2 Promover a industrialização inclusiva e sustentável e, até 2030, aumentar significativamente a participação da indústria no emprego e no produto interno bruto, de acordo com as circunstâncias nacionais, e dobrar sua participação nos países de menor desenvolvimento relativo. 9.5 Fortalecer a pesquisa científica, melhorar as capacidades tecnológicas de setores industriais em todos os países, particularmente nos países em desenvolvimento, inclusive, até 2030, incentivando a inovação e aumentando substancialmente o número de trabalhadores de pesquisa e desenvolvimento por milhão de pessoas e os gastos público e privado em pesquisa e desenvolvimento. 11.1 Até 2030, garantir o acesso de todos a habitação segura, adequada e a preço acessível, e aos serviços básicos e urbanizar as favelas. 11.3 Até 2030, aumentar a urbanização inclusiva e sustentável, e a capacidade para o planejamento e a gestão participativa, integrada e sustentável dos assentamentos humanos, em todos os países. 11.5 Até 2030, reduzir significativamente o número de mortes e o número de pessoas afetadas por catástrofes e diminuir substancialmente as perdas econômicas diretas causadas por elas em relação ao produto interno bruto global, incluindo os desastres relacionados à água, com o foco em proteger os pobres e as pessoas em situação de vulnerabilidade.  12.2 Até 2030, alcançar gestão sustentável e uso eficiente dos recursos naturais.  15.1 Até 2020, assegurar a conservação, recuperação e uso sustentável de ecossistemas terrestres e de água doce interiores e seus serviços, em especial, florestas, zonas úmidas, montanhas e terras áridas, em conformidade com as obrigações decorrentes dos acordos internacionais. 15.3 Até 2030, combater a desertificação, e restaurar a terra e o solo degradado, incluindo terrenos afetados pela desertificação, secas e inundações, e lutar para alcançar um mundo neutro em termos de degradação do solo"]
["2084 - recursos Hídricos","Ministério de Minas e Energia","1024 - Ampliar e difundir o conhecimento sobre águas subterrâneas ","040S - Implantar e desenvolver 3 estudos hidrológicos integrados visando o entendimento da dinâmica hídrica chuva-água subterrânea-água superficial, utilizando novas tecnologias de coleta e medições","Estudo realizado (unidade)","1-2-3-6-7-8-9-11-12-15","Objetivo 1. Acabar com a pobreza em todas as suas formas, em todos os lugares  Objetivo 2. Acabar com a fome, alcançar a segurança alimentar e melhoria da nutrição e promover a agricultura sustentável Objetivo 3. Assegurar uma vida saudável e promover o bem-estar para todos, em todas as idades Objetivo 6. Assegurar a disponibilidade e gestão sustentável da água e saneamento para todos Objetivo 7. Assegurar o acesso confiável, sustentável, moderno e a preço acessível à energia para todos Objetivo 8. Promover o crescimento econômico sustentado, inclusivo e sustentável, emprego pleno e produtivo e trabalho decente para todos Objetivo 9. Construir infraestruturas resilientes, promover a industrialização inclusiva e sustentável e fomentar a inovação Objetivo 11. Tornar as cidades e os assentamentos humanos inclusivos, seguros, resilientes e sustentáveis Objetivo 12. Assegurar padrões de produção e de consumo sustentáveis Objetivo 15. Proteger, recuperar e promover o uso sustentável dos ecossistemas terrestres, gerir de forma sustentável as florestas, combater a desertificação, deter e reverter a degradação da terra e deter a perda de biodiversidade ","1.5    2.4    3.9   6.1    6.3    6.4    6.5     6.6    6b    7.2    8.1    8.3    8.4   9.1    9.2    9.5    11.1    11.3  11.5     12.2    15.1     15.3","1.5 Até 2030, construir a resiliência dos pobres e daqueles em situação de vulnerabilidade, e reduzir a exposição e vulnerabilidade destes a eventos extremos relacionados com o clima e outros choques e desastres econômicos, sociais e ambientais  2.4 Até 2030, garantir sistemas sustentáveis de produção de alimentos e implementar práticas agrícolas robustas, que aumentem a produtividade e a produção, que ajudem a manter os ecossistemas, que fortaleçam a capacidade de adaptação às mudança do clima, às condições meteorológicas extremas, secas, inundações e outros desastres, e que melhorem progressivamente a qualidade da terra e do solo. 3.9 Até 2030, reduzir substancialmente o número de mortes e doenças por produtos químicos perigosos e por contaminação e poluição do ar, da água e do solo. 6.1 Até 2030, alcançar o acesso universal e equitativo à água potável, segura e acessível para todos.  6.3 Até 2030, melhorar a qualidade da água, reduzindo a poluição, eliminando despejo e minimizando a liberação de produtos químicos e materiais perigosos, reduzindo à metade a proporção de águas residuais não tratadas, e aumentando substancialmente a reciclagem e reutilização segura globalmente.   6.4 Até 2030, aumentar substancialmente a eficiência do uso da água em todos os setores e assegurar retiradas sustentáveis e o abastecimento de água doce para enfrentar a escassez de água, e reduzir substancialmente o número de pessoas que sofrem com a escassez de água. 6.5 Até 2030, implementar a gestão integrada dos recursos hídricos em todos os níveis, inclusive via cooperação transfronteiriça, conforme apropriado.   6.6 Até 2020, proteger e restaurar ecossistemas relacionados com a água, incluindo montanhas, florestas, zonas úmidas, rios, aquíferos e lagos. 6.b Apoiar e fortalecer a participação das comunidades locais, para melhorar a gestão da água e do saneamento.   7.2 Até 2030, aumentar substancialmente a participação de energias renováveis na matriz energética global. 8.1 Sustentar o crescimento econômico per capita, de acordo com as circunstâncias nacionais e, em particular, pelo menos um crescimento anual de 7% do produto interno bruto nos países de menor desenvolvimento relativo. 8.3 Promover políticas orientadas para o desenvolvimento, que apoiem as atividades produtivas, geração de emprego decente, empreendedorismo, criatividade e inovação, e incentivar a formalização e o crescimento das micro, pequenas e médias empresas, inclusive por meio do acesso a serviços financeiros.   8.4 Melhorar progressivamente, até 2030, a eficiência dos recursos globais no consumo e na produção, e empenhar-se para dissociar o crescimento econômico da degradação ambiental, de acordo com o \"Plano Decenal de Programas Sobre Produção e Consumo Sustentáveis”, com os países desenvolvidos assumindo a liderança.  9.1 Desenvolver infraestrutura de qualidade, confiável, sustentável e robusta, incluindo infraestrutura regional e transfronteiriça, para apoiar o desenvolvimento econômico e o bem-estar humano, com foco no acesso equitativo e a preços acessíveis para todos. 9.2 Promover a industrialização inclusiva e sustentável e, até 2030, aumentar significativamente a participação da indústria no emprego e no produto interno bruto, de acordo com as circunstâncias nacionais, e dobrar sua participação nos países de menor desenvolvimento relativo. 9.5 Fortalecer a pesquisa científica, melhorar as capacidades tecnológicas de setores industriais em todos os países, particularmente nos países em desenvolvimento, inclusive, até 2030, incentivando a inovação e aumentando substancialmente o número de trabalhadores de pesquisa e desenvolvimento por milhão de pessoas e os gastos público e privado em pesquisa e desenvolvimento. 11.1 Até 2030, garantir o acesso de todos a habitação segura, adequada e a preço acessível, e aos serviços básicos e urbanizar as favelas. 11.3 Até 2030, aumentar a urbanização inclusiva e sustentável, e a capacidade para o planejamento e a gestão participativa, integrada e sustentável dos assentamentos humanos, em todos os países. 11.5 Até 2030, reduzir significativamente o número de mortes e o número de pessoas afetadas por catástrofes e diminuir substancialmente as perdas econômicas diretas causadas por elas em relação ao produto interno bruto global, incluindo os desastres relacionados à água, com o foco em proteger os pobres e as pessoas em situação de vulnerabilidade.  12.2 Até 2030, alcançar gestão sustentável e uso eficiente dos recursos naturais.  15.1 Até 2020, assegurar a conservação, recuperação e uso sustentável de ecossistemas terrestres e de água doce interiores e seus serviços, em especial, florestas, zonas úmidas, montanhas e terras áridas, em conformidade com as obrigações decorrentes dos acordos internacionais. 15.3 Até 2030, combater a desertificação, e restaurar a terra e o solo degradado, incluindo terrenos afetados pela desertificação, secas e inundações, e lutar para alcançar um mundo neutro em termos de degradação do solo"]
["1145 - Fortalecer a participação ativa e promover os interesses do Brasil nos debates acerca de temas globais, tais como direitos humanos, temas sociais, desenvolvimento sustentável, energia e meio ambiente, em instâncias bilaterais, regionais, multilaterais e multissetoriais.","Ministério das Relações Exteriores","1150 - Estruturar e consolidar a cooperação internacional","04PS - Desenvolver projetos internacionais de cooperação geocientífica","Meta não quantificável","4-6-7-9-12-14-17","Objetivo 4.  Assegurar a educação inclusiva e equitativa e de qualidade, e promover oportunidades de aprendizagem ao longo da vida para todos    Objetivo 6. Assegurar a disponibilidade e gestão sustentável da água e saneamento para todos Objetivo 7. Assegurar o acesso confiável, sustentável, moderno e a preço acessível à energia para todos Objetivo 9. Construir infraestruturas resilientes, promover a industrialização inclusiva e sustentável e fomentar a inovação Objetivo 12. Assegurar padrões de produção e de consumo sustentáveis  Objetivo 14. Conservação e uso sustentável dos oceanos, dos mares e dos recursos marinhos para o desenvolvimento sustentável Objetivo 17. Fortalecer os meios de implementação e revitalizar a parceria global para o desenvolvimento sustentável","4b    6a       6.5    7a    9a    12a      14a       17.7        17.16","4.b Até 2020 substancialmente ampliar globalmente o número de bolsas de estudo disponíveis para os países em desenvolvimento, em particular, os países de menor desenvolvimento relativo, pequenos Estados insulares em desenvolvimento e os países africanos, para o ensino superior, incluindo programas de formação profissional, de tecnologia da informação e da comunicação, programas técnicos, de engenharia e científicos em países desenvolvidos e outros países em desenvolvimento  6.a Até 2030, ampliar a cooperação internacional e o apoio ao desenvolvimento de capacidades para os países em desenvolvimento em atividades e programas relacionados a água e ao saneamento, incluindo a coleta de água, a dessalinização, a eficiência no uso da água, o tratamento de efluentes, a reciclagem e as tecnologias de reuso.  6.5 Até 2030, implementar a gestão integrada dos recursos hídricos em todos os níveis, inclusive via cooperação transfronteiriça, conforme apropriado. 7.a Até 2030, reforçar a cooperação internacional para facilitar o acesso a pesquisa e tecnologias de energia limpa, incluindo energias renováveis, eficiência energética e tecnologias de combustíveis fósseis avançadas e mais limpas, e promover o investimento em infraestrutura de energia e em tecnologias de energia limpa. 9.a Facilitar o desenvolvimento de infraestrutura sustentável e robusta em países em desenvolvimento, por meio de maior apoio financeiro, tecnológico e técnico aos países africanos, aos países de menor desenvolvimento relativo, aos países em desenvolvimento sem litoral e aos pequenos Estados insulares em desenvolvimento. 12.a Apoiar países em desenvolvimento para que fortaleçam suas capacidades científicas e tecnológicas em rumo à padrões mais sustentáveis de produção e consumo. 14.a Aumentar o conhecimento científico, desenvolver capacidades de pesquisa e transferir tecnologia marinha, tendo em conta os critérios e orientações sobre a Transferência de Tecnologia Marinha da Comissão Oceanográfica Intergovernamental, a fim de melhorar a saúde dos oceanos e aumentar a contribuição da biodiversidade marinha para o desenvolvimento dos países em desenvolvimento, em particular os pequenos Estados insulares em desenvolvimento e os países de menor desenvolvimento relativo  17.7 Promover o desenvolvimento, a transferência, a disseminação e a difusão de tecnologias ambientalmente corretas para os países em desenvolvimento, em condições favoráveis, inclusive em condições concessionais e preferenciais, conforme mutuamente acordado. 17.16 Reforçar a parceria global para o desenvolvimento sustentável complementada por parcerias multissetorias, que mobilizem e compartilhem conhecimento, experiência, tecnologia e recursos financeiros para apoiar a realização dos objetivos do desenvolvimento sustentável em todos os países, particularmente nos países em desenvolvimento"]

{"sheet":"Planilha1","index":1,"n_rows":0,"n_cols":0,"rows_kept":0,"cut":false,"hidden":false,"merged":[]}

{"sheet":"Não rela!","index":2,"n_rows":2,"n_cols":1,"rows_kept":2,"cut":false,"hidden":true,"merged":[]}
[]
["Não exclua"]

{"sheet":"Testes","index":3,"n_rows":2744,"n_cols":11,"rows_kept":2744,"cut":false,"hidden":true,"merged":[]}
[]
[]
[]
[]
["Rótulos de Linha","Contagem de Código Metas PPA",null,null,null,"Rótulos de Linha","Contagem de Código Iniciativas PPA",null,null,"Rótulos de Linha","Contagem de Órgão responsável pelo Objetivo"]
["1.1",5,{"$f":"B6>1","v":true},null,null,"1.1",18,{"$f":"G6>1","v":true},null,"20000",6]
["03U4",1,{"$f":"B7>1","v":false},null,null,"04JH",1,{"$f":"G7>1","v":false},null,"Presidência da República",6]
["0400",1,false,null,null,"04JI",1,false,null,"20122",35]
["046Z",1,false,null,null,"04ML",1,false,null,"SPM",35]
["0470",1,false,null,null,"0513",1,false,null,"20129",160]
["04MX",1,false,null,null,"0515",1,false,null,"Sead",160]
["(vazio)",null,false,null,null,"0518",1,false,null,"20999",30]
["1.2",6,true,null,null,"051B",1,false,null,"SNJ",30]
["00SA",1,false,null,null,"051C",1,false,null,"22000",365]
["00W0",1,false,null,null,"051E",1,false,null,"Ministério da Agricultura, Pecuária e Abastecimento",365]
["03U4",1,false,null,null,"051S",1,false,null,"24000",443]
["0470",1,false,null,null,"0539",1,false,null,"Ministério da Ciência, tecnologia, inovações e Comunicações",443]
["04LS",1,false,null,null,"059P",1,false,null,"25000",42]
["04MY",1,false,null,null,"05TP",1,false,null,"Ministério da Fazenda",42]
["(vazio)",null,false,null,null,"05VE",1,false,null,"26000",124]
["1.3",22,true,null,null,"067Z",1,false,null,"Ministério da Educação",124]
["00FJ",1,false,null,null,"06J1",1,false,null,"28000",56]
["00IU",1,false,null,null,"07FA",1,false,null,"Ministério da Indústria, Comércio Exterior e Serviços",56]
["00J0",1,false,null,null,"07FC",1,false,null,"30000",98]
["00J1",1,false,null,null,"(vazio)",null,false,null,"Ministério da Justiça e Segurança Pública",98]
["00RI",1,false,null,null,"1.2",13,true,null,"32000",143]
["00RV",1,false,null,null,"04ML",1,false,null,"Ministério de Minas e Energia",143]
["00S1",1,false,null,null,"04ND",1,false,null,"35000",20]
["00S8",1,false,null,null,"0513",1,false,null,"Ministério das Relações Exteriores",20]
["00SV",1,false,null,null,"0515",1,false,null,"36000",106]
["00SW",1,false,null,null,"051B",1,false,null,"Ministério da Saúde",106]
["00SY",1,false,null,null,"051S",1,false,null,"37000",28]
["013I",1,false,null,null,"0537",1,false,null,"Ministério da Transparência, Fiscalização e Controle",28]
["013J",1,false,null,null,"0539",1,false,null,"39000",226]
["013L",1,false,null,null,"059P",1,false,null,"Ministério dos Transportes, Portos e Aviação Civil",226]
["013N",1,false,null,null,"067V",1,false,null,"40000",61]
["03U4",1,false,null,null,"067Z",1,false,null,"Ministério do Trabalho",61]
["049S",1,false,null,null,"07FA",1,false,null,"42000",246]
["049T",1,false,null,null,"07FC",1,false,null,"Ministério da Cultura",246]
["04LK",1,false,null,null,"(vazio)",null,false,null,"44000",791]
["04NJ",1,false,null,null,"1.3",30,true,null,"Ministério do Meio Ambiente",791]
["04NK",1,false,null,null,"00QQ",1,false,null,"47000",84]
["04NL",1,false,null,null,"00QS",1,false,null,"Ministério do Planejamento, Desenvolvimento e Gestão",84]
["(vazio)",null,false,null,null,"00RC",1,false,null,"51000",30]
["1.4",17,true,null,null,"00RF",1,false,null,"Ministério do Esporte",30]
["02MR",1,false,null,null,"01GL",1,false,null,"52000",68]
["03ZT",1,false,null,null,"01GO",1,false,null,"Ministério da Defesa",68]
["03ZU",1,false,null,null,"01GQ",1,false,null,"53000",148]
["03ZV",1,false,null,null,"01GR",1,false,null,"Ministério da Integração Nacional",148]
["03ZW",1,false,null,null,"01GS",1,false,null,"54000",10]
["03ZX",1,false,null,null,"01GV",1,false,null,"Ministério do Turismo",10]
["0402",1,false,null,null,"01GX",1,false,null,"55000",114]
["04JL",1,false,null,null,"01GY",1,false,null,"Ministério do Desenvolvimento Social e Combate à Fome",114]
["04JP",1,false,null,null,"01GZ",1,false,null,"56000",112]
["04K2",1,false,null,null,"04FK",1,false,null,"Ministério das Cidades",112]
["04LD",1,false,null,null,"0515",1,false,null,"81000",158]
["04LX",1,false,null,null,"058R",1,false,null,"Ministério dos Direitos Humanos",158]
["04MX",1,false,null,null,"058V",1,false,null,"(vazio)"]
["04OC",1,false,null,null,"059M",1,false,null,"(vazio)"]
["04OD",1,false,null,null,"059N",1,false,null,"Total Geral",3704]
["04OE",1,false,null,null,"063M",1,false]
["04OF",1,false,null,null,"063U",1,false]
["(vazio)",null,false,null,null,"0640",1,false]
["1.5",14,true,null,null,"0641",1,false]
["008Y",1,false,null,null,"0642",1,false]
["009C",1,false,null,null,"06AN",1,false]
["009E",1,false,null,null,"06AO",1,false]
["01LL",1,false,null,null,"06AP",1,false]
["01LM",1,false,null,null,"06AQ",1,false]
["01LN",1,false,null,null,"06AS",1,false]
["01Y1",1,{"$f":"B71>1","v":false},null,null,"06AT",1,{"$f":"G71>1","v":false}]
["01Y6",1,false,null,null,"(vazio)",null,false]
["01Y7",1,false,null,null,"1.4",33,true]
["040F",1,false,null,null,"015M",1,false]
["0437",1,false,null,null,"04G2",1,false]
["0438",1,false,null,null,"04JK",1,false]
["044A",1,false,null,null,"04JL",1,false]
["04SY",1,false,null,null,"04JM",1,false]
["(vazio)",null,false,null,null,"04JN",1,false]
["1.a",7,true,null,null,"04JP",1,false]
["00T2",1,false,null,null,"050Q",1,false]
["02MT",1,false,null,null,"050U",1,false]
["03U4",1,false,null,null,"050W",1,false]
["044E",1,false,null,null,"050X",1,false]
["044F",1,false,null,null,"050Y",1,false]
["049Q",1,false,null,null,"050Z",1,false]
["04JO",1,false,null,null,"0515",1,false]
["(vazio)",null,false,null,null,"0518",1,false]
["1.b",4,true,null,null,"051F",1,false]
["044E",1,false,null,null,"051P",1,false]
["044F",1,false,null,null,"0539",1,false]
["(vazio)",null,false,null,null,"053D",1,false]
["04FB",1,false,null,null,"053E",1,false]
["04PN",1,false,null,null,"053M",1,false]
["10.1",2,true,null,null,"05QN",1,false]
["03U4",1,false,null,null,"063W",1,false]
["04MY",1,false,null,null,"067F",1,false]
["(vazio)",null,false,null,null,"067Q",1,false]
["10.2",26,true,null,null,"06CB",1,false]
["00FZ",1,false,null,null,"06CC",1,false]
["00S8",1,false,null,null,"06CD",1,false]
["00U5",1,false,null,null,"06CE",1,false]
["03U4",1,false,null,null,"06CI",1,false]
["03UR",1,false,null,null,"06CJ",1,false]
["0400",1,false,null,null,"06H7",1,false]
["044E",1,false,null,null,"06UP",1,false]
["044F",1,false,null,null,"(vazio)",null,false]
["04ES",1,false,null,null,"1.5",58,true]
["04GQ",1,false,null,null,"00FF",1,false]
["04JK",1,false,null,null,"00FG",1,false]
["04JU",1,false,null,null,"00FH",1,false]
["04JZ",1,false,null,null,"023J",1,false]
["04K2",1,false,null,null,"023K",1,false]
["04KN",1,false,null,null,"04ME",1,false]
["04M0",1,false,null,null,"04MI",1,false]
["04M1",1,false,null,null,"04ML",1,false]
["04M7",1,false,null,null,"04MU",1,false]
["04M8",1,false,null,null,"04N5",1,false]
["04M9",1,false,null,null,"04N7",1,false]
["04MA",1,false,null,null,"04ND",1,false]
["04MB",1,false,null,null,"04NR",1,false]
["04PU",1,false,null,null,"04NT",1,false]
["04PV",1,false,null,null,"04QQ",1,false]
["04PW",1,false,null,null,"04QR",1,false]
["04SH",1,false,null,null,"04QT",1,false]
["(vazio)",null,false,null,null,"04QV",1,false]
["10.3",11,true,null,null,"04QW",1,false]
["02CY",1,false,null,null,"04QX",1,false]
["04IZ",1,false,null,null,"04QY",1,false]
["04J1",1,false,null,null,"04QZ",1,false]
["04J4",1,false,null,null,"04R0",1,false]
["04J5",1,false,null,null,"04R1",1,false]
["04JO",1,false,null,null,"04R2",1,false]
["04LG",1,false,null,null,"04R3",1,false]
["04MD",1,{"$f":"B135>1","v":false},null,null,"04R5",1,{"$f":"G135>1","v":false}]
["04MH",1,false,null,null,"04RN",1,false]
["04QA",1,false,null,null,"04TY",1,false]
["04SG",1,false,null,null,"04TZ",1,false]
["(vazio)",null,false,null,null,"050Z",1,false]
["10.4",1,false,null,null,"0511",1,false]
["04KC",1,false,null,null,"0513",1,false]
["(vazio)",null,false,null,null,"0515",1,false]
["10.5",4,true,null,null,"0517",1,false]
["049Z",1,false,null,null,"0527",1,false]
["04A0",1,false,null,null,"0529",1,false]
["04A1",1,false,null,null,"052A",1,false]
["04AV",1,false,null,null,"052L",1,false]
["(vazio)",null,false,null,null,"056A",1,false]
["10.6",4,true,null,null,"059P",1,false]
["04AV",1,false,null,null,"05CZ",1,false]
["04AX",1,false,null,null,"05GC",1,false]
["04R1",1,false,null,null,"05KY",1,false]
["04R2",1,false,null,null,"05KZ",1,false]
["10.7",1,false,null,null,"05LD",1,false]
["045U",1,false,null,null,"05Q4",1,false]
["(vazio)",null,false,null,null,"05Q7",1,false]
["10.a",null,false,null,null,"06BQ",1,false]
["(vazio)",null,false,null,null,"06CO",1,false]
["10.b",null,false,null,null,"06CP",1,false]
["(vazio)",null,false,null,null,"06CQ",1,false]
["10.c",null,false,null,null,"06CR",1,false]
["(vazio)",null,false,null,null,"06HU",1,false]
["11.1",11,true,null,null,"06PL",1,false]
["00FZ",1,false,null,null,"06VJ",1,false]
["00MN",1,false,null,null,"07FA",1,false]
["00UI",1,false,null,null,"07FC",1,false]
["00UT",1,false,null,null,"(vazio)",null,false]
["00UU",1,false,null,null,"1.a",8,true]
["00UW",1,false,null,null,"014N",1,false]
["03ZO",1,false,null,null,"0586",1,false]
["04JK",1,false,null,null,"05VN",1,false]
["04LP",1,false,null,null,"05Y3",1,false]
["04LU",1,false,null,null,"05Y4",1,false]
["04LV",1,false,null,null,"05YA",1,false]
["(vazio)",null,false,null,null,"(vazio)",null,false]
["11.2",9,true,null,null,"05NG",1,false]
["01QW",1,false,null,null,"05NI",1,false]
["01RS",1,false,null,null,"1.b",5,true]
["01S3",1,false,null,null,"050Q",1,false]
["01S4",1,false,null,null,"050W",1,false]
["03SX",1,false,null,null,"050Y",1,false]
["044F",1,false,null,null,"06CF",1,false]
["0499",1,false,null,null,"(vazio)",null,false]
["04JU",1,false,null,null,"05NF",1,false]
["04PX",1,false,null,null,"10.1",15,true]
["(vazio)",null,false,null,null,"04ML",1,false]
["11.3",9,true,null,null,"050Z",1,false]
["00MQ",1,false,null,null,"0511",1,false]
["01S5",1,false,null,null,"0513",1,false]
["01TD",1,false,null,null,"0515",1,false]
["03ZP",1,false,null,null,"0516",1,false]
["03ZQ",1,false,null,null,"051B",1,false]
["03ZR",1,false,null,null,"051P",1,false]
["041V",1,false,null,null,"051S",1,false]
["044F",1,false,null,null,"059P",1,false]
["04JU",1,false,null,null,"05Q5",1,false]
["(vazio)",null,false,null,null,"05Q8",1,false]
["11.4",8,true,null,null,"067T",1,false]
["03W6",1,{"$f":"B199>1","v":false},null,null,"067V",1,{"$f":"G199>1","v":false}]
["044F",1,false,null,null,"07FA",1,false]
["0453",1,false,null,null,"(vazio)",null,false]
["0454",1,false,null,null,"10.2",40,true]
["04JP",1,false,null,null,"04JA",1,false]
["04JQ",1,false,null,null,"04M7",1,false]
["04JS",1,false,null,null,"04ML",1,false]
["04JT",1,false,null,null,"050Z",1,false]
["(vazio)",null,false,null,null,"0513",1,false]
["11.5",7,true,null,null,"0515",1,false]
["009F",1,false,null,null,"0516",1,false]
["0437",1,false,null,null,"0517",1,false]
["0438",1,false,null,null,"051B",1,false]
["046I",1,false,null,null,"051C",1,false]
["046J",1,false,null,null,"058M",1,false]
["04C1",1,false,null,null,"058V",1,false]
["04EG",1,false,null,null,"059P",1,false]
["(vazio)",null,false,null,null,"05MY",1,false]
["11.6",11,true,null,null,"05N5",1,false]
["03ZR",1,false,null,null,"05RC",1,false]
["041X",1,false,null,null,"05RG",1,false]
["0423",1,false,null,null,"05TP",1,false]
["04DM",1,false,null,null,"05YE",1,false]
["04DS",1,false,null,null,"05YF",1,false]
["04DT",1,false,null,null,"05YJ",1,false]
["04DU",1,false,null,null,"05Z6",1,false]
["04DW",1,false,null,null,"05ZR",1,false]
["04DX",1,false,null,null,"065R",1,false]
["04LI",1,false,null,null,"065S",1,false]
["04S6",1,false,null,null,"06BR",1,false]
["(vazio)",null,false,null,null,"06GJ",1,false]
["11.7",11,true,null,null,"06GK",1,false]
["00GX",1,false,null,null,"06GL",1,false]
["00GY",1,false,null,null,"06GM",1,false]
["00H0",1,false,null,null,"06GN",1,false]
["03LR",1,false,null,null,"06GO",1,false]
["044E",1,false,null,null,"06GP",1,false]
["044F",1,false,null,null,"06HG",1,false]
["04GO",1,false,null,null,"06PY",1,false]
["04GP",1,false,null,null,"06PZ",1,false]
["04JK",1,false,null,null,"06QH",1,false]
["04JU",1,false,null,null,"06QL",1,false]
["04K2",1,false,null,null,"07FA",1,false]
["(vazio)",null,false,null,null,"07FB",1,false]
["11.a",18,true,null,null,"(vazio)",null,false]
["01TD",1,false,null,null,"10.3",19,true]
["02MY",1,false,null,null,"02US",1,false]
["02N0",1,false,null,null,"02UT",1,false]
["02N1",1,false,null,null,"02UU",1,false]
["02NG",1,false,null,null,"02UV",1,false]
["02W6",1,false,null,null,"02UW",1,false]
["03ZS",1,false,null,null,"02UX",1,false]
["03ZY",1,false,null,null,"02UZ",1,false]
["0404",1,false,null,null,"034F",1,false]
["044E",1,false,null,null,"04ML",1,false]
["044F",1,false,null,null,"05WV",1,false]
["049J",1,false,null,null,"05WX",1,false]
["049K",1,false,null,null,"062K",1,false]
["049L",1,false,null,null,"0646",1,false]
["049M",1,false,null,null,"067G",1,false]
["04LM",1,false,null,null,"06BR",1,false]
["04LN",1,false,null,null,"06GW",1,false]
["04M6",1,false,null,null,"06H3",1,false]
["(vazio)",null,false,null,null,"06QL",1,false]
["11.b",8,{"$f":"B263>1","v":true},null,null,"07FA",1,{"$f":"G263>1","v":false}]
["008W",1,false,null,null,"(vazio)",null,false]
["008Y",1,false,null,null,"10.4",1,false]
["009F",1,false,null,null,"05TP",1,false]
["009X",1,false,null,null,"(vazio)",null,false]
["047E",1,false,null,null,"10.5",7,true]
["04EG",1,false,null,null,"058P",1,false]
["04LP",1,false,null,null,"0591",1,false]
["04SY",1,false,null,null,"0597",1,false]
["(vazio)",null,false,null,null,"059A",1,false]
["11.c",2,true,null,null,"059B",1,false]
["03ZO",1,false,null,null,"059C",1,false]
["(vazio)",null,false,null,null,"059K",1,false]
["04PN",1,false,null,null,"(vazio)",null,false]
["12.1",1,false,null,null,"10.6",null,false]
["003Q",1,false,null,null,"(vazio)",null,false]
["(vazio)",null,false,null,null,"10.7",3,true]
["12.2",24,true,null,null,"04XB",1,false]
["00WJ",1,false,null,null,"04XC",1,false]
["041L",1,false,null,null,"04XD",1,false]
["041M",1,false,null,null,"(vazio)",null,false]
["041N",1,false,null,null,"10.a",null,false]
["041P",1,false,null,null,"(vazio)",null,false]
["041Q",1,false,null,null,"10.b",null,false]
["041W",1,false,null,null,"(vazio)",null,false]
["0454",1,false,null,null,"10.c",null,false]
["046X",1,false,null,null,"(vazio)",null,false]
["046Y",1,false,null,null,"11.1",9,true]
["046Z",1,false,null,null,"015M",1,false]
["0470",1,false,null,null,"015N",1,false]
["0471",1,false,null,null,"015Q",1,false]
["047V",1,false,null,null,"05UL",1,false]
["047W",1,false,null,null,"05UM",1,false]
["047X",1,false,null,null,"05UN",1,false]
["047Y",1,false,null,null,"063O",1,false]
["0484",1,false,null,null,"063Q",1,false]
["0485",1,false,null,null,"06K9",1,false]
["04DM",1,false,null,null,"(vazio)",null,false]
["04E3",1,false,null,null,"11.2",8,true]
["04GR",1,false,null,null,"04T2",1,false]
["04JU",1,false,null,null,"04T3",1,false]
["04LI",1,false,null,null,"04T4",1,false]
["(vazio)",null,false,null,null,"04T5",1,false]
["12.3",1,false,null,null,"06HQ",1,false]
["044E",1,false,null,null,"06HR",1,false]
["(vazio)",null,false,null,null,"06ZM",1,false]
["12.4",3,true,null,null,"06ZU",1,false]
["0496",1,false,null,null,"(vazio)",null,false]
["04DW",1,false,null,null,"11.3",4,true]
["04DX",1,false,null,null,"04J4",1,false]
["(vazio)",null,false,null,null,"04UB",1,false]
["12.5",4,true,null,null,"05Z7",1,false]
["044F",1,false,null,null,"06K9",1,false]
["04DM",1,false,null,null,"(vazio)",null,false]
["04LI",1,false,null,null,"11.4",17,true]
["04RC",1,false,null,null,"04G2",1,false]
["(vazio)",null,false,null,null,"04ML",1,false]
["12.6",2,true,null,null,"05N9",1,false]
["04DX",1,false,null,null,"05VG",1,false]
["04RC",1,false,null,null,"05VI",1,false]
["(vazio)",null,false,null,null,"05Z8",1,false]
["12.7",2,true,null,null,"05Z9",1,false]
["00U3",1,false,null,null,"05ZA",1,false]
["04RC",1,false,null,null,"05ZB",1,false]
["(vazio)",null,{"$f":"B327>1","v":false},null,null,"05ZC",1,{"$f":"G327>1","v":false}]
["12.8",5,true,null,null,"05ZD",1,false]
["041V",1,false,null,null,"05ZE",1,false]
["041W",1,false,null,null,"05ZF",1,false]
["047X",1,false,null,null,"0657",1,false]
["04E2",1,false,null,null,"067H",1,false]
["04RC",1,false,null,null,"067I",1,false]
["(vazio)",null,false,null,null,"06H3",1,false]
["12.a",2,true,null,null,"(vazio)",null,false]
["044E",1,false,null,null,"11.5",10,true]
["044F",1,false,null,null,"02C7",1,false]
["(vazio)",null,false,null,null,"04QQ",1,false]
["12.b",7,true,null,null,"04QR",1,false]
["02MR",1,false,null,null,"04R3",1,false]
["02MT",1,false,null,null,"04R5",1,false]
["04EL",1,false,null,null,"04RN",1,false]
["04JL",1,false,null,null,"0501",1,false]
["04JM",1,false,null,null,"0503",1,false]
["04JN",1,false,null,null,"0505",1,false]
["04JO",1,false,null,null,"0507",1,false]
["(vazio)",null,false,null,null,"(vazio)",null,false]
["12.c",null,false,null,null,"11.6",18,true]
["(vazio)",null,false,null,null,"04ML",1,false]
["13.1",32,true,null,null,"05J2",1,false]
["008W",1,false,null,null,"05J3",1,false]
["008Y",1,false,null,null,"05J4",1,false]
["009C",1,false,null,null,"05J5",1,false]
["009F",1,false,null,null,"05J6",1,false]
["00WJ",1,false,null,null,"05J7",1,false]
["01Y7",1,false,null,null,"05J8",1,false]
["040F",1,false,null,null,"05J9",1,false]
["041O",1,false,null,null,"05JD",1,false]
["0437",1,false,null,null,"05JF",1,false]
["0438",1,false,null,null,"05JG",1,false]
["046I",1,false,null,null,"05JI",1,false]
["046J",1,false,null,null,"05KD",1,false]
["046O",1,false,null,null,"05Z7",1,false]
["046P",1,false,null,null,"06NQ",1,false]
["046Q",1,false,null,null,"06UW",1,false]
["046Y",1,false,null,null,"06Z8",1,false]
["047I",1,false,null,null,"(vazio)",null,false]
["047J",1,false,null,null,"11.7",8,true]
["047K",1,false,null,null,"00U1",1,false]
["047L",1,false,null,null,"05HF",1,false]
["047Q",1,false,null,null,"05HI",1,false]
["047R",1,false,null,null,"05RC",1,false]
["047X",1,false,null,null,"05RG",1,false]
["047Z",1,false,null,null,"05UL",1,false]
["04BY",1,false,null,null,"05ZV",1,false]
["04BZ",1,false,null,null,"067D",1,false]
["04C0",1,false,null,null,"(vazio)",null,false]
["04C1",1,false,null,null,"11.a",30,true]
["04DS",1,false,null,null,"035V",1,false]
["04DT",1,false,null,null,"03G1",1,false]
["04DU",1,false,null,null,"03G2",1,false]
["04SY",1,false,null,null,"03G3",1,false]
["(vazio)",null,false,null,null,"04J7",1,false]
["13.2",10,true,null,null,"04J8",1,false]
["046I",1,false,null,null,"04JT",1,false]
["046J",1,false,null,null,"04ML",1,false]
["046O",1,false,null,null,"04NQ",1,false]
["046P",1,false,null,null,"0570",1,false]
["046Q",1,false,null,null,"057G",1,false]
["047B",1,false,null,null,"057K",1,false]
["047E",1,{"$f":"B391>1","v":false},null,null,"0581",1,{"$f":"G391>1","v":false}]
["04DS",1,false,null,null,"0583",1,false]
["04DT",1,false,null,null,"05MO",1,false]
["04DU",1,false,null,null,"05RC",1,false]
["(vazio)",null,false,null,null,"05RN",1,false]
["13.3",5,true,null,null,"05RO",1,false]
["046I",1,false,null,null,"05RP",1,false]
["046J",1,false,null,null,"05RQ",1,false]
["047E",1,false,null,null,"05RR",1,false]
["047S",1,false,null,null,"05RS",1,false]
["04LT",1,false,null,null,"05RT",1,false]
["(vazio)",null,false,null,null,"05RU",1,false]
["13.a",4,true,null,null,"05RV",1,false]
["047G",1,false,null,null,"06NV",1,false]
["047I",1,false,null,null,"06PZ",1,false]
["047K",1,false,null,null,"06U7",1,false]
["047L",1,false,null,null,"07FA",1,false]
["(vazio)",null,false,null,null,"07FB",1,false]
["13.b",6,true,null,null,"(vazio)",null,false]
["01A1",1,false,null,null,"11.b",21,true]
["0410",1,false,null,null,"015N",1,false]
["044D",1,false,null,null,"04KI",1,false]
["044E",1,false,null,null,"04KJ",1,false]
["047E",1,false,null,null,"04MD",1,false]
["047G",1,false,null,null,"04ME",1,false]
["(vazio)",null,false,null,null,"04ML",1,false]
["14.1",8,true,null,null,"04N5",1,false]
["02MR",1,false,null,null,"04N7",1,false]
["040M",1,false,null,null,"04NJ",1,false]
["040N",1,false,null,null,"04NM",1,false]
["04JS",1,false,null,null,"04VN",1,false]
["04K1",1,false,null,null,"051T",1,false]
["04LD",1,false,null,null,"052B",1,false]
["04LM",1,false,null,null,"052D",1,false]
["04LN",1,false,null,null,"052J",1,false]
["(vazio)",null,false,null,null,"052K",1,false]
["14.2",6,true,null,null,"052L",1,false]
["047V",1,false,null,null,"05DM",1,false]
["0496",1,false,null,null,"05GC",1,false]
["04CW",1,false,null,null,"063O",1,false]
["04GE",1,false,null,null,"06NG",1,false]
["04LM",1,false,null,null,"(vazio)",null,false]
["04LN",1,false,null,null,"11.c",1,false]
["(vazio)",null,false,null,null,"04IZ",1,false]
["14.3",6,true,null,null,"(vazio)",null,false]
["00W0",1,false,null,null,"12.1",3,true]
["00WJ",1,false,null,null,"003V",1,false]
["01A1",1,false,null,null,"003W",1,false]
["0453",1,false,null,null,"05Z7",1,false]
["0454",1,false,null,null,"(vazio)",null,false]
["04CW",1,false,null,null,"12.2",27,true]
["(vazio)",null,false,null,null,"04MD",1,false]
["14.4",null,false,null,null,"04ME",1,false]
["(vazio)",null,false,null,null,"04MI",1,false]
["14.5",2,true,null,null,"04ML",1,false]
["04LM",1,false,null,null,"04U7",1,false]
["04LN",1,false,null,null,"04UA",1,false]
["(vazio)",null,false,null,null,"04UU",1,false]
["14.6",null,false,null,null,"04VF",1,false]
["(vazio)",null,false,null,null,"04VL",1,false]
["14.7",2,true,null,null,"04VP",1,false]
["04JL",1,false,null,null,"0511",1,false]
["04JO",1,false,null,null,"0515",1,false]
["(vazio)",null,false,null,null,"0516",1,false]
["14.a",6,{"$f":"B455>1","v":true},null,null,"0517",1,{"$f":"G455>1","v":false}]
["01MS",1,false,null,null,"051B",1,false]
["046U",1,false,null,null,"051C",1,false]
["046V",1,false,null,null,"051J",1,false]
["04CW",1,false,null,null,"051L",1,false]
["04CZ",1,false,null,null,"051M",1,false]
["04D0",1,false,null,null,"051R",1,false]
["(vazio)",null,false,null,null,"059P",1,false]
["14.b",2,true,null,null,"05I4",1,false]
["04H8",1,false,null,null,"05Q8",1,false]
["04JO",1,false,null,null,"05XT",1,false]
["(vazio)",null,false,null,null,"05Z7",1,false]
["14.c",2,true,null,null,"06KQ",1,false]
["04CW",1,false,null,null,"06XJ",1,false]
["04CZ",1,false,null,null,"(vazio)",null,false]
["(vazio)",null,false,null,null,"12.3",11,true]
["15.1",26,true,null,null,"04ML",1,false]
["0405",1,false,null,null,"0511",1,false]
["0406",1,false,null,null,"0515",1,false]
["040Z",1,false,null,null,"0516",1,false]
["0423",1,false,null,null,"05CC",1,false]
["046X",1,false,null,null,"05CD",1,false]
["046Y",1,false,null,null,"05D2",1,false]
["046Z",1,false,null,null,"05KS",1,false]
["047E",1,false,null,null,"05KT",1,false]
["047Q",1,false,null,null,"05Z7",1,false]
["047V",1,false,null,null,"06I7",1,false]
["047W",1,false,null,null,"(vazio)",null,false]
["047Z",1,false,null,null,"12.4",13,true]
["0484",1,false,null,null,"04KR",1,false]
["0485",1,false,null,null,"04MJ",1,false]
["0488",1,false,null,null,"04MK",1,false]
["04D3",1,false,null,null,"04ML",1,false]
["04D4",1,false,null,null,"056B",1,false]
["04D5",1,false,null,null,"05JL",1,false]
["04E9",1,false,null,null,"05JN",1,false]
["04EA",1,false,null,null,"05JP",1,false]
["04GB",1,false,null,null,"05JR",1,false]
["04GG",1,false,null,null,"05KB",1,false]
["04GR",1,false,null,null,"05XT",1,false]
["04JL",1,false,null,null,"05Z7",1,false]
["04JS",1,false,null,null,"06KQ",1,false]
["04LD",1,false,null,null,"(vazio)",null,false]
["(vazio)",null,false,null,null,"12.5",16,true]
["15.2",21,true,null,null,"04MK",1,false]
["02MR",1,false,null,null,"04ML",1,false]
["040Z",1,false,null,null,"05J2",1,false]
["046X",1,false,null,null,"05J3",1,false]
["046Y",1,false,null,null,"05J4",1,false]
["046Z",1,false,null,null,"05J5",1,false]
["0471",1,false,null,null,"05J6",1,false]
["047B",1,false,null,null,"05J7",1,false]
["047C",1,false,null,null,"05J8",1,false]
["047E",1,false,null,null,"05J9",1,false]
["047V",1,false,null,null,"05KB",1,false]
["047W",1,false,null,null,"05Z7",1,false]
["047X",1,false,null,null,"06KQ",1,false]
["0484",1,false,null,null,"06NQ",1,false]
["0485",1,false,null,null,"06UW",1,false]
["04D3",1,false,null,null,"06Z8",1,false]
["04D4",1,false,null,null,"(vazio)",null,false]
["04D5",1,false,null,null,"12.6",5,true]
["04E9",1,false,null,null,"0066",1,false]
["04EA",1,false,null,null,"05Z7",1,false]
["04GR",1,{"$f":"B519>1","v":false},null,null,"0636",1,{"$f":"G519>1","v":false}]
["04LD",1,false,null,null,"06KP",1,false]
["(vazio)",null,false,null,null,"06KR",1,false]
["15.3",9,true,null,null,"(vazio)",null,false]
["044F",1,false,null,null,"12.7",6,true]
["046I",1,false,null,null,"05KV",1,false]
["046J",1,false,null,null,"05L0",1,false]
["046Y",1,false,null,null,"05Z7",1,false]
["047E",1,false,null,null,"06KP",1,false]
["047I",1,false,null,null,"06KQ",1,false]
["047J",1,false,null,null,"06KR",1,false]
["047Q",1,false,null,null,"(vazio)",null,false]
["04D5",1,false,null,null,"12.8",12,true]
["(vazio)",null,false,null,null,"04ML",1,false]
["15.4",2,true,null,null,"04TH",1,false]
["0453",1,false,null,null,"04U7",1,false]
["0454",1,false,null,null,"0537",1,false]
["(vazio)",null,false,null,null,"054I",1,false]
["15.5",8,true,null,null,"059P",1,false]
["046Y",1,false,null,null,"05G9",1,false]
["047Q",1,false,null,null,"05GC",1,false]
["047V",1,false,null,null,"05J9",1,false]
["047W",1,false,null,null,"05XT",1,false]
["047Z",1,false,null,null,"05Z7",1,false]
["04E9",1,false,null,null,"07FC",1,false]
["04EA",1,false,null,null,"(vazio)",null,false]
["04GR",1,false,null,null,"12.a",10,true]
["(vazio)",null,false,null,null,"04TH",1,false]
["15.6",6,true,null,null,"04U7",1,false]
["0453",1,false,null,null,"04U8",1,false]
["0454",1,false,null,null,"04U9",1,false]
["046W",1,false,null,null,"04UA",1,false]
["0484",1,false,null,null,"04UB",1,false]
["0485",1,false,null,null,"04VF",1,false]
["0488",1,false,null,null,"04VP",1,false]
["(vazio)",null,false,null,null,"052G",1,false]
["15.7",4,true,null,null,"05XT",1,false]
["040Z",1,false,null,null,"(vazio)",null,false]
["0484",1,false,null,null,"12.b",9,true]
["04E9",1,false,null,null,"05LY",1,false]
["04EA",1,false,null,null,"05VN",1,false]
["(vazio)",null,false,null,null,"05Y1",1,false]
["15.8",2,true,null,null,"05Y2",1,false]
["0484",1,false,null,null,"05Y5",1,false]
["0486",1,false,null,null,"05Y6",1,false]
["(vazio)",null,false,null,null,"05Y7",1,false]
["15.9",8,true,null,null,"05Y9",1,false]
["01Y7",1,false,null,null,"067G",1,false]
["02MY",1,false,null,null,"(vazio)",null,false]
["0453",1,false,null,null,"12.c",null,false]
["0454",1,false,null,null,"(vazio)",null,false]
["046Z",1,false,null,null,"13.1",59,true]
["047X",1,false,null,null,"020W",1,false]
["04LM",1,false,null,null,"02C7",1,false]
["04LN",1,false,null,null,"02CK",1,false]
["(vazio)",null,false,null,null,"04KI",1,false]
["15.a",2,true,null,null,"04MD",1,false]
["0453",1,false,null,null,"04ME",1,false]
["0454",1,false,null,null,"04ML",1,false]
["(vazio)",null,false,null,null,"04N5",1,false]
["15.b",4,true,null,null,"04N7",1,false]
["047W",1,false,null,null,"04NA",1,false]
["04D3",1,false,null,null,"04ND",1,false]
["04D5",1,false,null,null,"04NM",1,false]
["04GR",1,{"$f":"B583>1","v":false},null,null,"04UU",1,{"$f":"G583>1","v":false}]
["(vazio)",null,false,null,null,"04VN",1,false]
["15.c",null,false,null,null,"0501",1,false]
["(vazio)",null,false,null,null,"0503",1,false]
["16.1",19,true,null,null,"0505",1,false]
["00SY",1,false,null,null,"0507",1,false]
["03LW",1,false,null,null,"050Z",1,false]
["040C",1,false,null,null,"0513",1,false]
["0455",1,false,null,null,"0515",1,false]
["0458",1,false,null,null,"0517",1,false]
["045A",1,false,null,null,"051B",1,false]
["045F",1,false,null,null,"051T",1,false]
["045H",1,false,null,null,"051W",1,false]
["045K",1,false,null,null,"051Y",1,false]
["04DA",1,false,null,null,"051Z",1,false]
["04FA",1,false,null,null,"0520",1,false]
["04K2",1,false,null,null,"0521",1,false]
["04KN",1,false,null,null,"0522",1,false]
["04MF",1,false,null,null,"0523",1,false]
["04PZ",1,false,null,null,"0524",1,false]
["04Q5",1,false,null,null,"0525",1,false]
["04Q6",1,false,null,null,"052B",1,false]
["04Q7",1,false,null,null,"052D",1,false]
["04Q8",1,false,null,null,"052J",1,false]
["(vazio)",null,false,null,null,"052K",1,false]
["16.10",12,true,null,null,"052L",1,false]
["041N",1,false,null,null,"052S",1,false]
["04E2",1,false,null,null,"052T",1,false]
["04E3",1,false,null,null,"052U",1,false]
["04FN",1,false,null,null,"052V",1,false]
["04RF",1,false,null,null,"052W",1,false]
["04RG",1,false,null,null,"052X",1,false]
["04RQ",1,false,null,null,"052Y",1,false]
["04RR",1,false,null,null,"052Z",1,false]
["04RS",1,false,null,null,"0530",1,false]
["04RT",1,false,null,null,"059P",1,false]
["04RU",1,false,null,null,"05DM",1,false]
["04RV",1,false,null,null,"05DP",1,false]
["(vazio)",null,false,null,null,"05F3",1,false]
["16.2",12,true,null,null,"05F4",1,false]
["00GU",1,false,null,null,"05F5",1,false]
["00GX",1,false,null,null,"05GC",1,false]
["00GY",1,false,null,null,"05JO",1,false]
["00GZ",1,false,null,null,"05Q4",1,false]
["00H0",1,false,null,null,"05Q7",1,false]
["03LR",1,false,null,null,"06NG",1,false]
["049Y",1,false,null,null,"06NH",1,false]
["04CQ",1,false,null,null,"(vazio)",null,false]
["04CR",1,false,null,null,"13.2",29,true]
["04CS",1,false,null,null,"02C7",1,false]
["04ML",1,false,null,null,"02CK",1,false]
["04MR",1,false,null,null,"04MD",1,false]
["(vazio)",null,false,null,null,"04ME",1,false]
["16.3",4,true,null,null,"04ML",1,false]
["03LX",1,false,null,null,"04NA",1,false]
["045B",1,false,null,null,"04ND",1,false]
["045I",1,false,null,null,"04UU",1,false]
["045J",1,false,null,null,"0501",1,false]
["(vazio)",null,false,null,null,"0503",1,false]
["16.4",3,true,null,null,"0505",1,false]
["0465",1,false,null,null,"0507",1,false]
["0469",1,false,null,null,"0511",1,false]
["04SQ",1,false,null,null,"0515",1,false]
["(vazio)",null,false,null,null,"0517",1,false]
["16.5",2,{"$f":"B647>1","v":true},null,null,"051T",1,{"$f":"G647>1","v":false}]
["04RZ",1,false,null,null,"051W",1,false]
["04S0",1,false,null,null,"051Y",1,false]
["(vazio)",null,false,null,null,"0520",1,false]
["16.6",22,true,null,null,"0521",1,false]
["041N",1,false,null,null,"0522",1,false]
["041O",1,false,null,null,"0523",1,false]
["041V",1,false,null,null,"0525",1,false]
["0462",1,false,null,null,"0529",1,false]
["04E2",1,false,null,null,"052D",1,false]
["04E3",1,false,null,null,"052L",1,false]
["04FN",1,false,null,null,"059P",1,false]
["04K5",1,false,null,null,"05HX",1,false]
["04K6",1,false,null,null,"05KD",1,false]
["04LX",1,false,null,null,"(vazio)",null,false]
["04R3",1,false,null,null,"13.3",27,true]
["04R4",1,false,null,null,"020W",1,false]
["04R5",1,false,null,null,"02C7",1,false]
["04R6",1,false,null,null,"04MD",1,false]
["04R7",1,false,null,null,"04ME",1,false]
["04R8",1,false,null,null,"04ML",1,false]
["04RD",1,false,null,null,"04NA",1,false]
["04RH",1,false,null,null,"04ND",1,false]
["04RI",1,false,null,null,"04UU",1,false]
["04RJ",1,false,null,null,"04VL",1,false]
["04RQ",1,false,null,null,"04VP",1,false]
["04RR",1,false,null,null,"0501",1,false]
["(vazio)",null,false,null,null,"0503",1,false]
["16.7",5,true,null,null,"0505",1,false]
["00FX",1,false,null,null,"0507",1,false]
["00SS",1,false,null,null,"0511",1,false]
["04K5",1,false,null,null,"0517",1,false]
["04K6",1,false,null,null,"051B",1,false]
["04LX",1,false,null,null,"051Q",1,false]
["(vazio)",null,false,null,null,"051R",1,false]
["16.8",null,false,null,null,"051Z",1,false]
["(vazio)",null,false,null,null,"0523",1,false]
["16.9",4,true,null,null,"0525",1,false]
["00FY",1,false,null,null,"052G",1,false]
["0413",1,false,null,null,"052L",1,false]
["0414",1,false,null,null,"059P",1,false]
["049X",1,false,null,null,"05GC",1,false]
["(vazio)",null,false,null,null,"06NN",1,false]
["16.a",5,true,null,null,"(vazio)",null,false]
["02MR",1,false,null,null,"13.a",7,true]
["04FJ",1,false,null,null,"020W",1,false]
["04RF",1,false,null,null,"051Y",1,false]
["04RG",1,false,null,null,"0523",1,false]
["04S2",1,false,null,null,"0524",1,false]
["(vazio)",null,false,null,null,"0525",1,false]
["16.b",4,true,null,null,"052D",1,false]
["00FU",1,false,null,null,"059P",1,false]
["00FV",1,false,null,null,"(vazio)",null,false]
["00FX",1,false,null,null,"13.b",8,true]
["00FZ",1,false,null,null,"04LG",1,false]
["(vazio)",null,false,null,null,"04LL",1,false]
["17.1",2,true,null,null,"04LO",1,false]
["049N",1,false,null,null,"04TH",1,false]
["049O",1,false,null,null,"04TI",1,false]
["(vazio)",null,false,null,null,"04UU",1,false]
["17.10",1,false,null,null,"0521",1,false]
["(vazio)",null,false,null,null,"052L",1,false]
["04PA",1,false,null,null,"(vazio)",null,false]
["17.11",2,true,null,null,"14.1",33,true]
["0443",1,{"$f":"B711>1","v":false},null,null,"04G2",1,{"$f":"G711>1","v":false}]
["04LF",1,false,null,null,"04MH",1,false]
["(vazio)",null,false,null,null,"04MI",1,false]
["17.12",null,false,null,null,"04MZ",1,false]
["(vazio)",null,false,null,null,"04N1",1,false]
["17.13",1,false,null,null,"04N2",1,false]
["04AV",1,false,null,null,"04N3",1,false]
["(vazio)",null,false,null,null,"04N4",1,false]
["17.14",9,true,null,null,"04N5",1,false]
["041M",1,false,null,null,"04NJ",1,false]
["041P",1,false,null,null,"04NO",1,false]
["0484",1,false,null,null,"0537",1,false]
["0485",1,false,null,null,"0539",1,false]
["04AV",1,false,null,null,"053C",1,false]
["04E8",1,false,null,null,"053D",1,false]
["04GR",1,false,null,null,"053F",1,false]
["04LI",1,false,null,null,"053M",1,false]
["04RC",1,false,null,null,"054B",1,false]
["(vazio)",null,false,null,null,"054I",1,false]
["17.15",1,false,null,null,"056A",1,false]
["02MT",1,false,null,null,"056B",1,false]
["(vazio)",null,false,null,null,"057L",1,false]
["17.16",2,true,null,null,"05KB",1,false]
["00FX",1,false,null,null,"05KD",1,false]
["047E",1,false,null,null,"05KE",1,false]
["(vazio)",null,false,null,null,"05KF",1,false]
["17.17",3,true,null,null,"05QH",1,false]
["047E",1,false,null,null,"05QI",1,false]
["04JO",1,false,null,null,"05QJ",1,false]
["(vazio)",null,false,null,null,"05VN",1,false]
["04OY",1,false,null,null,"05ZV",1,false]
["17.18",7,true,null,null,"062N",1,false]
["04BK",1,false,null,null,"062Y",1,false]
["04I1",1,false,null,null,"(vazio)",null,false]
["04I2",1,false,null,null,"14.2",38,true]
["04I4",1,false,null,null,"0510",1,false]
["04I5",1,false,null,null,"052I",1,false]
["04RM",1,false,null,null,"052L",1,false]
["(vazio)",null,false,null,null,"0537",1,false]
["04P3",1,false,null,null,"0538",1,false]
["17.19",2,true,null,null,"0539",1,false]
["04I4",1,false,null,null,"053C",1,false]
["04RM",1,false,null,null,"053E",1,false]
["17.2",null,false,null,null,"053F",1,false]
["(vazio)",null,false,null,null,"053G",1,false]
["17.3",1,false,null,null,"053K",1,false]
["04R1",1,false,null,null,"053M",1,false]
["17.4",null,false,null,null,"053U",1,false]
["(vazio)",null,false,null,null,"053V",1,false]
["17.5",1,false,null,null,"053X",1,false]
["04AX",1,false,null,null,"0542",1,false]
["17.6",2,true,null,null,"0543",1,false]
["047E",1,false,null,null,"0546",1,false]
["04E8",1,false,null,null,"0549",1,false]
["(vazio)",null,false,null,null,"054B",1,false]
["17.7",null,false,null,null,"056A",1,false]
["(vazio)",null,false,null,null,"057L",1,false]
["17.8",null,false,null,null,"05HT",1,false]
["(vazio)",null,false,null,null,"05HV",1,false]
["17.9",1,false,null,null,"05HW",1,false]
["(vazio)",null,false,null,null,"05HX",1,false]
["04PN",1,false,null,null,"05KF",1,false]
["2.1",6,true,null,null,"05QH",1,false]
["00TI",1,false,null,null,"05QI",1,false]
["03U4",1,{"$f":"B775>1","v":false},null,null,"05QJ",1,{"$f":"G775>1","v":false}]
["047E",1,false,null,null,"05R5",1,false]
["04DZ",1,false,null,null,"05R7",1,false]
["04EQ",1,false,null,null,"05TV",1,false]
["04ER",1,false,null,null,"05UX",1,false]
["(vazio)",null,false,null,null,"05Z7",1,false]
["2.2",11,true,null,null,"063F",1,false]
["00TI",1,false,null,null,"063G",1,false]
["03U4",1,false,null,null,"063I",1,false]
["040L",1,false,null,null,"(vazio)",null,false]
["04E1",1,false,null,null,"14.3",17,true]
["04EQ",1,false,null,null,"04LO",1,false]
["04ER",1,false,null,null,"04TH",1,false]
["04I6",1,false,null,null,"04TI",1,false]
["04I7",1,false,null,null,"04VF",1,false]
["04I8",1,false,null,null,"04VL",1,false]
["04K3",1,false,null,null,"04VP",1,false]
["04Q9",1,false,null,null,"052L",1,false]
["(vazio)",null,false,null,null,"053U",1,false]
["2.3",44,true,null,null,"05HT",1,false]
["00U3",1,false,null,null,"05HV",1,false]
["00U5",1,false,null,null,"05HW",1,false]
["0403",1,false,null,null,"05HX",1,false]
["0406",1,false,null,null,"05JG",1,false]
["0407",1,false,null,null,"05QH",1,false]
["040A",1,false,null,null,"05QI",1,false]
["040B",1,false,null,null,"05QJ",1,false]
["040V",1,false,null,null,"063G",1,false]
["040W",1,false,null,null,"(vazio)",null,false]
["040Y",1,false,null,null,"14.4",22,true]
["041Y",1,false,null,null,"0537",1,false]
["041Z",1,false,null,null,"0539",1,false]
["0420",1,false,null,null,"053C",1,false]
["0421",1,false,null,null,"053E",1,false]
["0422",1,false,null,null,"053G",1,false]
["0424",1,false,null,null,"053M",1,false]
["0427",1,false,null,null,"053U",1,false]
["042I",1,false,null,null,"053V",1,false]
["042K",1,false,null,null,"053X",1,false]
["042M",1,false,null,null,"0545",1,false]
["042N",1,false,null,null,"0546",1,false]
["042O",1,false,null,null,"0547",1,false]
["042Q",1,false,null,null,"0549",1,false]
["042R",1,false,null,null,"054B",1,false]
["042T",1,false,null,null,"054I",1,false]
["044E",1,false,null,null,"057L",1,false]
["044F",1,false,null,null,"05KU",1,false]
["0453",1,false,null,null,"05QH",1,false]
["0454",1,false,null,null,"05UQ",1,false]
["0466",1,false,null,null,"05UX",1,false]
["0467",1,false,null,null,"05UZ",1,false]
["046C",1,false,null,null,"063F",1,false]
["046D",1,false,null,null,"14.5",12,true]
["046O",1,false,null,null,"0538",1,false]
["046P",1,false,null,null,"0539",1,false]
["046Q",1,false,null,null,"053F",1,false]
["04AA",1,false,null,null,"053G",1,false]
["04D4",1,false,null,null,"053M",1,false]
["04ES",1,false,null,null,"053U",1,false]
["04MX",1,false,null,null,"0546",1,false]
["04QH",1,false,null,null,"0549",1,false]
["04QI",1,false,null,null,"054B",1,false]
["04QN",1,false,null,null,"054I",1,false]
["04QO",1,false,null,null,"063F",1,false]
["(vazio)",null,{"$f":"B839>1","v":false},null,null,"063G",1,{"$f":"G839>1","v":false}]
["2.4",31,true,null,null,"(vazio)",null,false]
["0405",1,false,null,null,"14.6",7,true]
["0406",1,false,null,null,"053U",1,false]
["041C",1,false,null,null,"053V",1,false]
["0422",1,false,null,null,"053X",1,false]
["0424",1,false,null,null,"0545",1,false]
["0426",1,false,null,null,"0546",1,false]
["042F",1,false,null,null,"0549",1,false]
["042G",1,false,null,null,"054B",1,false]
["042H",1,false,null,null,"14.7",2,true]
["042L",1,false,null,null,"05XZ",1,false]
["042M",1,false,null,null,"05Y3",1,false]
["042N",1,false,null,null,"(vazio)",null,false]
["042O",1,false,null,null,"14.a",19,true]
["044E",1,false,null,null,"047J",1,false]
["044F",1,false,null,null,"0537",1,false]
["0450",1,false,null,null,"053F",1,false]
["0453",1,false,null,null,"053G",1,false]
["0454",1,false,null,null,"053M",1,false]
["046I",1,false,null,null,"053U",1,false]
["046J",1,false,null,null,"0546",1,false]
["046Q",1,false,null,null,"0548",1,false]
["047E",1,false,null,null,"0549",1,false]
["04A4",1,false,null,null,"054B",1,false]
["04D4",1,false,null,null,"05H9",1,false]
["04EF",1,false,null,null,"05HT",1,false]
["04ES",1,false,null,null,"05HU",1,false]
["04LT",1,false,null,null,"05HV",1,false]
["04MX",1,false,null,null,"05HW",1,false]
["04QQ",1,false,null,null,"05HX",1,false]
["04QR",1,false,null,null,"05HY",1,false]
["04QS",1,false,null,null,"05I0",1,false]
["(vazio)",null,false,null,null,"063L",1,false]
["2.5",12,true,null,null,"(vazio)",null,false]
["041E",1,false,null,null,"14.b",21,true]
["042M",1,false,null,null,"050Z",1,false]
["042N",1,false,null,null,"0510",1,false]
["042O",1,false,null,null,"0513",1,false]
["044E",1,false,null,null,"0515",1,false]
["044F",1,false,null,null,"0516",1,false]
["0453",1,false,null,null,"0518",1,false]
["0454",1,false,null,null,"051B",1,false]
["046W",1,false,null,null,"051C",1,false]
["0484",1,false,null,null,"051E",1,false]
["04AG",1,false,null,null,"051G",1,false]
["04JP",1,false,null,null,"0539",1,false]
["(vazio)",null,false,null,null,"053E",1,false]
["2.a",14,true,null,null,"053K",1,false]
["009Z",1,false,null,null,"053L",1,false]
["00A5",1,false,null,null,"0546",1,false]
["00A8",1,false,null,null,"057L",1,false]
["040A",1,false,null,null,"05KU",1,false]
["040B",1,false,null,null,"05TK",1,false]
["042M",1,false,null,null,"05TN",1,false]
["042N",1,false,null,null,"05UX",1,false]
["042O",1,false,null,null,"05UZ",1,false]
["044E",1,false,null,null,"(vazio)",null,false]
["044F",1,false,null,null,"14.c",8,true]
["0453",1,false,null,null,"053V",1,false]
["0454",1,false,null,null,"056A",1,false]
["049P",1,false,null,null,"05HT",1,false]
["(vazio)",null,false,null,null,"05HU",1,false]
["04PN",1,false,null,null,"05HW",1,false]
["2.b",null,{"$f":"B903>1","v":false},null,null,"05HX",1,{"$f":"G903>1","v":false}]
["(vazio)",null,false,null,null,"05I0",1,false]
["2.c",1,false,null,null,"062Y",1,false]
["04BF",1,false,null,null,"(vazio)",null,false]
["(vazio)",null,false,null,null,"15.1",54,true]
["3.1",4,true,null,null,"04G2",1,false]
["027U",1,false,null,null,"04JU",1,false]
["0282",1,false,null,null,"04JZ",1,false]
["028C",1,false,null,null,"04LF",1,false]
["028E",1,false,null,null,"04LG",1,false]
["(vazio)",null,false,null,null,"04LN",1,false]
["3.2",3,true,null,null,"04MD",1,false]
["03U4",1,false,null,null,"04MH",1,false]
["04H7",1,false,null,null,"04MI",1,false]
["04HW",1,false,null,null,"04ML",1,false]
["(vazio)",null,false,null,null,"04ND",1,false]
["3.3",16,true,null,null,"04NQ",1,false]
["026X",1,false,null,null,"04NZ",1,false]
["027N",1,false,null,null,"050Z",1,false]
["040L",1,false,null,null,"0511",1,false]
["040M",1,false,null,null,"0513",1,false]
["040N",1,false,null,null,"0515",1,false]
["041M",1,false,null,null,"051B",1,false]
["041U",1,false,null,null,"051C",1,false]
["041X",1,false,null,null,"051E",1,false]
["04H4",1,false,null,null,"051J",1,false]
["04H5",1,false,null,null,"051L",1,false]
["04H6",1,false,null,null,"051M",1,false]
["04I6",1,false,null,null,"051P",1,false]
["04I7",1,false,null,null,"051Q",1,false]
["04I8",1,false,null,null,"051R",1,false]
["04K3",1,false,null,null,"051S",1,false]
["04Q9",1,false,null,null,"051T",1,false]
["(vazio)",null,false,null,null,"051W",1,false]
["3.4",4,true,null,null,"052A",1,false]
["04DA",1,false,null,null,"052D",1,false]
["04MV",1,false,null,null,"053I",1,false]
["04QU",1,false,null,null,"053J",1,false]
["04SD",1,false,null,null,"053U",1,false]
["(vazio)",null,false,null,null,"053V",1,false]
["3.5",16,true,null,null,"053X",1,false]
["028X",1,false,null,null,"0541",1,false]
["02MR",1,false,null,null,"0546",1,false]
["03WT",1,false,null,null,"0547",1,false]
["04D7",1,false,null,null,"0549",1,false]
["04D9",1,false,null,null,"054S",1,false]
["04DA",1,false,null,null,"056A",1,false]
["04DB",1,false,null,null,"059P",1,false]
["04DC",1,false,null,null,"05I4",1,false]
["04GV",1,false,null,null,"05O8",1,false]
["04HI",1,false,null,null,"05Q4",1,false]
["04J7",1,false,null,null,"05Q5",1,false]
["04JA",1,false,null,null,"05Q7",1,false]
["04JB",1,false,null,null,"05Q8",1,false]
["04JC",1,false,null,null,"05QN",1,false]
["04K1",1,false,null,null,"05Y0",1,false]
["04SC",1,false,null,null,"05ZC",1,false]
["(vazio)",null,false,null,null,"062K",1,false]
["3.6",6,true,null,null,"07FB",1,false]
["01U9",1,false,null,null,"(vazio)",null,false]
["01UA",1,false,null,null,"15.2",40,true]
["01UB",1,false,null,null,"04LF",1,false]
["028S",1,false,null,null,"04LG",1,false]
["043Q",1,false,null,null,"04LN",1,false]
["043R",1,{"$f":"B967>1","v":false},null,null,"04MD",1,{"$f":"G967>1","v":false}]
["(vazio)",null,false,null,null,"04MI",1,false]
["3.7",1,false,null,null,"04ML",1,false]
["04C6",1,false,null,null,"0511",1,false]
["(vazio)",null,false,null,null,"0513",1,false]
["3.8",3,true,null,null,"0515",1,false]
["03WY",1,false,null,null,"0516",1,false]
["03X5",1,false,null,null,"051B",1,false]
["04FW",1,false,null,null,"051C",1,false]
["(vazio)",null,false,null,null,"051E",1,false]
["3.9",16,true,null,null,"051J",1,false]
["040L",1,false,null,null,"051L",1,false]
["040M",1,false,null,null,"051M",1,false]
["040N",1,false,null,null,"051N",1,false]
["040T",1,false,null,null,"051P",1,false]
["04DS",1,false,null,null,"051Q",1,false]
["04DT",1,false,null,null,"051R",1,false]
["04DU",1,false,null,null,"051S",1,false]
["04DW",1,false,null,null,"051T",1,false]
["04DX",1,false,null,null,"051W",1,false]
["04E2",1,false,null,null,"052A",1,false]
["04I6",1,false,null,null,"052D",1,false]
["04I7",1,false,null,null,"053I",1,false]
["04I8",1,false,null,null,"053J",1,false]
["04K3",1,false,null,null,"054I",1,false]
["04LZ",1,false,null,null,"059P",1,false]
["04Q9",1,false,null,null,"05I4",1,false]
["(vazio)",null,false,null,null,"05Q4",1,false]
["3.a",1,false,null,null,"05Q5",1,false]
["04QU",1,false,null,null,"05Q6",1,false]
["3.b",11,true,null,null,"05Q7",1,false]
["00CJ",1,false,null,null,"05Q8",1,false]
["00W0",1,false,null,null,"05QN",1,false]
["019Z",1,false,null,null,"05VN",1,false]
["01A0",1,false,null,null,"05Z7",1,false]
["01A1",1,false,null,null,"05ZC",1,false]
["026U",1,false,null,null,"062K",1,false]
["040O",1,false,null,null,"(vazio)",null,false]
["0453",1,false,null,null,"15.3",16,true]
["04HO",1,false,null,null,"020W",1,false]
["04JG",1,false,null,null,"02C7",1,false]
["04OG",1,false,null,null,"04MD",1,false]
["(vazio)",null,false,null,null,"04ML",1,false]
["3.c",7,true,null,null,"04ND",1,false]
["029N",1,false,null,null,"0501",1,false]
["03Z5",1,false,null,null,"0503",1,false]
["04HF",1,false,null,null,"0505",1,false]
["04J8",1,false,null,null,"0507",1,false]
["04JE",1,false,null,null,"0524",1,false]
["04L5",1,false,null,null,"0525",1,false]
["04QZ",1,false,null,null,"0535",1,false]
["(vazio)",null,false,null,null,"059P",1,false]
["3.d",5,true,null,null,"05DM",1,false]
["04E2",1,false,null,null,"05F3",1,false]
["04HV",1,false,null,null,"05F5",1,false]
["04IT",1,false,null,null,"(vazio)",null,false]
["04LZ",1,false,null,null,"15.4",6,true]
["(vazio)",null,false,null,null,"04MD",1,false]
["04PN",1,false,null,null,"04ML",1,false]
["4.1",13,true,null,null,"04VE",1,false]
["00SA",1,false,null,null,"04VF",1,false]
["00SY",1,false,null,null,"04VL",1,false]
["04KE",1,false,null,null,"04VP",1,false]
["04KF",1,false,null,null,"(vazio)",null,false]
["04KG",1,{"$f":"B1031>1","v":false},null,null,"15.5",18,{"$f":"G1031>1","v":true}]
["04KH",1,false,null,null,"04MD",1,false]
["04KI",1,false,null,null,"04MH",1,false]
["04KJ",1,false,null,null,"04MI",1,false]
["04L9",1,false,null,null,"04ML",1,false]
["04TI",1,false,null,null,"0511",1,false]
["04TJ",1,false,null,null,"0515",1,false]
["04TN",1,false,null,null,"051B",1,false]
["04UA",1,false,null,null,"051C",1,false]
["(vazio)",null,false,null,null,"051E",1,false]
["4.2",6,true,null,null,"051Q",1,false]
["04GN",1,false,null,null,"051R",1,false]
["04HW",1,false,null,null,"051T",1,false]
["04KE",1,false,null,null,"051W",1,false]
["04KF",1,false,null,null,"052A",1,false]
["04KV",1,false,null,null,"052D",1,false]
["04T4",1,false,null,null,"0547",1,false]
["(vazio)",null,false,null,null,"059P",1,false]
["4.3",16,true,null,null,"05KB",1,false]
["00FZ",1,false,null,null,"(vazio)",null,false]
["04JK",1,false,null,null,"15.6",4,true]
["04JU",1,false,null,null,"04VE",1,false]
["04KM",1,false,null,null,"04VF",1,false]
["04KO",1,false,null,null,"04VL",1,false]
["04KP",1,false,null,null,"04VP",1,false]
["04KQ",1,false,null,null,"(vazio)",null,false]
["04KX",1,false,null,null,"15.7",3,true]
["04KY",1,false,null,null,"04LF",1,false]
["04KZ",1,false,null,null,"04LG",1,false]
["04L0",1,false,null,null,"04LN",1,false]
["04LC",1,false,null,null,"(vazio)",null,false]
["04LL",1,false,null,null,"15.8",3,true]
["04SG",1,false,null,null,"04MD",1,false]
["04TI",1,false,null,null,"04ML",1,false]
["04TJ",1,false,null,null,"051Q",1,false]
["(vazio)",null,false,null,null,"(vazio)",null,false]
["4.4",17,true,null,null,"15.9",9,true]
["01A1",1,false,null,null,"04MD",1,false]
["0433",1,false,null,null,"04ML",1,false]
["044D",1,false,null,null,"04ND",1,false]
["044E",1,false,null,null,"04VE",1,false]
["04H9",1,false,null,null,"04VF",1,false]
["04JL",1,false,null,null,"04VL",1,false]
["04JU",1,false,null,null,"04VP",1,false]
["04KL",1,false,null,null,"052A",1,false]
["04KM",1,false,null,null,"05Z7",1,false]
["04KO",1,false,null,null,"(vazio)",null,false]
["04KP",1,false,null,null,"15.a",9,true]
["04KQ",1,false,null,null,"04VE",1,false]
["04KV",1,false,null,null,"04VF",1,false]
["04LS",1,false,null,null,"04VL",1,false]
["04O6",1,false,null,null,"04VP",1,false]
["04OK",1,false,null,null,"0515",1,false]
["04T3",1,false,null,null,"051T",1,false]
["(vazio)",null,false,null,null,"051W",1,false]
["4.5",26,true,null,null,"052A",1,false]
["00SA",1,false,null,null,"052D",1,false]
["00SY",1,false,null,null,"(vazio)",null,false]
["01A1",1,false,null,null,"15.b",6,true]
["0408",1,false,null,null,"0515",1,false]
["044E",1,false,null,null,"051T",1,false]
["044F",1,false,null,null,"051W",1,false]
["0457",1,false,null,null,"052A",1,false]
["04AI",1,false,null,null,"052D",1,false]
["04JL",1,{"$f":"B1095>1","v":false},null,null,"059P",1,{"$f":"G1095>1","v":false}]
["04JR",1,false,null,null,"(vazio)",null,false]
["04JU",1,false,null,null,"15.c",null,false]
["04KB",1,false,null,null,"(vazio)",null,false]
["04KI",1,false,null,null,"16.1",30,true]
["04KJ",1,false,null,null,"045O",1,false]
["04KL",1,false,null,null,"045U",1,false]
["04KM",1,false,null,null,"04KA",1,false]
["04KO",1,false,null,null,"04LP",1,false]
["04KP",1,false,null,null,"04VQ",1,false]
["04KQ",1,false,null,null,"04VZ",1,false]
["04LJ",1,false,null,null,"04W8",1,false]
["04LL",1,false,null,null,"04WA",1,false]
["04T3",1,false,null,null,"04WB",1,false]
["04T4",1,false,null,null,"04WN",1,false]
["04T5",1,false,null,null,"04WP",1,false]
["04TI",1,false,null,null,"04WW",1,false]
["04TN",1,false,null,null,"04XA",1,false]
["(vazio)",null,false,null,null,"04XE",1,false]
["4.6",6,true,null,null,"052O",1,false]
["044D",1,false,null,null,"05N9",1,false]
["04KE",1,false,null,null,"05NA",1,false]
["04KL",1,false,null,null,"05Z1",1,false]
["04KM",1,false,null,null,"0660",1,false]
["04T3",1,false,null,null,"06C6",1,false]
["04T5",1,false,null,null,"06GR",1,false]
["4.7",20,true,null,null,"06GS",1,false]
["003Q",1,false,null,null,"06GY",1,false]
["00FV",1,false,null,null,"06GZ",1,false]
["00FZ",1,false,null,null,"06H0",1,false]
["00W0",1,false,null,null,"06H1",1,false]
["01A1",1,false,null,null,"06MT",1,false]
["0433",1,false,null,null,"06OJ",1,false]
["044D",1,false,null,null,"06Z4",1,false]
["044F",1,false,null,null,"07FY",1,false]
["04K0",1,false,null,null,"(vazio)",null,false]
["04K1",1,false,null,null,"16.10",14,true]
["04KB",1,false,null,null,"04OC",1,false]
["04KE",1,false,null,null,"064P",1,false]
["04KN",1,false,null,null,"06KY",1,false]
["04KV",1,false,null,null,"06KZ",1,false]
["04LR",1,false,null,null,"06L7",1,false]
["04LT",1,false,null,null,"06L8",1,false]
["04MG",1,false,null,null,"06L9",1,false]
["04MH",1,false,null,null,"06M6",1,false]
["04MI",1,false,null,null,"06M7",1,false]
["04SE",1,false,null,null,"06M8",1,false]
["(vazio)",null,false,null,null,"06M9",1,false]
["4.a",3,true,null,null,"06MA",1,false]
["04KF",1,false,null,null,"06MB",1,false]
["04KG",1,false,null,null,"06MC",1,false]
["04KI",1,false,null,null,"(vazio)",null,false]
["(vazio)",null,false,null,null,"16.2",23,true]
["4.b",5,true,null,null,"00T9",1,false]
["01A0",1,false,null,null,"00TA",1,false]
["01A1",1,false,null,null,"00TC",1,false]
["04KV",1,false,null,null,"00TJ",1,false]
["04L3",1,false,null,null,"00TL",1,false]
["04L4",1,false,null,null,"00TN",1,false]
["(vazio)",null,false,null,null,"00TO",1,false]
["4.c",11,true,null,null,"00U1",1,false]
["044D",1,false,null,null,"04LP",1,false]
["04K7",1,false,null,null,"05HA",1,false]
["04K8",1,false,null,null,"05HB",1,false]
["04K9",1,{"$f":"B1159>1","v":false},null,null,"05HD",1,{"$f":"G1159>1","v":false}]
["04KA",1,false,null,null,"05HF",1,false]
["04KB",1,false,null,null,"05HG",1,false]
["04KC",1,false,null,null,"05HI",1,false]
["04KV",1,false,null,null,"05HJ",1,false]
["04KY",1,false,null,null,"05HL",1,false]
["04TL",1,false,null,null,"067A",1,false]
["04U1",1,false,null,null,"067B",1,false]
["(vazio)",null,false,null,null,"067C",1,false]
["5.1",1,false,null,null,"068D",1,false]
["04KN",1,false,null,null,"06EA",1,false]
["(vazio)",null,false,null,null,"06EB",1,false]
["5.2",2,true,null,null,"(vazio)",null,false]
["04BV",1,false,null,null,"16.3",8,true]
["04BW",1,false,null,null,"045L",1,false]
["(vazio)",null,false,null,null,"045M",1,false]
["5.3",1,false,null,null,"045N",1,false]
["04C6",1,false,null,null,"045P",1,false]
["(vazio)",null,false,null,null,"04WQ",1,false]
["5.4",1,false,null,null,"04WT",1,false]
["04BK",1,false,null,null,"04WV",1,false]
["(vazio)",null,false,null,null,"05GR",1,false]
["5.5",10,true,null,null,"(vazio)",null,false]
["00U5",1,false,null,null,"16.4",5,true]
["02A6",1,false,null,null,"04YX",1,false]
["044D",1,false,null,null,"04YY",1,false]
["049V",1,false,null,null,"04Z6",1,false]
["049W",1,false,null,null,"04Z8",1,false]
["04CH",1,false,null,null,"04Z9",1,false]
["04CI",1,false,null,null,"(vazio)",null,false]
["04GA",1,false,null,null,"16.5",10,true]
["04KM",1,false,null,null,"04YX",1,false]
["04T4",1,false,null,null,"06MU",1,false]
["(vazio)",null,false,null,null,"06MV",1,false]
["5.6",1,false,null,null,"06MW",1,false]
["04C6",1,false,null,null,"06MX",1,false]
["(vazio)",null,false,null,null,"06MY",1,false]
["5.a",4,true,null,null,"06MZ",1,false]
["044E",1,false,null,null,"06N0",1,false]
["044F",1,false,null,null,"06N1",1,false]
["049V",1,false,null,null,"06N2",1,false]
["04FS",1,false,null,null,"(vazio)",null,false]
["(vazio)",null,false,null,null,"16.6",55,true]
["5.b",1,false,null,null,"04O4",1,false]
["04LB",1,false,null,null,"04O6",1,false]
["(vazio)",null,false,null,null,"04OA",1,false]
["5.c",2,true,null,null,"04OB",1,false]
["04JN",1,false,null,null,"04XR",1,false]
["04QA",1,false,null,null,"04XS",1,false]
["(vazio)",null,false,null,null,"04XT",1,false]
["6.1",16,true,null,null,"04XU",1,false]
["016Z",1,false,null,null,"04XV",1,false]
["01Y1",1,false,null,null,"04XW",1,false]
["01Y6",1,false,null,null,"064K",1,false]
["040L",1,false,null,null,"064L",1,false]
["040M",1,false,null,null,"064M",1,false]
["040T",1,false,null,null,"064O",1,false]
["041M",1,false,null,null,"064V",1,false]
["041P",1,false,null,null,"06H9",1,false]
["041U",1,false,null,null,"06HA",1,false]
["041V",1,false,null,null,"06JZ",1,false]
["041W",1,false,null,null,"06K0",1,false]
["041X",1,false,null,null,"06K1",1,false]
["0423",1,false,null,null,"06K2",1,false]
["04I6",1,{"$f":"B1223>1","v":false},null,null,"06K3",1,{"$f":"G1223>1","v":false}]
["04K3",1,false,null,null,"06K4",1,false]
["04Q9",1,false,null,null,"06K5",1,false]
["(vazio)",null,false,null,null,"06K6",1,false]
["6.2",10,true,null,null,"06K7",1,false]
["0402",1,false,null,null,"06K8",1,false]
["040L",1,false,null,null,"06K9",1,false]
["040M",1,false,null,null,"06KA",1,false]
["040N",1,false,null,null,"06KB",1,false]
["041U",1,false,null,null,"06KC",1,false]
["041V",1,false,null,null,"06KD",1,false]
["041X",1,false,null,null,"06KH",1,false]
["04I7",1,false,null,null,"06KI",1,false]
["04I8",1,false,null,null,"06KN",1,false]
["04Q9",1,false,null,null,"06KS",1,false]
["(vazio)",null,false,null,null,"06KY",1,false]
["6.3",19,true,null,null,"06KZ",1,false]
["00OL",1,false,null,null,"06L0",1,false]
["040M",1,false,null,null,"06L1",1,false]
["040T",1,false,null,null,"06L2",1,false]
["041M",1,false,null,null,"06L3",1,false]
["041P",1,false,null,null,"06LG",1,false]
["041U",1,false,null,null,"06LH",1,false]
["041X",1,false,null,null,"06LI",1,false]
["0423",1,false,null,null,"06LJ",1,false]
["044B",1,false,null,null,"06LO",1,false]
["044C",1,false,null,null,"06LP",1,false]
["0453",1,false,null,null,"06LQ",1,false]
["0454",1,false,null,null,"06LR",1,false]
["04DW",1,false,null,null,"06LS",1,false]
["04DX",1,false,null,null,"06M6",1,false]
["04E2",1,false,null,null,"06M7",1,false]
["04I7",1,false,null,null,"06NJ",1,false]
["04I8",1,false,null,null,"06QL",1,false]
["04K3",1,false,null,null,"(vazio)",null,false]
["04Q9",1,false,null,null,"16.7",10,true]
["(vazio)",null,false,null,null,"00S9",1,false]
["6.4",20,true,null,null,"04ML",1,false]
["003Q",1,false,null,null,"04O7",1,false]
["00OL",1,false,null,null,"04O9",1,false]
["01Y1",1,false,null,null,"064I",1,false]
["01Y6",1,false,null,null,"064J",1,false]
["01Y7",1,false,null,null,"06H9",1,false]
["040T",1,false,null,null,"06HA",1,false]
["041L",1,false,null,null,"06KA",1,false]
["041M",1,false,null,null,"06KI",1,false]
["041P",1,false,null,null,"(vazio)",null,false]
["041Q",1,false,null,null,"16.8",1,false]
["041U",1,false,null,null,"0683",1,false]
["041X",1,false,null,null,"(vazio)",null,false]
["0423",1,false,null,null,"16.9",5,true]
["0453",1,false,null,null,"04LH",1,false]
["0454",1,false,null,null,"04LQ",1,false]
["046C",1,false,null,null,"04LU",1,false]
["046I",1,false,null,null,"04LV",1,false]
["046J",1,false,null,null,"058D",1,false]
["04A4",1,false,null,null,"(vazio)",null,false]
["04JY",1,false,null,null,"16.a",11,true]
["(vazio)",null,false,null,null,"045K",1,false]
["6.5",11,true,null,null,"045S",1,false]
["00OL",1,false,null,null,"05OW",1,false]
["041L",1,false,null,null,"05OY",1,false]
["041M",1,false,null,null,"05VQ",1,false]
["041N",1,false,null,null,"05VT",1,false]
["041O",1,{"$f":"B1287>1","v":false},null,null,"06F0",1,{"$f":"G1287>1","v":false}]
["041P",1,false,null,null,"06KF",1,false]
["041Q",1,false,null,null,"06L5",1,false]
["0453",1,false,null,null,"06L6",1,false]
["0454",1,false,null,null,"06LA",1,false]
["046I",1,false,null,null,"(vazio)",null,false]
["046J",1,false,null,null,"16.b",2,true]
["(vazio)",null,false,null,null,"06LP",1,false]
["6.6",8,true,null,null,"06QL",1,false]
["040T",1,false,null,null,"(vazio)",null,false]
["0423",1,false,null,null,"17.1",1,false]
["0453",1,false,null,null,"05KC",1,false]
["0454",1,false,null,null,"(vazio)",null,false]
["046X",1,false,null,null,"17.10",null,false]
["046Y",1,false,null,null,"(vazio)",null,false]
["047E",1,false,null,null,"17.11",5,true]
["0496",1,false,null,null,"04T6",1,false]
["(vazio)",null,false,null,null,"04T7",1,false]
["6.a",8,true,null,null,"04TD",1,false]
["019Z",1,false,null,null,"05KD",1,false]
["01A0",1,false,null,null,"05VN",1,false]
["041L",1,false,null,null,"(vazio)",null,false]
["041M",1,false,null,null,"17.12",2,true]
["041P",1,false,null,null,"0699",1,false]
["041Q",1,false,null,null,"069A",1,false]
["044E",1,false,null,null,"17.13",2,true]
["044F",1,false,null,null,"06F0",1,false]
["(vazio)",null,false,null,null,"06GA",1,false]
["6.b",9,true,null,null,"(vazio)",null,false]
["00OL",1,false,null,null,"17.14",10,true]
["01Y6",1,false,null,null,"050Z",1,false]
["041L",1,false,null,null,"0512",1,false]
["041M",1,false,null,null,"0513",1,false]
["041P",1,false,null,null,"0516",1,false]
["041Q",1,false,null,null,"0518",1,false]
["044E",1,false,null,null,"051B",1,false]
["044F",1,false,null,null,"051C",1,false]
["047X",1,false,null,null,"053V",1,false]
["(vazio)",null,false,null,null,"06KP",1,false]
["7.1",10,true,null,null,"06KR",1,false]
["0031",1,false,null,null,"(vazio)",null,false]
["00AY",1,false,null,null,"17.15",1,false]
["01LX",1,false,null,null,"05VW",1,false]
["01LZ",1,false,null,null,"(vazio)",null,false]
["0402",1,false,null,null,"17.16",10,true]
["0456",1,false,null,null,"00S9",1,false]
["04LY",1,false,null,null,"04O4",1,false]
["04RO",1,false,null,null,"04O5",1,false]
["04RP",1,false,null,null,"04O7",1,false]
["04SP",1,false,null,null,"051N",1,false]
["(vazio)",null,false,null,null,"051O",1,false]
["7.2",5,true,null,null,"051P",1,false]
["0001",1,false,null,null,"0528",1,false]
["0007",1,false,null,null,"052D",1,false]
["0008",1,false,null,null,"052I",1,false]
["00AY",1,false,null,null,"(vazio)",null,false]
["04RO",1,false,null,null,"17.17",8,true]
["(vazio)",null,false,null,null,"04O4",1,false]
["7.3",3,true,null,null,"04O5",1,false]
["003Q",1,false,null,null,"04O7",1,false]
["042P",1,false,null,null,"04O9",1,false]
["0480",1,false,null,null,"04OI",1,false]
["(vazio)",null,false,null,null,"04OJ",1,false]
["7.a",5,true,null,null,"051N",1,false]
["00W0",1,{"$f":"B1351>1","v":false},null,null,"05Y0",1,{"$f":"G1351>1","v":false}]
["044E",1,false,null,null,"(vazio)",null,false]
["044F",1,false,null,null,"17.18",2,true]
["0453",1,false,null,null,"05CU",1,false]
["0494",1,false,null,null,"05PC",1,false]
["(vazio)",null,false,null,null,"(vazio)",null,false]
["7.b",6,true,null,null,"17.19",null,false]
["0001",1,false,null,null,"(vazio)",null,false]
["0007",1,false,null,null,"17.2",null,false]
["0008",1,false,null,null,"(vazio)",null,false]
["003Q",1,false,null,null,"17.3",null,false]
["0480",1,false,null,null,"(vazio)",null,false]
["04JX",1,false,null,null,"17.4",null,false]
["(vazio)",null,false,null,null,"(vazio)",null,false]
["8.1",3,true,null,null,"17.5",null,false]
["04JL",1,false,null,null,"(vazio)",null,false]
["04JN",1,false,null,null,"17.6",3,true]
["04JO",1,false,null,null,"04Q7",1,false]
["(vazio)",null,false,null,null,"06F0",1,false]
["8.10",3,true,null,null,"06GA",1,false]
["049E",1,false,null,null,"(vazio)",null,false]
["049F",1,false,null,null,"17.7",6,true]
["049Z",1,false,null,null,"04ML",1,false]
["(vazio)",null,false,null,null,"050R",1,false]
["8.2",8,true,null,null,"050T",1,false]
["02MR",1,false,null,null,"050W",1,false]
["044E",1,false,null,null,"050Y",1,false]
["048F",1,false,null,null,"0539",1,false]
["0494",1,false,null,null,"17.8",null,false]
["049I",1,false,null,null,"(vazio)",null,false]
["04JN",1,false,null,null,"17.9",2,true]
["04K0",1,false,null,null,"04ML",1,false]
["04K2",1,false,null,null,"04O5",1,false]
["(vazio)",null,false,null,null,"(vazio)",null,false]
["8.3",24,true,null,null,"2.1",22,true]
["042Y",1,false,null,null,"04MF",1,false]
["0430",1,false,null,null,"04MH",1,false]
["044E",1,false,null,null,"04MI",1,false]
["044S",1,false,null,null,"04MJ",1,false]
["044T",1,false,null,null,"04ML",1,false]
["044U",1,false,null,null,"04NT",1,false]
["044Y",1,false,null,null,"050Z",1,false]
["0470",1,false,null,null,"0515",1,false]
["048F",1,false,null,null,"051B",1,false]
["0493",1,false,null,null,"051C",1,false]
["04IJ",1,false,null,null,"059P",1,false]
["04IK",1,false,null,null,"05CZ",1,false]
["04JM",1,false,null,null,"05G1",1,false]
["04JN",1,false,null,null,"05HR",1,false]
["04JO",1,false,null,null,"05JY",1,false]
["04LE",1,false,null,null,"05KS",1,false]
["04LG",1,false,null,null,"05KT",1,false]
["04LH",1,false,null,null,"05KY",1,false]
["04NV",1,false,null,null,"05KZ",1,false]
["04NW",1,false,null,null,"05MW",1,false]
["04NX",1,false,null,null,"05MX",1,false]
["04OC",1,false,null,null,"05ZC",1,false]
["04OK",1,false,null,null,"(vazio)",null,false]
["04SI",1,false,null,null,"2.2",12,true]
["(vazio)",null,false,null,null,"04MF",1,false]
["8.4",3,true,null,null,"04MI",1,false]
["044E",1,false,null,null,"04MJ",1,false]
["0453",1,false,null,null,"04ML",1,false]
["046X",1,false,null,null,"059P",1,false]
["(vazio)",null,{"$f":"B1415>1","v":false},null,null,"05HR",1,{"$f":"G1415>1","v":false}]
["8.5",6,true,null,null,"05JY",1,false]
["04NS",1,false,null,null,"05KS",1,false]
["04NT",1,false,null,null,"05KT",1,false]
["04O5",1,false,null,null,"05MW",1,false]
["04O6",1,false,null,null,"05MX",1,false]
["04OK",1,false,null,null,"06IZ",1,false]
["04OL",1,false,null,null,"(vazio)",null,false]
["(vazio)",null,false,null,null,"2.3",78,true]
["8.6",14,true,null,null,"02CK",1,false]
["04H8",1,false,null,null,"04JV",1,false]
["04HD",1,false,null,null,"04JX",1,false]
["04JN",1,false,null,null,"04JY",1,false]
["04KL",1,false,null,null,"04K5",1,false]
["04KM",1,false,null,null,"04KB",1,false]
["04KO",1,false,null,null,"04KE",1,false]
["04KP",1,false,null,null,"04M4",1,false]
["04KQ",1,false,null,null,"04M5",1,false]
["04KV",1,false,null,null,"04MF",1,false]
["04O6",1,false,null,null,"04MG",1,false]
["04OK",1,false,null,null,"04MH",1,false]
["04OL",1,false,null,null,"04MI",1,false]
["04T3",1,false,null,null,"04MK",1,false]
["04T5",1,false,null,null,"04ML",1,false]
["(vazio)",null,false,null,null,"04N8",1,false]
["8.7",5,true,null,null,"04N9",1,false]
["00H3",1,false,null,null,"04NA",1,false]
["049Y",1,false,null,null,"04ND",1,false]
["04MS",1,false,null,null,"04NS",1,false]
["04O3",1,false,null,null,"04NT",1,false]
["04O4",1,false,null,null,"04NU",1,false]
["(vazio)",null,false,null,null,"04NV",1,false]
["8.8",4,true,null,null,"04NW",1,false]
["04JL",1,false,null,null,"04O0",1,false]
["04O2",1,false,null,null,"04O2",1,false]
["04O8",1,false,null,null,"04O3",1,false]
["04O9",1,false,null,null,"04O6",1,false]
["(vazio)",null,false,null,null,"04OM",1,false]
["8.9",11,true,null,null,"04PH",1,false]
["047Y",1,false,null,null,"04PI",1,false]
["04EL",1,false,null,null,"04PK",1,false]
["04EP",1,false,null,null,"04PL",1,false]
["04JL",1,false,null,null,"04PM",1,false]
["04JM",1,false,null,null,"04PN",1,false]
["04JN",1,false,null,null,"04PQ",1,false]
["04JO",1,false,null,null,"04PR",1,false]
["04JP",1,false,null,null,"04PS",1,false]
["04K1",1,false,null,null,"04PT",1,false]
["04K2",1,false,null,null,"04PU",1,false]
["04LD",1,false,null,null,"04PX",1,false]
["(vazio)",null,false,null,null,"04VE",1,false]
["8.a",1,false,null,null,"04VF",1,false]
["(vazio)",null,false,null,null,"04VL",1,false]
["04PN",1,false,null,null,"04VP",1,false]
["8.b",8,true,null,null,"04YM",1,false]
["04KM",1,false,null,null,"04YO",1,false]
["04KO",1,false,null,null,"04ZP",1,false]
["04KP",1,false,null,null,"04ZS",1,false]
["04KQ",1,false,null,null,"04ZU",1,false]
["04OK",1,false,null,null,"050Z",1,false]
["04OL",1,false,null,null,"0511",1,false]
["04OM",1,false,null,null,"0513",1,false]
["04SU",1,false,null,null,"0515",1,false]
["(vazio)",null,false,null,null,"0517",1,false]
["9.1",50,{"$f":"B1479>1","v":true},null,null,"051B",1,{"$f":"G1479>1","v":false}]
["0056",1,false,null,null,"051P",1,false]
["005F",1,false,null,null,"051S",1,false]
["006X",1,false,null,null,"051T",1,false]
["006Z",1,false,null,null,"051W",1,false]
["0073",1,false,null,null,"052A",1,false]
["0074",1,false,null,null,"052L",1,false]
["0076",1,false,null,null,"059P",1,false]
["0079",1,false,null,null,"05B4",1,false]
["007C",1,false,null,null,"05CW",1,false]
["007G",1,false,null,null,"05CX",1,false]
["007J",1,false,null,null,"05D1",1,false]
["008C",1,false,null,null,"05MY",1,false]
["00F2",1,false,null,null,"05QN",1,false]
["00F3",1,false,null,null,"06HP",1,false]
["00IL",1,false,null,null,"06I9",1,false]
["00IQ",1,false,null,null,"06IC",1,false]
["00IR",1,false,null,null,"06ID",1,false]
["017M",1,false,null,null,"06IE",1,false]
["02IW",1,false,null,null,"06ND",1,false]
["03ZK",1,false,null,null,"07FA",1,false]
["03ZZ",1,false,null,null,"07FB",1,false]
["040H",1,false,null,null,"07FC",1,false]
["040O",1,false,null,null,"(vazio)",null,false]
["042Y",1,false,null,null,"2.4",72,true]
["0430",1,false,null,null,"00LF",1,false]
["043V",1,false,null,null,"00LJ",1,false]
["043X",1,false,null,null,"02C7",1,false]
["0445",1,false,null,null,"02CK",1,false]
["044T",1,false,null,null,"04JV",1,false]
["0495",1,false,null,null,"04K4",1,false]
["0497",1,false,null,null,"04MD",1,false]
["0498",1,false,null,null,"04ME",1,false]
["049C",1,false,null,null,"04MF",1,false]
["04A5",1,false,null,null,"04MI",1,false]
["04A6",1,false,null,null,"04MK",1,false]
["04A7",1,false,null,null,"04ML",1,false]
["04AB",1,false,null,null,"04N8",1,false]
["04AC",1,false,null,null,"04N9",1,false]
["04AD",1,false,null,null,"04NA",1,false]
["04AE",1,false,null,null,"04ND",1,false]
["04AF",1,false,null,null,"04NQ",1,false]
["04FJ",1,false,null,null,"04NR",1,false]
["04HC",1,false,null,null,"04O2",1,false]
["04ID",1,false,null,null,"04PC",1,false]
["04K1",1,false,null,null,"04PD",1,false]
["04K2",1,false,null,null,"04PF",1,false]
["04K5",1,false,null,null,"04PK",1,false]
["04LB",1,false,null,null,"04PL",1,false]
["04LH",1,false,null,null,"04PM",1,false]
["04LQ",1,false,null,null,"04PN",1,false]
["(vazio)",null,false,null,null,"04PR",1,false]
["9.2",5,true,null,null,"04SJ",1,false]
["044T",1,false,null,null,"04VE",1,false]
["044V",1,false,null,null,"04VF",1,false]
["049I",1,false,null,null,"04VG",1,false]
["04HB",1,false,null,null,"04VL",1,false]
["04HS",1,false,null,null,"04VP",1,false]
["(vazio)",null,false,null,null,"04YZ",1,false]
["9.3",8,true,null,null,"0501",1,false]
["044S",1,false,null,null,"0503",1,false]
["044T",1,false,null,null,"0505",1,false]
["044U",1,false,null,null,"0507",1,false]
["044V",1,false,null,null,"050Z",1,false]
["044Y",1,{"$f":"B1543>1","v":false},null,null,"0511",1,{"$f":"G1543>1","v":false}]
["0493",1,false,null,null,"0512",1,false]
["04LG",1,false,null,null,"0513",1,false]
["04SI",1,false,null,null,"0517",1,false]
["(vazio)",null,false,null,null,"051L",1,false]
["9.4",5,true,null,null,"051N",1,false]
["042Y",1,false,null,null,"051P",1,false]
["0430",1,false,null,null,"051R",1,false]
["044U",1,false,null,null,"051S",1,false]
["0480",1,false,null,null,"051T",1,false]
["04DX",1,false,null,null,"051W",1,false]
["(vazio)",null,false,null,null,"052A",1,false]
["9.5",20,true,null,null,"054B",1,false]
["00W0",1,false,null,null,"0554",1,false]
["00WJ",1,false,null,null,"0557",1,false]
["019Y",1,false,null,null,"057L",1,false]
["019Z",1,false,null,null,"059P",1,false]
["01A0",1,false,null,null,"05A9",1,false]
["01A1",1,false,null,null,"05CW",1,false]
["040O",1,false,null,null,"05CX",1,false]
["042Y",1,false,null,null,"05KB",1,false]
["0430",1,false,null,null,"05KD",1,false]
["044D",1,false,null,null,"05N1",1,false]
["044E",1,false,null,null,"05QI",1,false]
["044F",1,false,null,null,"05QN",1,false]
["044U",1,false,null,null,"061F",1,false]
["047N",1,false,null,null,"0635",1,false]
["048O",1,false,null,null,"06I9",1,false]
["04DP",1,false,null,null,"06IC",1,false]
["04KV",1,false,null,null,"06J5",1,false]
["04L2",1,false,null,null,"06ND",1,false]
["04L3",1,false,null,null,"07FA",1,false]
["04L4",1,false,null,null,"07FB",1,false]
["(vazio)",null,false,null,null,"(vazio)",null,false]
["9.a",6,true,null,null,"2.5",59,true]
["040O",1,false,null,null,"04G2",1,false]
["042Y",1,false,null,null,"04MD",1,false]
["0430",1,false,null,null,"04ME",1,false]
["0431",1,false,null,null,"04MF",1,false]
["0432",1,false,null,null,"04MH",1,false]
["044U",1,false,null,null,"04MI",1,false]
["(vazio)",null,false,null,null,"04ML",1,false]
["9.b",14,true,null,null,"04ND",1,false]
["00W0",1,false,null,null,"04PK",1,false]
["040O",1,false,null,null,"04PL",1,false]
["0431",1,false,null,null,"04PM",1,false]
["0432",1,false,null,null,"04PN",1,false]
["043D",1,false,null,null,"04TT",1,false]
["044R",1,false,null,null,"04VE",1,false]
["044U",1,false,null,null,"04VF",1,false]
["0453",1,false,null,null,"04VL",1,false]
["047N",1,false,null,null,"04VP",1,false]
["048O",1,false,null,null,"050O",1,false]
["0493",1,false,null,null,"050P",1,false]
["0494",1,false,null,null,"050Q",1,false]
["04IJ",1,false,null,null,"050R",1,false]
["04IK",1,false,null,null,"050S",1,false]
["(vazio)",null,false,null,null,"050T",1,false]
["9.c",10,true,null,null,"050U",1,false]
["0431",1,false,null,null,"050V",1,false]
["0432",1,false,null,null,"050W",1,false]
["044U",1,false,null,null,"050X",1,false]
["048H",1,null,null,null,"050Y",1,false]
["048I",1,null,null,null,"0510",1,false]
["048J",1,null,null,null,"0511",1,{"$f":"G1607>1","v":false}]
["048K",1,null,null,null,"0513",1,false]
["048L",1,null,null,null,"0515",1,false]
["04EC",1,null,null,null,"0516",1,false]
["04LB",1,null,null,null,"0517",1,false]
["(vazio)",null,null,null,null,"0518",1,false]
["Total Geral",1275,null,null,null,"051F",1,false]
[null,null,null,null,null,"051P",1,false]
[null,null,null,null,null,"051Q",1,false]
[null,null,null,null,null,"051S",1,false]
[null,null,null,null,null,"051T",1,false]
[null,null,null,null,null,"051W",1,false]
[null,null,null,null,null,"053D",1,false]
[null,null,null,null,null,"053E",1,false]
[null,null,null,null,null,"053F",1,false]
[null,null,null,null,null,"053G",1,false]
[null,null,null,null,null,"053U",1,false]
[null,null,null,null,null,"0541",1,false]
[null,null,null,null,null,"0546",1,false]
[null,null,null,null,null,"0549",1,false]
[null,null,null,null,null,"057L",1,false]
[null,null,null,null,null,"05BM",1,false]
[null,null,null,null,null,"05KG",1,false]
[null,null,null,null,null,"05KU",1,false]
[null,null,null,null,null,"05QH",1,false]
[null,null,null,null,null,"05QN",1,false]
[null,null,null,null,null,"05UX",1,false]
[null,null,null,null,null,"05UZ",1,false]
[null,null,null,null,null,"063W",1,false]
[null,null,null,null,null,"06ND",1,false]
[null,null,null,null,null,"(vazio)",null,false]
[null,null,null,null,null,"2.a",65,true]
[null,null,null,null,null,"00G0",1,false]
[null,null,null,null,null,"00G4",1,false]
[null,null,null,null,null,"00G5",1,false]
[null,null,null,null,null,"00G7",1,false]
[null,null,null,null,null,"00G8",1,false]
[null,null,null,null,null,"00GB",1,false]
[null,null,null,null,null,"00GC",1,false]
[null,null,null,null,null,"00GE",1,false]
[null,null,null,null,null,"00GH",1,false]
[null,null,null,null,null,"00GM",1,false]
[null,null,null,null,null,"00GQ",1,false]
[null,null,null,null,null,"00GR",1,false]
[null,null,null,null,null,"00GS",1,false]
[null,null,null,null,null,"00GU",1,false]
[null,null,null,null,null,"00GW",1,false]
[null,null,null,null,null,"00I0",1,false]
[null,null,null,null,null,"01LB",1,false]
[null,null,null,null,null,"021K",1,false]
[null,null,null,null,null,"021O",1,false]
[null,null,null,null,null,"021Q",1,false]
[null,null,null,null,null,"0229",1,false]
[null,null,null,null,null,"022H",1,false]
[null,null,null,null,null,"022O",1,false]
[null,null,null,null,null,"04E3",1,false]
[null,null,null,null,null,"04IE",1,false]
[null,null,null,null,null,"04KD",1,false]
[null,null,null,null,null,"04KF",1,false]
[null,null,null,null,null,"04KH",1,false]
[null,null,null,null,null,"04PK",1,false]
[null,null,null,null,null,"04PL",1,false]
[null,null,null,null,null,"04PM",1,false]
[null,null,null,null,null,"04PN",1,false]
[null,null,null,null,null,"04TL",1,{"$f":"G1671>1","v":false}]
[null,null,null,null,null,"04VE",1,false]
[null,null,null,null,null,"04VF",1,false]
[null,null,null,null,null,"04VL",1,false]
[null,null,null,null,null,"04VP",1,false]
[null,null,null,null,null,"04Y3",1,false]
[null,null,null,null,null,"04YC",1,false]
[null,null,null,null,null,"04YD",1,false]
[null,null,null,null,null,"04YE",1,false]
[null,null,null,null,null,"04YF",1,false]
[null,null,null,null,null,"04YG",1,false]
[null,null,null,null,null,"050I",1,false]
[null,null,null,null,null,"050J",1,false]
[null,null,null,null,null,"050K",1,false]
[null,null,null,null,null,"050Z",1,false]
[null,null,null,null,null,"0511",1,false]
[null,null,null,null,null,"0513",1,false]
[null,null,null,null,null,"0585",1,false]
[null,null,null,null,null,"0586",1,false]
[null,null,null,null,null,"06HY",1,false]
[null,null,null,null,null,"06HZ",1,false]
[null,null,null,null,null,"06I0",1,false]
[null,null,null,null,null,"06I1",1,false]
[null,null,null,null,null,"06I2",1,false]
[null,null,null,null,null,"06I3",1,false]
[null,null,null,null,null,"06I4",1,false]
[null,null,null,null,null,"06I6",1,false]
[null,null,null,null,null,"06ND",1,false]
[null,null,null,null,null,"06O8",1,false]
[null,null,null,null,null,"06O9",1,false]
[null,null,null,null,null,"06OA",1,false]
[null,null,null,null,null,"06OL",1,false]
[null,null,null,null,null,"06U6",1,false]
[null,null,null,null,null,"(vazio)",null,false]
[null,null,null,null,null,"2.b",3,true]
[null,null,null,null,null,"050K",1,false]
[null,null,null,null,null,"05CY",1,false]
[null,null,null,null,null,"05D7",1,false]
[null,null,null,null,null,"(vazio)",null,false]
[null,null,null,null,null,"2.c",7,true]
[null,null,null,null,null,"04NT",1,false]
[null,null,null,null,null,"04VV",1,false]
[null,null,null,null,null,"05CY",1,false]
[null,null,null,null,null,"05CZ",1,false]
[null,null,null,null,null,"05D1",1,false]
[null,null,null,null,null,"05KZ",1,false]
[null,null,null,null,null,"06ID",1,false]
[null,null,null,null,null,"(vazio)",null,false]
[null,null,null,null,null,"3.1",5,true]
[null,null,null,null,null,"02QM",1,false]
[null,null,null,null,null,"05S6",1,false]
[null,null,null,null,null,"05S7",1,false]
[null,null,null,null,null,"05WL",1,false]
[null,null,null,null,null,"06Q4",1,false]
[null,null,null,null,null,"(vazio)",null,false]
[null,null,null,null,null,"3.2",3,true]
[null,null,null,null,null,"05KB",1,false]
[null,null,null,null,null,"05QU",1,false]
[null,null,null,null,null,"05QV",1,false]
[null,null,null,null,null,"(vazio)",null,false]
[null,null,null,null,null,"3.3",9,true]
[null,null,null,null,null,"02QB",1,false]
[null,null,null,null,null,"04KR",1,false]
[null,null,null,null,null,"05KB",1,false]
[null,null,null,null,null,"05N1",1,{"$f":"G1735>1","v":false}]
[null,null,null,null,null,"05QI",1,false]
[null,null,null,null,null,"05RY",1,false]
[null,null,null,null,null,"05RZ",1,false]
[null,null,null,null,null,"05S0",1,false]
[null,null,null,null,null,"06IZ",1,false]
[null,null,null,null,null,"(vazio)",null,false]
[null,null,null,null,null,"3.4",6,true]
[null,null,null,null,null,"04MJ",1,false]
[null,null,null,null,null,"04ML",1,false]
[null,null,null,null,null,"05SF",1,false]
[null,null,null,null,null,"05SG",1,false]
[null,null,null,null,null,"05YK",1,false]
[null,null,null,null,null,"06JA",1,false]
[null,null,null,null,null,"(vazio)",null,false]
[null,null,null,null,null,"3.5",12,true]
[null,null,null,null,null,"04LP",1,false]
[null,null,null,null,null,"05IG",1,false]
[null,null,null,null,null,"05IJ",1,false]
[null,null,null,null,null,"05SC",1,false]
[null,null,null,null,null,"05UO",1,false]
[null,null,null,null,null,"05VO",1,false]
[null,null,null,null,null,"05ZV",1,false]
[null,null,null,null,null,"06CE",1,false]
[null,null,null,null,null,"06JR",1,false]
[null,null,null,null,null,"06SB",1,false]
[null,null,null,null,null,"06SF",1,false]
[null,null,null,null,null,"07G0",1,false]
[null,null,null,null,null,"(vazio)",null,false]
[null,null,null,null,null,"3.6",12,true]
[null,null,null,null,null,"02BB",1,false]
[null,null,null,null,null,"02BC",1,false]
[null,null,null,null,null,"04SD",1,false]
[null,null,null,null,null,"04SE",1,false]
[null,null,null,null,null,"04T4",1,false]
[null,null,null,null,null,"05LH",1,false]
[null,null,null,null,null,"05LI",1,false]
[null,null,null,null,null,"05LJ",1,false]
[null,null,null,null,null,"05LK",1,false]
[null,null,null,null,null,"05SE",1,false]
[null,null,null,null,null,"06QE",1,false]
[null,null,null,null,null,"06S7",1,false]
[null,null,null,null,null,"(vazio)",null,false]
[null,null,null,null,null,"3.7",4,true]
[null,null,null,null,null,"05DC",1,false]
[null,null,null,null,null,"05F8",1,false]
[null,null,null,null,null,"05QT",1,false]
[null,null,null,null,null,"05XC",1,false]
[null,null,null,null,null,"(vazio)",null,false]
[null,null,null,null,null,"3.8",1,false]
[null,null,null,null,null,"05QR",1,false]
[null,null,null,null,null,"(vazio)",null,false]
[null,null,null,null,null,"3.9",21,true]
[null,null,null,null,null,"04MH",1,false]
[null,null,null,null,null,"04MJ",1,false]
[null,null,null,null,null,"04ML",1,false]
[null,null,null,null,null,"04NR",1,false]
[null,null,null,null,null,"05J3",1,false]
[null,null,null,null,null,"05J5",1,false]
[null,null,null,null,null,"05JD",1,false]
[null,null,null,null,null,"05JF",1,false]
[null,null,null,null,null,"05JG",1,false]
[null,null,null,null,null,"05JI",1,false]
[null,null,null,null,null,"05JL",1,false]
[null,null,null,null,null,"05JN",1,{"$f":"G1799>1","v":false}]
[null,null,null,null,null,"05JP",1,false]
[null,null,null,null,null,"05KB",1,false]
[null,null,null,null,null,"05KD",1,false]
[null,null,null,null,null,"05KE",1,false]
[null,null,null,null,null,"05QI",1,false]
[null,null,null,null,null,"05U7",1,false]
[null,null,null,null,null,"06IZ",1,false]
[null,null,null,null,null,"06JC",1,false]
[null,null,null,null,null,"06JD",1,false]
[null,null,null,null,null,"(vazio)",null,false]
[null,null,null,null,null,"3.a",null,false]
[null,null,null,null,null,"(vazio)",null,false]
[null,null,null,null,null,"3.b",8,true]
[null,null,null,null,null,"04TH",1,false]
[null,null,null,null,null,"04TI",1,false]
[null,null,null,null,null,"04VE",1,false]
[null,null,null,null,null,"04VF",1,false]
[null,null,null,null,null,"05SJ",1,false]
[null,null,null,null,null,"06QG",1,false]
[null,null,null,null,null,"06RP",1,false]
[null,null,null,null,null,"06RR",1,false]
[null,null,null,null,null,"(vazio)",null,false]
[null,null,null,null,null,"3.c",11,true]
[null,null,null,null,null,"05TO",1,false]
[null,null,null,null,null,"05TY",1,false]
[null,null,null,null,null,"05UH",1,false]
[null,null,null,null,null,"05UP",1,false]
[null,null,null,null,null,"05V2",1,false]
[null,null,null,null,null,"05X6",1,false]
[null,null,null,null,null,"0629",1,false]
[null,null,null,null,null,"062A",1,false]
[null,null,null,null,null,"06CM",1,false]
[null,null,null,null,null,"06JJ",1,false]
[null,null,null,null,null,"06JK",1,false]
[null,null,null,null,null,"(vazio)",null,false]
[null,null,null,null,null,"3.d",3,true]
[null,null,null,null,null,"05U7",1,false]
[null,null,null,null,null,"05UJ",1,false]
[null,null,null,null,null,"05XC",1,false]
[null,null,null,null,null,"(vazio)",null,false]
[null,null,null,null,null,"4.1",1,false]
[null,null,null,null,null,"060S",1,false]
[null,null,null,null,null,"(vazio)",null,false]
[null,null,null,null,null,"4.2",3,true]
[null,null,null,null,null,"05CV",1,false]
[null,null,null,null,null,"05RC",1,false]
[null,null,null,null,null,"067L",1,false]
[null,null,null,null,null,"(vazio)",null,false]
[null,null,null,null,null,"4.3",10,true]
[null,null,null,null,null,"04U7",1,false]
[null,null,null,null,null,"05YE",1,false]
[null,null,null,null,null,"05YF",1,false]
[null,null,null,null,null,"05YJ",1,false]
[null,null,null,null,null,"0614",1,false]
[null,null,null,null,null,"0617",1,false]
[null,null,null,null,null,"061C",1,false]
[null,null,null,null,null,"06H6",1,false]
[null,null,null,null,null,"07GG",1,false]
[null,null,null,null,null,"07GH",1,false]
[null,null,null,null,null,"(vazio)",null,false]
[null,null,null,null,null,"4.4",13,true]
[null,null,null,null,null,"04ML",1,false]
[null,null,null,null,null,"04NB",1,false]
[null,null,null,null,null,"04NE",1,{"$f":"G1863>1","v":false}]
[null,null,null,null,null,"04S6",1,false]
[null,null,null,null,null,"04U7",1,false]
[null,null,null,null,null,"05Y5",1,false]
[null,null,null,null,null,"061F",1,false]
[null,null,null,null,null,"061G",1,false]
[null,null,null,null,null,"061O",1,false]
[null,null,null,null,null,"067M",1,false]
[null,null,null,null,null,"06CV",1,false]
[null,null,null,null,null,"06SF",1,false]
[null,null,null,null,null,"07FC",1,false]
[null,null,null,null,null,"(vazio)",null,false]
[null,null,null,null,null,"4.5",14,true]
[null,null,null,null,null,"04JQ",1,false]
[null,null,null,null,null,"04ML",1,false]
[null,null,null,null,null,"04NE",1,false]
[null,null,null,null,null,"04U7",1,false]
[null,null,null,null,null,"05BN",1,false]
[null,null,null,null,null,"05ZC",1,false]
[null,null,null,null,null,"060M",1,false]
[null,null,null,null,null,"061O",1,false]
[null,null,null,null,null,"067G",1,false]
[null,null,null,null,null,"067L",1,false]
[null,null,null,null,null,"07FC",1,false]
[null,null,null,null,null,"07GC",1,false]
[null,null,null,null,null,"07GD",1,false]
[null,null,null,null,null,"07GE",1,false]
[null,null,null,null,null,"(vazio)",null,false]
[null,null,null,null,null,"4.6",null,false]
[null,null,null,null,null,"(vazio)",null,false]
[null,null,null,null,null,"4.7",44,true]
[null,null,null,null,null,"04LO",1,false]
[null,null,null,null,null,"04NE",1,false]
[null,null,null,null,null,"04QO",1,false]
[null,null,null,null,null,"04TH",1,false]
[null,null,null,null,null,"04U8",1,false]
[null,null,null,null,null,"04U9",1,false]
[null,null,null,null,null,"04UA",1,false]
[null,null,null,null,null,"051B",1,false]
[null,null,null,null,null,"051C",1,false]
[null,null,null,null,null,"051P",1,false]
[null,null,null,null,null,"051S",1,false]
[null,null,null,null,null,"054I",1,false]
[null,null,null,null,null,"058Z",1,false]
[null,null,null,null,null,"05D9",1,false]
[null,null,null,null,null,"05GC",1,false]
[null,null,null,null,null,"05J9",1,false]
[null,null,null,null,null,"05KC",1,false]
[null,null,null,null,null,"05KD",1,false]
[null,null,null,null,null,"05NA",1,false]
[null,null,null,null,null,"05QN",1,false]
[null,null,null,null,null,"05YU",1,false]
[null,null,null,null,null,"05YX",1,false]
[null,null,null,null,null,"05Z0",1,false]
[null,null,null,null,null,"05ZQ",1,false]
[null,null,null,null,null,"05ZV",1,false]
[null,null,null,null,null,"060Q",1,false]
[null,null,null,null,null,"061M",1,false]
[null,null,null,null,null,"061O",1,false]
[null,null,null,null,null,"061Q",1,false]
[null,null,null,null,null,"062F",1,false]
[null,null,null,null,null,"065T",1,false]
[null,null,null,null,null,"065U",1,false]
[null,null,null,null,null,"0664",1,false]
[null,null,null,null,null,"0665",1,{"$f":"G1927>1","v":false}]
[null,null,null,null,null,"0667",1,false]
[null,null,null,null,null,"0668",1,false]
[null,null,null,null,null,"066C",1,false]
[null,null,null,null,null,"067E",1,false]
[null,null,null,null,null,"067L",1,false]
[null,null,null,null,null,"067M",1,false]
[null,null,null,null,null,"06H7",1,false]
[null,null,null,null,null,"06SF",1,false]
[null,null,null,null,null,"06XC",1,false]
[null,null,null,null,null,"07GG",1,false]
[null,null,null,null,null,"(vazio)",null,false]
[null,null,null,null,null,"4.a",7,true]
[null,null,null,null,null,"04QD",1,false]
[null,null,null,null,null,"05CV",1,false]
[null,null,null,null,null,"060G",1,false]
[null,null,null,null,null,"060H",1,false]
[null,null,null,null,null,"060I",1,false]
[null,null,null,null,null,"060N",1,false]
[null,null,null,null,null,"07GC",1,false]
[null,null,null,null,null,"(vazio)",null,false]
[null,null,null,null,null,"4.b",5,true]
[null,null,null,null,null,"04QD",1,false]
[null,null,null,null,null,"061M",1,false]
[null,null,null,null,null,"061O",1,false]
[null,null,null,null,null,"0623",1,false]
[null,null,null,null,null,"067N",1,false]
[null,null,null,null,null,"(vazio)",null,false]
[null,null,null,null,null,"4.c",11,true]
[null,null,null,null,null,"04QD",1,false]
[null,null,null,null,null,"060U",1,false]
[null,null,null,null,null,"060V",1,false]
[null,null,null,null,null,"060X",1,false]
[null,null,null,null,null,"060Y",1,false]
[null,null,null,null,null,"060Z",1,false]
[null,null,null,null,null,"0616",1,false]
[null,null,null,null,null,"061O",1,false]
[null,null,null,null,null,"067L",1,false]
[null,null,null,null,null,"06PO",1,false]
[null,null,null,null,null,"06QN",1,false]
[null,null,null,null,null,"(vazio)",null,false]
[null,null,null,null,null,"5.1",3,true]
[null,null,null,null,null,"05PD",1,false]
[null,null,null,null,null,"06QA",1,false]
[null,null,null,null,null,"07GG",1,false]
[null,null,null,null,null,"(vazio)",null,false]
[null,null,null,null,null,"5.2",5,true]
[null,null,null,null,null,"05E2",1,false]
[null,null,null,null,null,"05E3",1,false]
[null,null,null,null,null,"05YI",1,false]
[null,null,null,null,null,"05Z5",1,false]
[null,null,null,null,null,"06QF",1,false]
[null,null,null,null,null,"(vazio)",null,false]
[null,null,null,null,null,"5.3",1,false]
[null,null,null,null,null,"06SC",1,false]
[null,null,null,null,null,"(vazio)",null,false]
[null,null,null,null,null,"5.4",1,false]
[null,null,null,null,null,"05CU",1,false]
[null,null,null,null,null,"(vazio)",null,false]
[null,null,null,null,null,"5.5",7,true]
[null,null,null,null,null,"058C",1,false]
[null,null,null,null,null,"05G2",1,false]
[null,null,null,null,null,"05G3",1,false]
[null,null,null,null,null,"05G4",1,false]
[null,null,null,null,null,"05G5",1,{"$f":"G1991>1","v":false}]
[null,null,null,null,null,"06GW",1,false]
[null,null,null,null,null,"06HG",1,false]
[null,null,null,null,null,"(vazio)",null,false]
[null,null,null,null,null,"5.6",3,true]
[null,null,null,null,null,"05DC",1,false]
[null,null,null,null,null,"05F8",1,false]
[null,null,null,null,null,"06SC",1,false]
[null,null,null,null,null,"(vazio)",null,false]
[null,null,null,null,null,"5.a",3,true]
[null,null,null,null,null,"058E",1,false]
[null,null,null,null,null,"05CP",1,false]
[null,null,null,null,null,"05PB",1,false]
[null,null,null,null,null,"(vazio)",null,false]
[null,null,null,null,null,"5.b",4,true]
[null,null,null,null,null,"04MG",1,false]
[null,null,null,null,null,"04ML",1,false]
[null,null,null,null,null,"04NE",1,false]
[null,null,null,null,null,"062K",1,false]
[null,null,null,null,null,"(vazio)",null,false]
[null,null,null,null,null,"5.c",4,true]
[null,null,null,null,null,"05CP",1,false]
[null,null,null,null,null,"05EE",1,false]
[null,null,null,null,null,"05Y3",1,false]
[null,null,null,null,null,"067H",1,false]
[null,null,null,null,null,"(vazio)",null,false]
[null,null,null,null,null,"6.1",40,true]
[null,null,null,null,null,"01L5",1,false]
[null,null,null,null,null,"01L7",1,false]
[null,null,null,null,null,"01L8",1,false]
[null,null,null,null,null,"01LA",1,false]
[null,null,null,null,null,"01LB",1,false]
[null,null,null,null,null,"01LF",1,false]
[null,null,null,null,null,"01LH",1,false]
[null,null,null,null,null,"01LJ",1,false]
[null,null,null,null,null,"01LL",1,false]
[null,null,null,null,null,"01LM",1,false]
[null,null,null,null,null,"04CS",1,false]
[null,null,null,null,null,"04EM",1,false]
[null,null,null,null,null,"04FL",1,false]
[null,null,null,null,null,"04H9",1,false]
[null,null,null,null,null,"04HA",1,false]
[null,null,null,null,null,"04HB",1,false]
[null,null,null,null,null,"04IF",1,false]
[null,null,null,null,null,"04U0",1,false]
[null,null,null,null,null,"04U1",1,false]
[null,null,null,null,null,"04U2",1,false]
[null,null,null,null,null,"059P",1,false]
[null,null,null,null,null,"05HS",1,false]
[null,null,null,null,null,"05N1",1,false]
[null,null,null,null,null,"05NM",1,false]
[null,null,null,null,null,"05NU",1,false]
[null,null,null,null,null,"06HV",1,false]
[null,null,null,null,null,"06SP",1,false]
[null,null,null,null,null,"06U4",1,false]
[null,null,null,null,null,"06U5",1,false]
[null,null,null,null,null,"06U8",1,false]
[null,null,null,null,null,"06U9",1,false]
[null,null,null,null,null,"06UA",1,false]
[null,null,null,null,null,"06UC",1,false]
[null,null,null,null,null,"06UI",1,false]
[null,null,null,null,null,"06UK",1,false]
[null,null,null,null,null,"06V0",1,false]
[null,null,null,null,null,"06VD",1,false]
[null,null,null,null,null,"06Z5",1,{"$f":"G2055>1","v":false}]
[null,null,null,null,null,"06ZF",1,false]
[null,null,null,null,null,"07C4",1,false]
[null,null,null,null,null,"(vazio)",null,false]
[null,null,null,null,null,"6.2",2,true]
[null,null,null,null,null,"04JT",1,false]
[null,null,null,null,null,"059P",1,false]
[null,null,null,null,null,"(vazio)",null,false]
[null,null,null,null,null,"6.3",11,true]
[null,null,null,null,null,"0066",1,false]
[null,null,null,null,null,"04N1",1,false]
[null,null,null,null,null,"04N3",1,false]
[null,null,null,null,null,"04NF",1,false]
[null,null,null,null,null,"04NJ",1,false]
[null,null,null,null,null,"04VF",1,false]
[null,null,null,null,null,"04VL",1,false]
[null,null,null,null,null,"05J9",1,false]
[null,null,null,null,null,"05KB",1,false]
[null,null,null,null,null,"05KD",1,false]
[null,null,null,null,null,"05Z7",1,false]
[null,null,null,null,null,"(vazio)",null,false]
[null,null,null,null,null,"6.4",20,true]
[null,null,null,null,null,"02C7",1,false]
[null,null,null,null,null,"04ME",1,false]
[null,null,null,null,null,"04MR",1,false]
[null,null,null,null,null,"04MT",1,false]
[null,null,null,null,null,"04MU",1,false]
[null,null,null,null,null,"04MV",1,false]
[null,null,null,null,null,"04ND",1,false]
[null,null,null,null,null,"04QO",1,false]
[null,null,null,null,null,"04VF",1,false]
[null,null,null,null,null,"04VL",1,false]
[null,null,null,null,null,"0501",1,false]
[null,null,null,null,null,"0503",1,false]
[null,null,null,null,null,"0505",1,false]
[null,null,null,null,null,"0507",1,false]
[null,null,null,null,null,"05A9",1,false]
[null,null,null,null,null,"05AB",1,false]
[null,null,null,null,null,"05G9",1,false]
[null,null,null,null,null,"05HS",1,false]
[null,null,null,null,null,"05N1",1,false]
[null,null,null,null,null,"05Z7",1,false]
[null,null,null,null,null,"(vazio)",null,false]
[null,null,null,null,null,"6.5",17,true]
[null,null,null,null,null,"02C7",1,false]
[null,null,null,null,null,"04KL",1,false]
[null,null,null,null,null,"04KM",1,false]
[null,null,null,null,null,"04KP",1,false]
[null,null,null,null,null,"04ME",1,false]
[null,null,null,null,null,"04ML",1,false]
[null,null,null,null,null,"04NF",1,false]
[null,null,null,null,null,"04NI",1,false]
[null,null,null,null,null,"04NJ",1,false]
[null,null,null,null,null,"04NL",1,false]
[null,null,null,null,null,"04QO",1,false]
[null,null,null,null,null,"04VF",1,false]
[null,null,null,null,null,"04VL",1,false]
[null,null,null,null,null,"0501",1,false]
[null,null,null,null,null,"0503",1,false]
[null,null,null,null,null,"0505",1,false]
[null,null,null,null,null,"0507",1,false]
[null,null,null,null,null,"(vazio)",null,false]
[null,null,null,null,null,"6.6",9,true]
[null,null,null,null,null,"04MD",1,false]
[null,null,null,null,null,"04ME",1,{"$f":"G2119>1","v":false}]
[null,null,null,null,null,"04NR",1,false]
[null,null,null,null,null,"04QO",1,false]
[null,null,null,null,null,"04VF",1,false]
[null,null,null,null,null,"04VL",1,false]
[null,null,null,null,null,"05Q4",1,false]
[null,null,null,null,null,"05Q5",1,false]
[null,null,null,null,null,"05Q7",1,false]
[null,null,null,null,null,"(vazio)",null,false]
[null,null,null,null,null,"6.a",8,true]
[null,null,null,null,null,"04ML",1,false]
[null,null,null,null,null,"04MQ",1,false]
[null,null,null,null,null,"04QA",1,false]
[null,null,null,null,null,"04QD",1,false]
[null,null,null,null,null,"04QO",1,false]
[null,null,null,null,null,"04TH",1,false]
[null,null,null,null,null,"04TI",1,false]
[null,null,null,null,null,"04UA",1,false]
[null,null,null,null,null,"(vazio)",null,false]
[null,null,null,null,null,"6.b",9,true]
[null,null,null,null,null,"04KM",1,false]
[null,null,null,null,null,"04KN",1,false]
[null,null,null,null,null,"04N2",1,false]
[null,null,null,null,null,"04NF",1,false]
[null,null,null,null,null,"04UA",1,false]
[null,null,null,null,null,"04UB",1,false]
[null,null,null,null,null,"0517",1,false]
[null,null,null,null,null,"051B",1,false]
[null,null,null,null,null,"06JT",1,false]
[null,null,null,null,null,"(vazio)",null,false]
[null,null,null,null,null,"7.1",11,true]
[null,null,null,null,null,"00L5",1,false]
[null,null,null,null,null,"023T",1,false]
[null,null,null,null,null,"023V",1,false]
[null,null,null,null,null,"023X",1,false]
[null,null,null,null,null,"04JT",1,false]
[null,null,null,null,null,"04VW",1,false]
[null,null,null,null,null,"0562",1,false]
[null,null,null,null,null,"064B",1,false]
[null,null,null,null,null,"064C",1,false]
[null,null,null,null,null,"064D",1,false]
[null,null,null,null,null,"06M5",1,false]
[null,null,null,null,null,"(vazio)",null,false]
[null,null,null,null,null,"7.2",20,true]
[null,null,null,null,null,"0001",1,false]
[null,null,null,null,null,"0008",1,false]
[null,null,null,null,null,"0009",1,false]
[null,null,null,null,null,"000B",1,false]
[null,null,null,null,null,"000D",1,false]
[null,null,null,null,null,"000F",1,false]
[null,null,null,null,null,"000J",1,false]
[null,null,null,null,null,"000K",1,false]
[null,null,null,null,null,"000L",1,false]
[null,null,null,null,null,"000N",1,false]
[null,null,null,null,null,"000O",1,false]
[null,null,null,null,null,"000R",1,false]
[null,null,null,null,null,"000S",1,false]
[null,null,null,null,null,"000X",1,false]
[null,null,null,null,null,"02Y2",1,false]
[null,null,null,null,null,"04MK",1,false]
[null,null,null,null,null,"04ML",1,false]
[null,null,null,null,null,"04U5",1,false]
[null,null,null,null,null,"05Z7",1,false]
[null,null,null,null,null,"060B",1,false]
[null,null,null,null,null,"(vazio)",null,{"$f":"G2183>1","v":false}]
[null,null,null,null,null,"7.3",12,true]
[null,null,null,null,null,"003V",1,false]
[null,null,null,null,null,"003W",1,false]
[null,null,null,null,null,"003X",1,false]
[null,null,null,null,null,"003Y",1,false]
[null,null,null,null,null,"0065",1,false]
[null,null,null,null,null,"02CU",1,false]
[null,null,null,null,null,"02CV",1,false]
[null,null,null,null,null,"02CY",1,false]
[null,null,null,null,null,"04MK",1,false]
[null,null,null,null,null,"04ML",1,false]
[null,null,null,null,null,"04Q5",1,false]
[null,null,null,null,null,"05Z7",1,false]
[null,null,null,null,null,"(vazio)",null,false]
[null,null,null,null,null,"7.a",12,true]
[null,null,null,null,null,"0066",1,false]
[null,null,null,null,null,"04QA",1,false]
[null,null,null,null,null,"04QO",1,false]
[null,null,null,null,null,"04TH",1,false]
[null,null,null,null,null,"04UB",1,false]
[null,null,null,null,null,"04UU",1,false]
[null,null,null,null,null,"04UV",1,false]
[null,null,null,null,null,"04UW",1,false]
[null,null,null,null,null,"04VE",1,false]
[null,null,null,null,null,"04VF",1,false]
[null,null,null,null,null,"04VL",1,false]
[null,null,null,null,null,"06XJ",1,false]
[null,null,null,null,null,"(vazio)",null,false]
[null,null,null,null,null,"7.b",18,true]
[null,null,null,null,null,"0001",1,false]
[null,null,null,null,null,"0008",1,false]
[null,null,null,null,null,"0009",1,false]
[null,null,null,null,null,"000B",1,false]
[null,null,null,null,null,"000D",1,false]
[null,null,null,null,null,"000F",1,false]
[null,null,null,null,null,"000J",1,false]
[null,null,null,null,null,"000K",1,false]
[null,null,null,null,null,"000L",1,false]
[null,null,null,null,null,"000N",1,false]
[null,null,null,null,null,"000O",1,false]
[null,null,null,null,null,"000R",1,false]
[null,null,null,null,null,"000S",1,false]
[null,null,null,null,null,"000X",1,false]
[null,null,null,null,null,"003V",1,false]
[null,null,null,null,null,"02CU",1,false]
[null,null,null,null,null,"04U5",1,false]
[null,null,null,null,null,"04V1",1,false]
[null,null,null,null,null,"(vazio)",null,false]
[null,null,null,null,null,"8.1",4,true]
[null,null,null,null,null,"05Y0",1,false]
[null,null,null,null,null,"05Y2",1,false]
[null,null,null,null,null,"05Y3",1,false]
[null,null,null,null,null,"05YA",1,false]
[null,null,null,null,null,"(vazio)",null,false]
[null,null,null,null,null,"8.10",3,true]
[null,null,null,null,null,"0573",1,false]
[null,null,null,null,null,"0576",1,false]
[null,null,null,null,null,"06OU",1,false]
[null,null,null,null,null,"(vazio)",null,false]
[null,null,null,null,null,"8.2",18,true]
[null,null,null,null,null,"0066",1,false]
[null,null,null,null,null,"04MG",1,false]
[null,null,null,null,null,"04ML",1,false]
[null,null,null,null,null,"050Z",1,{"$f":"G2247>1","v":false}]
[null,null,null,null,null,"0513",1,false]
[null,null,null,null,null,"0515",1,false]
[null,null,null,null,null,"0516",1,false]
[null,null,null,null,null,"057A",1,false]
[null,null,null,null,null,"057B",1,false]
[null,null,null,null,null,"057E",1,false]
[null,null,null,null,null,"058K",1,false]
[null,null,null,null,null,"05VV",1,false]
[null,null,null,null,null,"05Y0",1,false]
[null,null,null,null,null,"05Y3",1,false]
[null,null,null,null,null,"061N",1,false]
[null,null,null,null,null,"062K",1,false]
[null,null,null,null,null,"067H",1,false]
[null,null,null,null,null,"07FA",1,false]
[null,null,null,null,null,"(vazio)",null,false]
[null,null,null,null,null,"8.3",22,true]
[null,null,null,null,null,"04HF",1,false]
[null,null,null,null,null,"04ML",1,false]
[null,null,null,null,null,"04Q8",1,false]
[null,null,null,null,null,"04S3",1,false]
[null,null,null,null,null,"0515",1,false]
[null,null,null,null,null,"0516",1,false]
[null,null,null,null,null,"051B",1,false]
[null,null,null,null,null,"054T",1,false]
[null,null,null,null,null,"059P",1,false]
[null,null,null,null,null,"05VU",1,false]
[null,null,null,null,null,"05Y0",1,false]
[null,null,null,null,null,"05Y2",1,false]
[null,null,null,null,null,"05Y3",1,false]
[null,null,null,null,null,"05Y4",1,false]
[null,null,null,null,null,"05Y5",1,false]
[null,null,null,null,null,"05YA",1,false]
[null,null,null,null,null,"05YE",1,false]
[null,null,null,null,null,"05YJ",1,false]
[null,null,null,null,null,"062O",1,false]
[null,null,null,null,null,"06BB",1,false]
[null,null,null,null,null,"07FA",1,false]
[null,null,null,null,null,"07FB",1,false]
[null,null,null,null,null,"(vazio)",null,false]
[null,null,null,null,null,"8.4",4,true]
[null,null,null,null,null,"04ML",1,false]
[null,null,null,null,null,"059P",1,false]
[null,null,null,null,null,"05KD",1,false]
[null,null,null,null,null,"05Z7",1,false]
[null,null,null,null,null,"(vazio)",null,false]
[null,null,null,null,null,"8.5",12,true]
[null,null,null,null,null,"05CP",1,false]
[null,null,null,null,null,"05CQ",1,false]
[null,null,null,null,null,"05CR",1,false]
[null,null,null,null,null,"06B5",1,false]
[null,null,null,null,null,"06BR",1,false]
[null,null,null,null,null,"06BS",1,false]
[null,null,null,null,null,"06C3",1,false]
[null,null,null,null,null,"06C4",1,false]
[null,null,null,null,null,"06CT",1,false]
[null,null,null,null,null,"06CU",1,false]
[null,null,null,null,null,"06CV",1,false]
[null,null,null,null,null,"06CW",1,false]
[null,null,null,null,null,"(vazio)",null,false]
[null,null,null,null,null,"8.6",20,true]
[null,null,null,null,null,"04S6",1,false]
[null,null,null,null,null,"051B",1,false]
[null,null,null,null,null,"051C",1,false]
[null,null,null,null,null,"05TE",1,{"$f":"G2311>1","v":false}]
[null,null,null,null,null,"05TN",1,false]
[null,null,null,null,null,"05VP",1,false]
[null,null,null,null,null,"05Y5",1,false]
[null,null,null,null,null,"061M",1,false]
[null,null,null,null,null,"061O",1,false]
[null,null,null,null,null,"061R",1,false]
[null,null,null,null,null,"0620",1,false]
[null,null,null,null,null,"067G",1,false]
[null,null,null,null,null,"067J",1,false]
[null,null,null,null,null,"067K",1,false]
[null,null,null,null,null,"067N",1,false]
[null,null,null,null,null,"067O",1,false]
[null,null,null,null,null,"06CT",1,false]
[null,null,null,null,null,"06CU",1,false]
[null,null,null,null,null,"06CV",1,false]
[null,null,null,null,null,"06CW",1,false]
[null,null,null,null,null,"(vazio)",null,false]
[null,null,null,null,null,"8.7",7,true]
[null,null,null,null,null,"068E",1,false]
[null,null,null,null,null,"068H",1,false]
[null,null,null,null,null,"068I",1,false]
[null,null,null,null,null,"068J",1,false]
[null,null,null,null,null,"068K",1,false]
[null,null,null,null,null,"068M",1,false]
[null,null,null,null,null,"06MS",1,false]
[null,null,null,null,null,"(vazio)",null,false]
[null,null,null,null,null,"8.8",7,true]
[null,null,null,null,null,"0511",1,false]
[null,null,null,null,null,"0515",1,false]
[null,null,null,null,null,"06BS",1,false]
[null,null,null,null,null,"06BT",1,false]
[null,null,null,null,null,"06BU",1,false]
[null,null,null,null,null,"06C0",1,false]
[null,null,null,null,null,"06LN",1,false]
[null,null,null,null,null,"(vazio)",null,false]
[null,null,null,null,null,"8.9",24,true]
[null,null,null,null,null,"04G2",1,false]
[null,null,null,null,null,"05N9",1,false]
[null,null,null,null,null,"05OA",1,false]
[null,null,null,null,null,"05OE",1,false]
[null,null,null,null,null,"05OH",1,false]
[null,null,null,null,null,"05OJ",1,false]
[null,null,null,null,null,"05OK",1,false]
[null,null,null,null,null,"05OL",1,false]
[null,null,null,null,null,"05VI",1,false]
[null,null,null,null,null,"05VJ",1,false]
[null,null,null,null,null,"05VR",1,false]
[null,null,null,null,null,"05VS",1,false]
[null,null,null,null,null,"05XZ",1,false]
[null,null,null,null,null,"05Y0",1,false]
[null,null,null,null,null,"05Y2",1,false]
[null,null,null,null,null,"05Y5",1,false]
[null,null,null,null,null,"05Y6",1,false]
[null,null,null,null,null,"05Y7",1,false]
[null,null,null,null,null,"05Y8",1,false]
[null,null,null,null,null,"05Z7",1,false]
[null,null,null,null,null,"05ZT",1,false]
[null,null,null,null,null,"05ZV",1,false]
[null,null,null,null,null,"062N",1,false]
[null,null,null,null,null,"06UP",1,false]
[null,null,null,null,null,"(vazio)",null,false]
[null,null,null,null,null,"8.a",null,false]
[null,null,null,null,null,"(vazio)",null,false]
[null,null,null,null,null,"8.b",4,{"$f":"G2375>1","v":true}]
[null,null,null,null,null,"06C3",1,false]
[null,null,null,null,null,"06C4",1,false]
[null,null,null,null,null,"06C5",1,false]
[null,null,null,null,null,"06S9",1,false]
[null,null,null,null,null,"(vazio)",null,false]
[null,null,null,null,null,"9.1",208,true]
[null,null,null,null,null,"0076",1,false]
[null,null,null,null,null,"0078",1,false]
[null,null,null,null,null,"007K",1,false]
[null,null,null,null,null,"009O",1,false]
[null,null,null,null,null,"009Q",1,false]
[null,null,null,null,null,"009U",1,false]
[null,null,null,null,null,"009V",1,false]
[null,null,null,null,null,"009W",1,false]
[null,null,null,null,null,"009X",1,false]
[null,null,null,null,null,"009Z",1,false]
[null,null,null,null,null,"00A0",1,false]
[null,null,null,null,null,"00A6",1,false]
[null,null,null,null,null,"00A7",1,false]
[null,null,null,null,null,"00A8",1,false]
[null,null,null,null,null,"00A9",1,false]
[null,null,null,null,null,"00AA",1,false]
[null,null,null,null,null,"00AC",1,false]
[null,null,null,null,null,"00AF",1,false]
[null,null,null,null,null,"00AG",1,false]
[null,null,null,null,null,"00AH",1,false]
[null,null,null,null,null,"00AM",1,false]
[null,null,null,null,null,"00AT",1,false]
[null,null,null,null,null,"00AX",1,false]
[null,null,null,null,null,"00B1",1,false]
[null,null,null,null,null,"00B6",1,false]
[null,null,null,null,null,"00B9",1,false]
[null,null,null,null,null,"00BB",1,false]
[null,null,null,null,null,"00BC",1,false]
[null,null,null,null,null,"00BD",1,false]
[null,null,null,null,null,"00BG",1,false]
[null,null,null,null,null,"00BH",1,false]
[null,null,null,null,null,"00BM",1,false]
[null,null,null,null,null,"00BN",1,false]
[null,null,null,null,null,"00BU",1,false]
[null,null,null,null,null,"00BV",1,false]
[null,null,null,null,null,"00BZ",1,false]
[null,null,null,null,null,"00DJ",1,false]
[null,null,null,null,null,"00E1",1,false]
[null,null,null,null,null,"00Q7",1,false]
[null,null,null,null,null,"00Q8",1,false]
[null,null,null,null,null,"00WD",1,false]
[null,null,null,null,null,"017O",1,false]
[null,null,null,null,null,"01LY",1,false]
[null,null,null,null,null,"04AE",1,false]
[null,null,null,null,null,"04BS",1,false]
[null,null,null,null,null,"04BY",1,false]
[null,null,null,null,null,"04CE",1,false]
[null,null,null,null,null,"04DL",1,false]
[null,null,null,null,null,"04DO",1,false]
[null,null,null,null,null,"04ES",1,false]
[null,null,null,null,null,"04EZ",1,false]
[null,null,null,null,null,"04F0",1,false]
[null,null,null,null,null,"04F1",1,false]
[null,null,null,null,null,"04F2",1,false]
[null,null,null,null,null,"04F3",1,false]
[null,null,null,null,null,"04F4",1,false]
[null,null,null,null,null,"04F7",1,false]
[null,null,null,null,null,"04GT",1,{"$f":"G2439>1","v":false}]
[null,null,null,null,null,"04H2",1,false]
[null,null,null,null,null,"04HF",1,false]
[null,null,null,null,null,"04HL",1,false]
[null,null,null,null,null,"04HN",1,false]
[null,null,null,null,null,"04IG",1,false]
[null,null,null,null,null,"04IJ",1,false]
[null,null,null,null,null,"04IL",1,false]
[null,null,null,null,null,"04Q6",1,false]
[null,null,null,null,null,"04Q8",1,false]
[null,null,null,null,null,"04QO",1,false]
[null,null,null,null,null,"04TE",1,false]
[null,null,null,null,null,"050Z",1,false]
[null,null,null,null,null,"0513",1,false]
[null,null,null,null,null,"0516",1,false]
[null,null,null,null,null,"0517",1,false]
[null,null,null,null,null,"0587",1,false]
[null,null,null,null,null,"0588",1,false]
[null,null,null,null,null,"0589",1,false]
[null,null,null,null,null,"058B",1,false]
[null,null,null,null,null,"058J",1,false]
[null,null,null,null,null,"058Q",1,false]
[null,null,null,null,null,"058W",1,false]
[null,null,null,null,null,"05AG",1,false]
[null,null,null,null,null,"05AR",1,false]
[null,null,null,null,null,"05AS",1,false]
[null,null,null,null,null,"05BA",1,false]
[null,null,null,null,null,"05C8",1,false]
[null,null,null,null,null,"05C9",1,false]
[null,null,null,null,null,"05CA",1,false]
[null,null,null,null,null,"05CB",1,false]
[null,null,null,null,null,"05KC",1,false]
[null,null,null,null,null,"05LO",1,false]
[null,null,null,null,null,"05LW",1,false]
[null,null,null,null,null,"05M2",1,false]
[null,null,null,null,null,"05O2",1,false]
[null,null,null,null,null,"05OY",1,false]
[null,null,null,null,null,"05P1",1,false]
[null,null,null,null,null,"05TC",1,false]
[null,null,null,null,null,"05VN",1,false]
[null,null,null,null,null,"05Z7",1,false]
[null,null,null,null,null,"062O",1,false]
[null,null,null,null,null,"064J",1,false]
[null,null,null,null,null,"0652",1,false]
[null,null,null,null,null,"068P",1,false]
[null,null,null,null,null,"06C7",1,false]
[null,null,null,null,null,"06C8",1,false]
[null,null,null,null,null,"06C9",1,false]
[null,null,null,null,null,"06CA",1,false]
[null,null,null,null,null,"06CN",1,false]
[null,null,null,null,null,"06CS",1,false]
[null,null,null,null,null,"06CZ",1,false]
[null,null,null,null,null,"06D0",1,false]
[null,null,null,null,null,"06D1",1,false]
[null,null,null,null,null,"06D2",1,false]
[null,null,null,null,null,"06D3",1,false]
[null,null,null,null,null,"06D5",1,false]
[null,null,null,null,null,"06D6",1,false]
[null,null,null,null,null,"06D7",1,false]
[null,null,null,null,null,"06D8",1,false]
[null,null,null,null,null,"06D9",1,false]
[null,null,null,null,null,"06H4",1,false]
[null,null,null,null,null,"06H7",1,false]
[null,null,null,null,null,"06H8",1,false]
[null,null,null,null,null,"06NA",1,{"$f":"G2503>1","v":false}]
[null,null,null,null,null,"06Q5",1,false]
[null,null,null,null,null,"06Q6",1,false]
[null,null,null,null,null,"06QU",1,false]
[null,null,null,null,null,"06QV",1,false]
[null,null,null,null,null,"06QX",1,false]
[null,null,null,null,null,"06RF",1,false]
[null,null,null,null,null,"06RH",1,false]
[null,null,null,null,null,"06SL",1,false]
[null,null,null,null,null,"06SV",1,false]
[null,null,null,null,null,"06T0",1,false]
[null,null,null,null,null,"06T7",1,false]
[null,null,null,null,null,"06T9",1,false]
[null,null,null,null,null,"06TB",1,false]
[null,null,null,null,null,"06TD",1,false]
[null,null,null,null,null,"06TF",1,false]
[null,null,null,null,null,"06TG",1,false]
[null,null,null,null,null,"06TJ",1,false]
[null,null,null,null,null,"06TL",1,false]
[null,null,null,null,null,"06TM",1,false]
[null,null,null,null,null,"06TN",1,false]
[null,null,null,null,null,"06TO",1,false]
[null,null,null,null,null,"06TP",1,false]
[null,null,null,null,null,"06TT",1,false]
[null,null,null,null,null,"06TU",1,false]
[null,null,null,null,null,"06UB",1,false]
[null,null,null,null,null,"06V3",1,false]
[null,null,null,null,null,"06VW",1,false]
[null,null,null,null,null,"06WD",1,false]
[null,null,null,null,null,"06WE",1,false]
[null,null,null,null,null,"06WF",1,false]
[null,null,null,null,null,"06WG",1,false]
[null,null,null,null,null,"06WI",1,false]
[null,null,null,null,null,"06WJ",1,false]
[null,null,null,null,null,"06WK",1,false]
[null,null,null,null,null,"06WM",1,false]
[null,null,null,null,null,"06WN",1,false]
[null,null,null,null,null,"06WO",1,false]
[null,null,null,null,null,"06WQ",1,false]
[null,null,null,null,null,"06WR",1,false]
[null,null,null,null,null,"06WS",1,false]
[null,null,null,null,null,"06WW",1,false]
[null,null,null,null,null,"06WX",1,false]
[null,null,null,null,null,"06WZ",1,false]
[null,null,null,null,null,"06Y1",1,false]
[null,null,null,null,null,"06Y3",1,false]
[null,null,null,null,null,"06Y4",1,false]
[null,null,null,null,null,"06Y8",1,false]
[null,null,null,null,null,"06YB",1,false]
[null,null,null,null,null,"06ZR",1,false]
[null,null,null,null,null,"06ZW",1,false]
[null,null,null,null,null,"07AG",1,false]
[null,null,null,null,null,"07AK",1,false]
[null,null,null,null,null,"07AQ",1,false]
[null,null,null,null,null,"07B1",1,false]
[null,null,null,null,null,"07B3",1,false]
[null,null,null,null,null,"07B4",1,false]
[null,null,null,null,null,"07B6",1,false]
[null,null,null,null,null,"07B7",1,false]
[null,null,null,null,null,"07B8",1,false]
[null,null,null,null,null,"07BA",1,false]
[null,null,null,null,null,"07BB",1,false]
[null,null,null,null,null,"07BC",1,false]
[null,null,null,null,null,"07BD",1,false]
[null,null,null,null,null,"07BE",1,{"$f":"G2567>1","v":false}]
[null,null,null,null,null,"07BG",1,false]
[null,null,null,null,null,"07BH",1,false]
[null,null,null,null,null,"07BK",1,false]
[null,null,null,null,null,"07BL",1,false]
[null,null,null,null,null,"07BN",1,false]
[null,null,null,null,null,"07BO",1,false]
[null,null,null,null,null,"07C9",1,false]
[null,null,null,null,null,"07CD",1,false]
[null,null,null,null,null,"07CG",1,false]
[null,null,null,null,null,"07CM",1,false]
[null,null,null,null,null,"07CQ",1,false]
[null,null,null,null,null,"07CW",1,false]
[null,null,null,null,null,"07CY",1,false]
[null,null,null,null,null,"07DG",1,false]
[null,null,null,null,null,"07DI",1,false]
[null,null,null,null,null,"07DP",1,false]
[null,null,null,null,null,"07DR",1,false]
[null,null,null,null,null,"07DU",1,false]
[null,null,null,null,null,"07DV",1,false]
[null,null,null,null,null,"07EA",1,false]
[null,null,null,null,null,"07EB",1,false]
[null,null,null,null,null,"07EI",1,false]
[null,null,null,null,null,"(vazio)",null,false]
[null,null,null,null,null,"9.2",16,true]
[null,null,null,null,null,"03IR",1,false]
[null,null,null,null,null,"04UY",1,false]
[null,null,null,null,null,"04V4",1,false]
[null,null,null,null,null,"057A",1,false]
[null,null,null,null,null,"057B",1,false]
[null,null,null,null,null,"057D",1,false]
[null,null,null,null,null,"057E",1,false]
[null,null,null,null,null,"058I",1,false]
[null,null,null,null,null,"05DS",1,false]
[null,null,null,null,null,"05EU",1,false]
[null,null,null,null,null,"05Z7",1,false]
[null,null,null,null,null,"0636",1,false]
[null,null,null,null,null,"06RP",1,false]
[null,null,null,null,null,"06RQ",1,false]
[null,null,null,null,null,"06RR",1,false]
[null,null,null,null,null,"06RV",1,false]
[null,null,null,null,null,"(vazio)",null,false]
[null,null,null,null,null,"9.3",10,true]
[null,null,null,null,null,"04S3",1,false]
[null,null,null,null,null,"04UR",1,false]
[null,null,null,null,null,"04V5",1,false]
[null,null,null,null,null,"04XH",1,false]
[null,null,null,null,null,"050Z",1,false]
[null,null,null,null,null,"0511",1,false]
[null,null,null,null,null,"0512",1,false]
[null,null,null,null,null,"0513",1,false]
[null,null,null,null,null,"0516",1,false]
[null,null,null,null,null,"06SG",1,false]
[null,null,null,null,null,"(vazio)",null,false]
[null,null,null,null,null,"9.4",23,true]
[null,null,null,null,null,"0058",1,false]
[null,null,null,null,null,"0066",1,false]
[null,null,null,null,null,"017O",1,false]
[null,null,null,null,null,"04HF",1,false]
[null,null,null,null,null,"04Q6",1,false]
[null,null,null,null,null,"04Q8",1,false]
[null,null,null,null,null,"04UR",1,false]
[null,null,null,null,null,"0511",1,false]
[null,null,null,null,null,"0512",1,false]
[null,null,null,null,null,"0516",1,{"$f":"G2631>1","v":false}]
[null,null,null,null,null,"052G",1,false]
[null,null,null,null,null,"055J",1,false]
[null,null,null,null,null,"05J5",1,false]
[null,null,null,null,null,"05J6",1,false]
[null,null,null,null,null,"05J8",1,false]
[null,null,null,null,null,"05JD",1,false]
[null,null,null,null,null,"05JG",1,false]
[null,null,null,null,null,"05JI",1,false]
[null,null,null,null,null,"05JP",1,false]
[null,null,null,null,null,"05KE",1,false]
[null,null,null,null,null,"05QI",1,false]
[null,null,null,null,null,"05TU",1,false]
[null,null,null,null,null,"05Z7",1,false]
[null,null,null,null,null,"(vazio)",null,false]
[null,null,null,null,null,"9.5",38,true]
[null,null,null,null,null,"0066",1,false]
[null,null,null,null,null,"017O",1,false]
[null,null,null,null,null,"02YT",1,false]
[null,null,null,null,null,"04HF",1,false]
[null,null,null,null,null,"04LO",1,false]
[null,null,null,null,null,"04MK",1,false]
[null,null,null,null,null,"04ML",1,false]
[null,null,null,null,null,"04NB",1,false]
[null,null,null,null,null,"04NC",1,false]
[null,null,null,null,null,"04OE",1,false]
[null,null,null,null,null,"04OG",1,false]
[null,null,null,null,null,"04Q6",1,false]
[null,null,null,null,null,"04Q8",1,false]
[null,null,null,null,null,"04QA",1,false]
[null,null,null,null,null,"04QD",1,false]
[null,null,null,null,null,"04QG",1,false]
[null,null,null,null,null,"04QH",1,false]
[null,null,null,null,null,"04TI",1,false]
[null,null,null,null,null,"04UB",1,false]
[null,null,null,null,null,"04UR",1,false]
[null,null,null,null,null,"04UT",1,false]
[null,null,null,null,null,"04UU",1,false]
[null,null,null,null,null,"051R",1,false]
[null,null,null,null,null,"052C",1,false]
[null,null,null,null,null,"054N",1,false]
[null,null,null,null,null,"054S",1,false]
[null,null,null,null,null,"054U",1,false]
[null,null,null,null,null,"054V",1,false]
[null,null,null,null,null,"0568",1,false]
[null,null,null,null,null,"05H8",1,false]
[null,null,null,null,null,"05XT",1,false]
[null,null,null,null,null,"0624",1,false]
[null,null,null,null,null,"0625",1,false]
[null,null,null,null,null,"065A",1,false]
[null,null,null,null,null,"065B",1,false]
[null,null,null,null,null,"065C",1,false]
[null,null,null,null,null,"067N",1,false]
[null,null,null,null,null,"06SE",1,false]
[null,null,null,null,null,"(vazio)",null,false]
[null,null,null,null,null,"9.a",7,true]
[null,null,null,null,null,"017O",1,false]
[null,null,null,null,null,"04HF",1,false]
[null,null,null,null,null,"04Q6",1,false]
[null,null,null,null,null,"04Q8",1,false]
[null,null,null,null,null,"04UZ",1,false]
[null,null,null,null,null,"052L",1,false]
[null,null,null,null,null,"05XT",1,false]
[null,null,null,null,null,"(vazio)",null,false]
[null,null,null,null,null,"9.b",30,{"$f":"G2695>1","v":true}]
[null,null,null,null,null,"0060",1,false]
[null,null,null,null,null,"0065",1,false]
[null,null,null,null,null,"0066",1,false]
[null,null,null,null,null,"04ML",1,false]
[null,null,null,null,null,"04NB",1,false]
[null,null,null,null,null,"04QD",1,false]
[null,null,null,null,null,"04QE",1,false]
[null,null,null,null,null,"04QH",1,false]
[null,null,null,null,null,"04QJ",1,false]
[null,null,null,null,null,"04RD",1,false]
[null,null,null,null,null,"04RE",1,false]
[null,null,null,null,null,"04RF",1,false]
[null,null,null,null,null,"04RH",1,false]
[null,null,null,null,null,"04TI",1,false]
[null,null,null,null,null,"04US",1,false]
[null,null,null,null,null,"04UT",1,false]
[null,null,null,null,null,"04UU",1,false]
[null,null,null,null,null,"04UY",1,false]
[null,null,null,null,null,"0511",1,false]
[null,null,null,null,null,"0513",1,false]
[null,null,null,null,null,"052C",1,false]
[null,null,null,null,null,"054S",1,false]
[null,null,null,null,null,"054U",1,false]
[null,null,null,null,null,"054V",1,false]
[null,null,null,null,null,"0568",1,false]
[null,null,null,null,null,"05XT",1,false]
[null,null,null,null,null,"064G",1,false]
[null,null,null,null,null,"067M",1,false]
[null,null,null,null,null,"06XA",1,false]
[null,null,null,null,null,"07FC",1,false]
[null,null,null,null,null,"(vazio)",null,false]
[null,null,null,null,null,"9.c",15,true]
[null,null,null,null,null,"02YT",1,false]
[null,null,null,null,null,"04MG",1,false]
[null,null,null,null,null,"04MK",1,false]
[null,null,null,null,null,"04ML",1,false]
[null,null,null,null,null,"04N8",1,false]
[null,null,null,null,null,"04N9",1,false]
[null,null,null,null,null,"04NB",1,false]
[null,null,null,null,null,"04QH",1,false]
[null,null,null,null,null,"055W",1,false]
[null,null,null,null,null,"05BL",1,false]
[null,null,null,null,null,"05H8",1,false]
[null,null,null,null,null,"06H7",1,false]
[null,null,null,null,null,"06SE",1,false]
[null,null,null,null,null,"07FB",1]
[null,null,null,null,null,"07FC",1]
[null,null,null,null,null,"(vazio)"]
[null,null,null,null,null,"Total Geral",2404]